Workbook

Sheet Home
M2: Useful Air Force Links
M4: Scott Career Assistance Advisor (Secure Website)
M5: Airman Promotion Program
M6: www.usmilitary.about.com
M7: www.gruntsmilitary.com
M8: www.chairforce.com
M9: EPR Bullet Tracker
M10: www.afmentor.com
M11: www.afforums.com
M12: Fitness Calculator
M13: www.stanish.net
M14: www.dfas.mil/
M16: Get the latest version of WAPS Calculator @
M17: www.wapscalc.com
C18: Select rank your testing for | F18: 1 | G18: =VLOOKUP(F18,'Reference Sheet'!D14:E19,2) -> 0
C19: What year will you test in | F19: =VLOOKUP(G19,'Reference Sheet'!T3:U16,2) -> 0 | G19: 1
C20: What is your TAFMSD
C21: What is your current DOR
C22: What is your test date
B24: =IF($G$18="MSgt",VLOOKUP($F$19,E7Cycle,13,FALSE),IF($G$18="TSgt",VLOOKUP($F$19,E6Cycle,13,FALSE),IF($G$18="SSgt",VLOOKUP($F$19,e5cycle,13,FALSE),IF($G$18="SMSgt",VLOOKUP($F$19,E8Cycle,13,FALSE),IF($G$18="CMSgt",VLOOKUP($F$19,E9Cycle,13,FALSE),"")))))-TODAY() ->  | C24: ="You have "&IF($G$18="MSgt",VLOOKUP($F$19,E7Cycle,13,FALSE),IF($G$18="TSgt",VLOOKUP($F$19,E6Cycle,13,FALSE),IF($G$18="SSgt",VLOOKUP($F$19,e5cycle,13,FALSE),IF($G$18="SMSgt",VLOOKUP($F$19,E8Cycle,13,FALSE),IF($G$18="CMSgt",VLOOKUP($F$19,E9Cycle,13,FALSE),"")))))-TODAY()&" days until your "&H28&" promotion cycle begins" -> 
B26: =F22-TODAY() -> -39773 | C26: =IF(B26>=0,"You have "&B26&" days before you will test for "&G18&". Good luck!","") -> 
C28: Testing Cycle | H28: =IF($G$18="MSgt",VLOOKUP($F$19,E7Cycle,2,FALSE),IF($G$18="TSgt",VLOOKUP($F$19,E6Cycle,2,FALSE),IF($G$18="SSgt",VLOOKUP($F$19,e5cycle,2,FALSE),IF($G$18="SMSgt",VLOOKUP($F$19,E8Cycle,2,FALSE),IF($G$18="CMSgt",VLOOKUP($F$19,E9Cycle,2,FALSE),""))))) -> 
C29: =IF(G18=0,"DOR","You must have put "&VLOOKUP(G18,'Reference Sheet'!F26:G30,2,)&" on before") -> DOR | H29: =IF($G$18="MSgt",VLOOKUP($F$19,E7Cycle,3,FALSE),IF($G$18="TSgt",VLOOKUP($F$19,E6Cycle,3,FALSE),IF($G$18="SSgt",VLOOKUP($F$19,e5cycle,3,FALSE),IF($G$18="SMSgt",VLOOKUP($F$19,E8Cycle,3,FALSE),IF($G$18="CMSgt",VLOOKUP($F$19,E9Cycle,3,FALSE),""))))) -> 
C30: =IF(G18=0,"TIG","TIG: You must have held "&VLOOKUP(G18,'Reference Sheet'!F26:G30,2,FALSE)&" for") -> TIG | H30: =IF($G$18="MSgt",VLOOKUP($F$19,E7Cycle,4,FALSE),IF($G$18="TSgt",VLOOKUP($F$19,E6Cycle,4,FALSE),IF($G$18="SSgt",VLOOKUP($F$19,e5cycle,4,FALSE),IF($G$18="SMSgt",VLOOKUP($F$19,E8Cycle,4,FALSE),IF($G$18="CMSgt",VLOOKUP($F$19,E9Cycle,4,FALSE),""))))) -> 
C31: Total Active Federal Mililtary Service Date (TAFMSD) | H31: =IF($G$18="MSgt",VLOOKUP($F$19,E7Cycle,5,FALSE),IF($G$18="TSgt",VLOOKUP($F$19,E6Cycle,5,FALSE),IF($G$18="SSgt",VLOOKUP($F$19,e5cycle,5,FALSE),IF($G$18="SMSgt",VLOOKUP($F$19,E8Cycle,5,FALSE),IF($G$18="CMSgt",VLOOKUP($F$19,E9Cycle,5,FALSE),""))))) -> 
C32: Time in Service (TIS) Required | H32: =IF($G$18="MSgt",VLOOKUP($F$19,E7Cycle,6,FALSE),IF($G$18="TSgt",VLOOKUP($F$19,E6Cycle,6,FALSE),IF($G$18="SSgt",VLOOKUP($F$19,e5cycle,6,FALSE),IF($G$18="SMSgt",VLOOKUP($F$19,E8Cycle,6,FALSE),IF($G$18="CMSgt",VLOOKUP($F$19,E9Cycle,6,FALSE),""))))) -> 
C33: PAFSC Skill Level | H33: =IF($G$18="MSgt",VLOOKUP($F$19,E7Cycle,7,FALSE),IF($G$18="TSgt",VLOOKUP($F$19,E6Cycle,7,FALSE),IF($G$18="SSgt",VLOOKUP($F$19,e5cycle,7,FALSE),IF($G$18="SMSgt",VLOOKUP($F$19,E8Cycle,7,FALSE),IF($G$18="CMSgt",VLOOKUP($F$19,E9Cycle,7,FALSE),""))))) -> 
C34: Promotion Eligible Cutoff Date (PECD) | H34: =IF($G$18="MSgt",VLOOKUP($F$19,E7Cycle,8,FALSE),IF($G$18="TSgt",VLOOKUP($F$19,E6Cycle,8,FALSE),IF($G$18="SSgt",VLOOKUP($F$19,e5cycle,8,FALSE),IF($G$18="SMSgt",VLOOKUP($F$19,E8Cycle,8,FALSE),IF($G$18="CMSgt",VLOOKUP($F$19,E9Cycle,8,FALSE),""))))) -> 
C35: Testing Cycle Dates | H35: =IF($G$18="MSgt",VLOOKUP($F$19,E7Cycle,9,FALSE),IF($G$18="TSgt",VLOOKUP($F$19,E6Cycle,9,FALSE),IF($G$18="SSgt",VLOOKUP($F$19,e5cycle,9,FALSE),IF($G$18="SMSgt",VLOOKUP($F$19,E8Cycle,9,FALSE),IF($G$18="CMSgt",VLOOKUP($F$19,E9Cycle,9,FALSE),""))))) -> 
C36: Promotion Months | H36: =IF($G$18="MSgt",VLOOKUP($F$19,E7Cycle,10,FALSE),IF($G$18="TSgt",VLOOKUP($F$19,E6Cycle,10,FALSE),IF($G$18="SSgt",VLOOKUP($F$19,e5cycle,10,FALSE),IF($G$18="SMSgt",VLOOKUP($F$19,E8Cycle,10,FALSE),IF($G$18="CMSgt",VLOOKUP($F$19,E9Cycle,10,FALSE),""))))) -> 
C37: EPR's Considered | H37: =IF($G$18="MSgt",VLOOKUP($F$19,E7Cycle,12,FALSE),IF($G$18="TSgt",VLOOKUP($F$19,E6Cycle,12,FALSE),IF($G$18="SSgt",VLOOKUP($F$19,e5cycle,12,FALSE),IF($G$18="SMSgt",VLOOKUP($F$19,E8Cycle,12,FALSE),IF($G$18="CMSgt",VLOOKUP($F$19,E9Cycle,12,FALSE),""))))) -> 
C38: Selections Announced | H38: =IF($G$18="MSgt",VLOOKUP($F$19,E7Cycle,11,FALSE),IF($G$18="TSgt",VLOOKUP($F$19,E6Cycle,11,FALSE),IF($G$18="SSgt",VLOOKUP($F$19,e5cycle,11,FALSE),IF($G$18="SMSgt",VLOOKUP($F$19,E8Cycle,11,FALSE),IF($G$18="CMSgt",VLOOKUP($F$19,E9Cycle,11,FALSE),""))))) -> 
B40: Disclaimer: | L40: Use of Macros/VBA
I41: Created by:
B42: This is not an official Air Force product. This was made as an independent way to calculate WAPS scores and provide you a little extra information in regards to rank and pay. Contact the author for any questions or to report any errors. | H42: SSgt Chuck Lane Scott AFB, Il | L42: There are no macros/VBA used in calculating your WAPS scores. The only macros/VBA that is used is to clear the WAPS calculator, display comment cells, and to utilize the userform feature to show the rank detail. You do not need to enable macros to utilize the WAPS calculator but it is recommended so you can get full use out of this worksheet.
B54: Versions:
B55: V1.0: 2007 Results
C56: E5/E6/E7 Calculator only
B57: V2.0: 2008 Results
C58: Added Home Page, E8/E9 Calc, Medals Calc, Pay Scale Calc

Sheet WAPS CALC
D6: =IF(E12="","","You have been in the Air Force for "&DATEDIF(E12,E5009,"y")&" years, "&DATEDIF(E12,E5009,"ym")&" months, "&DATEDIF(E12,E5009,"md")&" days"&"") -> 
D7: =IF(E13="","","You have been a "&E5010&" for "&DATEDIF(E13,E5009,"y")&" years, "&DATEDIF(E13,E5009,"ym")&" months, "&DATEDIF(E13,E5009,"md")&" days"&"") -> 
R8: Compare yourslef to last years averages
D10: Select rank your testing for | K10: TAFMS Points | M10: =IF(I5007>40,40,I5007) -> 0 | Q10: # Tested | R10: =IF(AND($E$10="ssgt",$E$11=2009),V102,IF(AND($E$10="tsgt",$E$11=2009),Y102,IF(AND($E$10="msgt",$E$11=2009),AB102,""))) -> 
D11: What year will you test in? | K11: TIG Points | M11: =IF(I5008>60,60,I5008) -> 0 | Q11: Promoted | R11: =IF(AND($E$10="ssgt",$E$11=2009),X102,IF(AND($E$10="tsgt",$E$11=2009),AA102,IF(AND($E$10="msgt",$E$11=2009),AD102,""))) ->  | S11: =R11/R10 -> 
D12: What is your TAFMS? | K12: EPR Points | M12: =I34 ->  | Q12: Not Promoted | R12: =IF(AND($E$10="ssgt",$E$11=2009),W102,IF(AND($E$10="tsgt",$E$11=2009),Z102,IF(AND($E$10="msgt",$E$11=2009),AC102,""))) ->  | S12: =R12/R10 -> 
D13: What is your TIG? | K13: Medals Points | M13: =F35 -> 0 | R13: You | S13: 2008 Selects
D14: What is your est. cutoff score? | K14: Total Points Earned | M14: =IF(ISNA(SUM(M10:M13)),"",SUM(M10:M13)) -> 0
D15: See 2008 Cut Off Scores | K15: =IF(ISNA(VLOOKUP(M16,quotetable,2,TRUE)),"",VLOOKUP(M16,quotetable,2,TRUE)) ->  | Q15: Years TIG | R15: =DATEDIF(E13,T15,"m")/12 -> 0.00 | S15: =IF(AND($E$10="ssgt",$E$11=2009),X104,IF(AND($E$10="tsgt",$E$11=2009),AA104,IF(AND($E$10="msgt",$E$11=2009),AD104,""))) ->  | T15: =IF(AND(E10="ssgt",E11=2009),VLOOKUP(E11,e5cycle,13,FALSE),IF(AND(E10="TSGT",E11=2009),VLOOKUP(E11,E6Cycle,13,FALSE),IF(AND(E10="MSGT",E11=2009),VLOOKUP(E11,E7Cycle,13,FALSE)))) -> FALSE
D16: Select AFSC | K16: Need To Score on SKT | M16: =IF(ISERROR(I5010/2),"",I5010/2) -> 0 | Q16: Years TIS | R16: =DATEDIF(E12,T16,"m")/12 -> 0.00 | S16: =IF(AND($E$10="ssgt",$E$11=2009),X105,IF(AND($E$10="tsgt",$E$11=2009),AA105,IF(AND($E$10="msgt",$E$11=2009),AD105,""))) ->  | T16: =IF(AND(E10="ssgt",E11=2009),VLOOKUP(E11,e5cycle,13,FALSE),IF(AND(E10="TSGT",E11=2009),VLOOKUP(E11,E6Cycle,13,FALSE),IF(AND(E10="MSGT",E11=2009),VLOOKUP(E11,E7Cycle,13,FALSE)))) -> FALSE
D17: 2008 AFSC Cutoff Scores | E17: =IF(E10=tech,VLOOKUP(E16,TSGT,5,FALSE),IF(E10=staff,VLOOKUP(E16,ssgt,5,FALSE),IF(E10=master,VLOOKUP(E16,msgt,5,FALSE),""))) ->  | K17: Need To Score on PDG | M17: =IF(ISERROR(I5010/2),"",I5010/2) -> 0 | Q17: TIG Points | R17: =M11 -> 0 | S17: =IF(AND($E$10="ssgt",$E$11=2009),X107,IF(AND($E$10="tsgt",$E$11=2009),AA107,IF(AND($E$10="msgt",$E$11=2009),AD107,""))) -> 
K18: If you score this on one, | Q18: TIS Points | R18: =M10 -> 0 | S18: =IF(AND($E$10="ssgt",$E$11=2009),X108,IF(AND($E$10="tsgt",$E$11=2009),AA108,IF(AND($E$10="msgt",$E$11=2009),AD108,""))) -> 
K19: you'll need this for the other | M19: =IF(M18="","",SUM(M16:M17)-M18) ->  | Q19: EPR | R19: =M12 ->  | S19: =IF(AND($E$10="ssgt",$E$11=2009),X109,IF(AND($E$10="tsgt",$E$11=2009),AA109,IF(AND($E$10="msgt",$E$11=2009),AD109,""))) -> 
Q21: Decorations | R21: =M13 -> 0 | S21: =IF(AND($E$10="ssgt",$E$11=2009),X110,IF(AND($E$10="tsgt",$E$11=2009),AA110,IF(AND($E$10="msgt",$E$11=2009),AD110,""))) -> 
E22: # | F22: Pts | H22: EPR's | K22: Testing Eligibility | Q22: SKT | R22: =M16 -> 0 | S22: =IF(AND($E$10="ssgt",$E$11=2009),X111,IF(AND($E$10="tsgt",$E$11=2009),AA111,IF(AND($E$10="msgt",$E$11=2009),AD111,""))) -> 
F23: =IF(ISNA(_med1),"",_med1) ->  | H23: Newest | I23: Rating | Q23: PDG | R23: =M17 -> 0 | S23: =IF(AND($E$10="ssgt",$E$11=2009),X112,IF(AND($E$10="tsgt",$E$11=2009),AA112,IF(AND($E$10="msgt",$E$11=2009),AD112,""))) -> 
F24: =IF(ISNA(_med2),"",_med2) ->  | H24: 1 | K24: Cycle | M24: =IF($E$10="MSgt",VLOOKUP($E$11,E7Cycle,2,FALSE),IF($E$10="TSgt",VLOOKUP($E$11,E6Cycle,2,FALSE),IF($E$10="SSgt",VLOOKUP($E$11,e5cycle,2,FALSE),""))) ->  | Q24: Enter Bday | T24: =IF(AND(E10="ssgt",E11=2009),VLOOKUP(E11,e5cycle,13,FALSE),IF(AND(E10="TSGT",E11=2009),VLOOKUP(E11,E6Cycle,13,FALSE),IF(AND(E10="MSGT",E11=2009),VLOOKUP(E11,E7Cycle,13,FALSE)))) -> FALSE
F25: =IF(ISNA(_med3),"",_med3) ->  | H25: 2 | K25: DOR | M25: =IF($E$10="MSgt",VLOOKUP($E$11,E7Cycle,3,FALSE),IF($E$10="TSgt",VLOOKUP($E$11,E6Cycle,3,FALSE),IF($E$10="SSgt",VLOOKUP($E$11,e5cycle,3,FALSE),""))) ->  | Q25: Age | R25: =DATEDIF(R24,T24,"m")/12 -> 0.00 | S25: =IF(AND($E$10="ssgt",$E$11=2009),X106,IF(AND($E$10="tsgt",$E$11=2009),AA106,IF(AND($E$10="msgt",$E$11=2009),AD106,""))) -> 
F26: =IF(ISNA(_med4),"",_med4) ->  | H26: 3 | K26: TIG Required | M26: =IF($E$10="MSgt",VLOOKUP($E$11,E7Cycle,4,FALSE),IF($E$10="TSgt",VLOOKUP($E$11,E6Cycle,4,FALSE),IF($E$10="SSgt",VLOOKUP($E$11,e5cycle,4,FALSE),""))) ->  | Q26: Total Average | R26: =M14+M16+M17 -> 0 | S26: =IF(AND($E$10="ssgt",$E$11=2009),X113,IF(AND($E$10="tsgt",$E$11=2009),AA113,IF(AND($E$10="msgt",$E$11=2009),AD113,""))) -> 
F27: =IF(ISNA(_med5),"",_med5) ->  | H27: 4 | K27: TAFMSD | M27: =IF($E$10="MSgt",VLOOKUP($E$11,E7Cycle,5,FALSE),IF($E$10="TSgt",VLOOKUP($E$11,E6Cycle,5,FALSE),IF($E$10="SSgt",VLOOKUP($E$11,e5cycle,5,FALSE),""))) -> 
F28: =IF(ISNA(_med6),"",_med6) ->  | H28: 5 | K28: TIS Required | M28: =IF($E$10="MSgt",VLOOKUP($E$11,E7Cycle,6,FALSE),IF($E$10="TSgt",VLOOKUP($E$11,E6Cycle,6,FALSE),IF($E$10="SSgt",VLOOKUP($E$11,e5cycle,6,FALSE),""))) ->  | Q28: ="All dates are calculated based on the first day of the "&M24&" test cycle." -> All dates are calculated based on the first day of the test cycle.
F29: =IF(ISNA(_med7),"",_med7) ->  | H29: 6 | K29: PAFSC Skill Level | M29: =IF($E$10="MSgt",VLOOKUP($E$11,E7Cycle,7,FALSE),IF($E$10="TSgt",VLOOKUP($E$11,E6Cycle,7,FALSE),IF($E$10="SSgt",VLOOKUP($E$11,e5cycle,7,FALSE),""))) -> 
F30: =IF(ISNA(_med8),"",_med8) ->  | H30: 7 | K30: Prom. Eligible Cutoff Date | M30: =IF($E$10="MSgt",VLOOKUP($E$11,E7Cycle,8,FALSE),IF($E$10="TSgt",VLOOKUP($E$11,E6Cycle,8,FALSE),IF($E$10="SSgt",VLOOKUP($E$11,e5cycle,8,FALSE),""))) -> 
F31: =IF(ISNA(_med9),"",_med9) ->  | H31: 8 | K31: Testing Cycle | M31: =IF($E$10="MSgt",VLOOKUP($E$11,E7Cycle,9,FALSE),IF($E$10="TSgt",VLOOKUP($E$11,E6Cycle,9,FALSE),IF($E$10="SSgt",VLOOKUP($E$11,e5cycle,9,FALSE),""))) -> 
F32: =IF(ISNA(_med10),"",_med10) ->  | H32: 9 | K32: Promotion Months | M32: =IF($E$10="MSgt",VLOOKUP($E$11,E7Cycle,10,FALSE),IF($E$10="TSgt",VLOOKUP($E$11,E6Cycle,10,FALSE),IF($E$10="SSgt",VLOOKUP($E$11,e5cycle,10,FALSE),""))) -> 
F33: =IF(ISNA(_med11),"",_med11) ->  | H33: 10 | K33: EPR's Considered | M33: =IF($E$10="MSgt",VLOOKUP($E$11,E7Cycle,12,FALSE),IF($E$10="TSgt",VLOOKUP($E$11,E6Cycle,12,FALSE),IF($E$10="SSgt",VLOOKUP($E$11,e5cycle,12,FALSE),""))) -> 
F34: =IF(ISNA(_med12),"",_med12) ->  | H34: Oldest | I34: =IF(ISERROR(Q5017/O5017),"",Q5017/O5017) ->  | K34: Selections Announced | M34: =IF($E$10="MSgt",VLOOKUP($E$11,E7Cycle,11,FALSE),IF($E$10="TSgt",VLOOKUP($E$11,E6Cycle,11,FALSE),IF($E$10="SSgt",VLOOKUP($E$11,e5cycle,11,FALSE),""))) -> 
D35: Total Points (not to exceed 25) | F35: =IF(SUM(F23:F34)>25,25,SUM(F23:F34)) -> 0
V100: E5 | Y100: E6 | AB100: E7
V101: Eligibles | W101: NonSelects | X101: Selects | Y101: Eligibles | Z101: NonSelects | AA101: Selects | AB101: Eligibles | AC101: NonSelects | AD101: Selects
U102: Nbr | V102: 28098 | W102: 15889 | X102: 12209 | Y102: 38,324 | Z102: 31214 | AA102: 7110 | AB102: 24,223 | AC102: 18819 | AD102: 5404
U103: Pct | W103: =56.55/100 -> 56.55% | X103: =43.45/100 -> 43.45% | Z103: 81.45 | AA103: 18.55 | AC103: 77.69 | AD103: 22.31
U104: YRS TIG | V104: 1.98 | W104: 1.78 | X104: 2.25 | Y104: 4.22 | Z104: 3.92 | AA104: 5.54 | AB104: 3.58 | AC104: 3.37 | AD104: 4.32
U105: YRS TIS | V105: 4.6 | W105: 4.4 | X105: 4.85 | Y105: 9.35 | Z105: 9.01 | AA105: 10.88 | AB105: 15.91 | AC105: 15.72 | AD105: 16.56
U106: AGE | V106: 24.77 | W106: 24.48 | X106: 25.14 | Y106: 29.65 | Z106: 29.31 | AA106: 31.16 | AB106: 36.25 | AC106: 36.11 | AD106: 36.75
U107: TIG POINT | V107: 17.68 | W107: 16.43 | X107: 19.31 | Y107: 31.82 | Z107: 30.02 | AA107: 39.70 | AB107: 27.98 | AC107: 26.71 | AD107: 32.38
U108: TIS POINT | V108: 11.29 | W108: 10.89 | X108: 11.8 | Y108: 20.97 | Z108: 20.27 | AA108: 24.02 | AB108: 33.56 | AC108: 33.24 | AD108: 34.67
U109: EPR | V109: 128.51 | W109: 126.12 | X109: 131.62 | Y109: 132.22 | Z109: 131.96 | AA109: 133.39 | AB109: 133.75 | AC109: 133.58 | AD109: 134.38
U110: DEC | V110: 0.7 | W110: 0.49 | X110: 0.96 | Y110: 3.67 | Z110: 3.28 | AA110: 5.37 | AB110: 9.92 | AC110: 9.41 | AD110: 11.70
U111: SKT | V111: 48.74 | W111: 44.45 | X111: 53.69 | Y111: 46.19 | Z111: 44.42 | AA111: 53.97 | AB111: 52.52 | AC111: 49.84 | AD111: 61.86
U112: PFE | V112: 48.57 | W112: 44.31 | X112: 54.1 | Y112: 56.83 | Z112: 54.21 | AA112: 68.35 | AB112: 57.10 | AC112: 53.32 | AD112: 70.28
U113: Total | V113: 252.35 | W113: 240.02 | X113: 268.39 | Y113: 285.62 | Z113: 278.32 | AA113: 317.66 | AB113: 309.08 | AC113: 300.65 | AD113: 338.46
U114: Board
L4998: 1979-03-26
L4999: =TODAY() -> 2008-11-21
L5000: =L4999-L4998 -> 10833
H5006: days | I5006: points
D5007: TAFMS | E5007: =IF(E10=staff,VLOOKUP(E11,ssgt5,3,FALSE),IF(E10=tech,VLOOKUP(E11,tsgt6,3,FALSE),IF(E10=master,VLOOKUP(E11,tsgt6,3,FALSE)))) -> FALSE | H5007: =DATEDIF(E12,E5007,"d") -> 0 | I5007: =H5007*0.00547945205479452 -> 0 | M5007: =IF(E23="",VLOOKUP(D23,medals,2,FALSE),VLOOKUP(D23,medals,2,FALSE)*E23) ->  | O5007: =IF(I24="","",50) ->  | P5007: =IF(I24="","",I24*O5007) ->  | Q5007: =IF(I24="","",P5007*27) ->  | T5007: Cycle | U5007: DOR | V5007: TIG Required | W5007: TAFMS | X5007: TIS Required | Y5007: PAFSC Skill Level | Z5007: PECD | AA5007: Testing Cycle | AB5007: Promotion Months
D5008: TIG | E5008: =IF(E10=staff,VLOOKUP(E11,ssgt5,2,FALSE),IF(E10=tech,VLOOKUP(E11,tsgt6,2,FALSE),IF(E10=master,VLOOKUP(E11,tsgt6,2,FALSE)))) -> FALSE | H5008: =DATEDIF(E13,E5008,"d") -> 0.00 | I5008: =H5008*0.0164383561643835 -> 0 | O5008: =IF(I25="","",45) ->  | T5008: 08E7 | U5008: 2006-07-01 | V5008: 24 | W5008: 2001-07-01 | X5008: 8 Years | Y5008: 7 Skill Level | Z5008: 2007-12-31 | AA5008: 1 Feb - 31 Mar 08 | AB5008: Aug 08 - Jul 09
E5009: =TODAY() -> 2008-11-21 | O5009: =IF(I26="","",40) ->  | T5009: 08E6 | U5009: 2006-08-01 | V5009: 23 | W5009: 2004-07-01 | X5009: 5 Years | Y5009: 5 Skill Level | Z5009: 2007-12-31 | AA5009: 1 Feb - 31 Mar 08 | AB5009: Aug 08 - Jul 09
E5010: =IF(E10=staff,"SrA",IF(E10=tech,"SSgt",IF(E10=master,"TSgt",IF(E10=senior,"MSgt",IF(E10=chief,"SMSgt"))))) -> FALSE | I5010: =E14-M14 -> 0.00 | O5010: =IF(I27="","",35) ->  | T5010: 08E5 | U5010: 2008-02-01 | V5010: 6 | W5010: 2006-08-01 | X5010: 3 Years | Y5010: 5 Skill Level | Z5010: 2008-03-31 | AA5010: 1 May - 15 Jun 08 | AB5010: Sep 08 - Aug 09
O5011: =IF(I28="","",30) -> 
O5012: =IF(I29="","",25) -> 
O5013: =IF(I30="","",20) -> 
E5014: 1985 | F5014: Jan | G5014: 1 | O5014: =IF(I31="","",15) -> 
E5015: 1986 | F5015: Feb | G5015: 2 | O5015: =IF(I32="","",10) -> 
E5016: 1987 | F5016: Mar | G5016: 3 | O5016: =IF(I33="","",5) -> 
E5017: 1988 | F5017: Apr | G5017: 4 | O5017: =SUM(O5007:O5016) -> 0 | Q5017: =SUM(Q5007:Q5016) -> 0.00
E5018: 1989 | F5018: May | G5018: 5
E5019: 1990 | F5019: Jun | G5019: 6
E5020: 1991 | F5020: Jul | G5020: 7
E5021: 1992 | F5021: Aug | G5021: 8
E5022: 1993 | F5022: Sep | G5022: 9
E5023: 1994 | F5023: Oct | G5023: 10
E5024: 1995 | F5024: Nov | G5024: 11
E5025: 1996 | F5025: Dec | G5025: 12 | Q5025: 0.01 | R5025: Fill your name in only, you passed
E5026: 1997 | G5026: 13 | Q5026: 25 | R5026: Just study the night before
E5027: 1998 | G5027: 14 | Q5027: 40 | R5027: Flip a coin
E5028: 1999 | G5028: 15 | Q5028: 70 | R5028: Hope you studied
E5029: 2000 | G5029: 16 | Q5029: 85 | R5029: Good luck, you're going to need it
E5030: 2001 | G5030: 17 | Q5030: 95 | R5030: Unless your Einstein…..
E5031: 2002 | G5031: 18 | Q5031: 100 | R5031: Nice try, see you next year
E5032: 2003 | G5032: 19
E5033: 2004 | G5033: 20
E5034: 2005 | G5034: 21
E5035: 2006 | G5035: 22
E5036: 2007 | G5036: 23
E5037: 2008 | G5037: 24
E5038: 2009 | G5038: 25
E5039: 2010 | G5039: 26
E5040: 2011 | G5040: 27
E5041: 2012 | G5041: 28
E5042: 2013 | G5042: 29
E5043: 2014 | G5043: 30
E5044: 2015 | G5044: 31
E5045: 2016
E5046: 2017
E5047: 2018
E5048: 2019
E5049: 2020

Sheet E8 E9 WAPS CALC
D6: =IF(E12="","","You have been in the Air Force for "&DATEDIF(E12,E5009,"y")&" years, "&DATEDIF(E12,E5009,"ym")&" months, "&DATEDIF(E12,E5009,"md")&" days"&"") -> 
D7: =IF(E13="","","You have been a "&E5010&" for "&DATEDIF(E13,E5009,"y")&" years, "&DATEDIF(E13,E5009,"ym")&" months, "&DATEDIF(E13,E5009,"md")&" days"&"") -> 
R8: Compare yourslef to last years averages
D10: Select rank your testing for | E10: SMSgt | K10: Board Score Estimator | Q10: # Tested | R10: =IF(AND($E$10="smsgt",$E$11=2009),U102,IF(AND($E$10="cmsgt",$E$11=2009),X102,"")) -> 14404
D11: What year will you test in? | E11: 2009 | K11: Board Member # | M11: Select Score | Q11: Promoted | R11: =IF(AND($E$10="smsgt",$E$11=2009),W102,IF(AND($E$10="cmsgt",$E$11=2009),Z102,"")) -> 1284 | S11: =R11/R10 -> 8.91%
D12: What is your TAFMS? | K12: 1 | N12: 10.00 | Q12: Not Promoted | R12: =IF(AND($E$10="smsgt",$E$11=2009),V102,IF(AND($E$10="cmsgt",$E$11=2009),Y102,"")) -> 13120 | S12: =R12/R10 -> 91.09%
D13: What is your TIG? | K13: 2 | N13: 10 | R13: You | S13: 2008 Selects
D14: What is your est. cutoff score? | K14: 3 | N14: 10.00
D15: See 2008 Cut Off Scores | K15: Composite: | M15: =SUM(M12*15)+(M13*15)+(M14*15) -> 0.0 | Q15: Years TIG | R15: =DATEDIF(E13,T15,"m")/12 -> 109.83 | S15: =IF(AND($E$10="smsgt",$E$11=2009),W104,IF(AND($E$10="cmsgt",$E$11=2009),Z104,"")) -> 4.54 | T15: =IF(AND($E$10="smsgt",$E$11=2009),VLOOKUP($E$11,E8Cycle,13,FALSE),IF(AND($E$10="cmsgt",$E$11=2009),VLOOKUP($E$11,E9Cycle,13,FALSE),"")) -> 2009-11-01
D16: Select AFSC | E16: 9S100 | Q16: Years TIS | R16: =DATEDIF(E12,T16,"m")/12 -> 109.83 | S16: =IF(AND($E$10="smsgt",$E$11=2009),W105,IF(AND($E$10="cmsgt",$E$11=2009),Z105,"")) -> 20.47 | T16: =IF(AND($E$10="smsgt",$E$11=2009),VLOOKUP($E$11,E8Cycle,13,FALSE),IF(AND($E$10="cmsgt",$E$11=2009),VLOOKUP($E$11,E9Cycle,13,FALSE),"")) -> 2009-11-01
D17: 2008 AFSC Cutoff Scores | E17: =IF(E10=senior,VLOOKUP(E16,smsgt,5,FALSE),IF(E10=chief,VLOOKUP(E16,cmsgt,5,FALSE),"")) -> 646.78 | K17: TIS Points | M17: =IF(H63>25,25,H63) -> 25 | Q17: TIG Points | R17: =M18 -> 60 | S17: =IF(AND($E$10="smsgt",$E$11=2009),W107,IF(AND($E$10="cmsgt",$E$11=2009),Z107,"")) -> 33.17
K18: TIG Points | M18: =IF(H64>60,60,H64) -> 60 | Q18: TIS Points | R18: =M17 -> 25 | S18: =IF(AND($E$10="smsgt",$E$11=2009),W108,IF(AND($E$10="cmsgt",$E$11=2009),Z108,"")) -> 21.43
K19: EPR Points | M19: =I34 ->  | Q19: EPR | R19: =I34 ->  | S19: =IF(AND($E$10="smsgt",$E$11=2009),W109,IF(AND($E$10="cmsgt",$E$11=2009),Z109,"")) -> 134.99
K20: Medals Points | M20: =F35 -> 0 | Q20: Decorations | R20: =F35 -> 0 | S20: =IF(AND($E$10="smsgt",$E$11=2009),W110,IF(AND($E$10="cmsgt",$E$11=2009),Z110,"")) -> 21.23
K21: Board Score | M21: =M15 -> 0.0 | Q21: PDG | R21: =E14-M22 -> -85 | S21: =IF(AND($E$10="smsgt",$E$11=2009),W112,IF(AND($E$10="cmsgt",$E$11=2009),Z112,"")) -> 68.99
E22: # | F22: Pts | H22: EPR's | K22: Total Points Scored | M22: =SUM(M17:M21) -> 85 | Q22: Board Score | R22: =M15 -> 0 | S22: =IF(AND($E$10="smsgt",$E$11=2009),W114,IF(AND($E$10="cmsgt",$E$11=2009),Z114,"")) -> 392.86
F23: =IF(ISNA(_med13),"",_med13) ->  | H23: Newest | I23: Rating | K23: Need to score on AFSE | M23: =(E14-M22)/100 -> -85% | Q23: Enter Bday | T23: =IF(AND($E$10="smsgt",$E$11=2009),VLOOKUP($E$11,E8Cycle,13,FALSE),IF(AND($E$10="cmsgt",$E$11=2009),VLOOKUP($E$11,E9Cycle,13,FALSE),"")) -> 2009-11-01
F24: =IF(ISNA(_med14),"",_med14) ->  | H24: 1 | K24: Testing Eligibility | Q24: Age | R24: =DATEDIF(R23,T23,"m")/12 -> 109.83 | S24: =IF(AND($E$10="smsgt",$E$11=2009),W106,IF(AND($E$10="cmsgt",$E$11=2009),Z106,"")) -> 40.45
F25: =IF(ISNA(_med15),"",_med15) ->  | H25: 2 | K25: Cycle | M25: =IF($E$10="sMSgt",VLOOKUP($E$11,E8Cycle,2,FALSE),IF($E$10="cmsgt",VLOOKUP($E$11,E9Cycle,2,FALSE),"")) -> 09E8 | Q25: Total Average | R25: =M17+M18+M19+M20+M21 ->  | S25: =IF(AND($E$10="smsgt",$E$11=2009),W113,IF(AND($E$10="cmsgt",$E$11=2009),Z113,"")) -> 672.67
F26: =IF(ISNA(_med16),"",_med16) ->  | H26: 3 | K26: DOR | M26: =IF($E$10="sMSgt",VLOOKUP($E$11,E8Cycle,3,FALSE),IF($E$10="cmsgt",VLOOKUP($E$11,E9Cycle,3,FALSE),"")) -> 2007-07-01
F27: =IF(ISNA(_med17),"",_med17) ->  | H27: 4 | K27: TIG Required | M27: =IF($E$10="sMSgt",VLOOKUP($E$11,E8Cycle,4,FALSE),IF($E$10="cmsgt",VLOOKUP($E$11,E9Cycle,4,FALSE),"")) -> 20 Months | Q27: ="All dates are calculated based on the first day of the "&M25&" test cycle." -> All dates are calculated based on the first day of the 09E8 test cycle.
F28: =IF(ISNA(_med18),"",_med18) ->  | H28: 5 | K28: TAFMSD | M28: =IF($E$10="sMSgt",VLOOKUP($E$11,E8Cycle,5,FALSE),IF($E$10="cmsgt",VLOOKUP($E$11,E9Cycle,5,FALSE),"")) -> 1999-03-01
F29: =IF(ISNA(_med19),"",_med19) ->  | H29: 6 | K29: TIS Required | M29: =IF($E$10="sMSgt",VLOOKUP($E$11,E8Cycle,6,FALSE),IF($E$10="cmsgt",VLOOKUP($E$11,E9Cycle,6,FALSE),"")) -> 11 Years
F30: =IF(ISNA(_med20),"",_med20) ->  | H30: 7 | K30: PAFSC Skill Level | M30: =IF($E$10="sMSgt",VLOOKUP($E$11,E8Cycle,7,FALSE),IF($E$10="cmsgt",VLOOKUP($E$11,E9Cycle,7,FALSE),"")) -> 7 Skill Level
F31: =IF(ISNA(_med21),"",_med21) ->  | H31: 8 | K31: Prom. Eligible Cutoff Date | M31: =IF($E$10="sMSgt",VLOOKUP($E$11,E8Cycle,8,FALSE),IF($E$10="cmsgt",VLOOKUP($E$11,E9Cycle,8,FALSE),"")) -> 2008-09-30
F32: =IF(ISNA(_med22),"",_med22) ->  | H32: 9 | K32: Testing Cycle | M32: =IF($E$10="sMSgt",VLOOKUP($E$11,E8Cycle,9,FALSE),IF($E$10="cmsgt",VLOOKUP($E$11,E9Cycle,9,FALSE),"")) -> 1 Dec - 31 Dec 08
F33: =IF(ISNA(_med23),"",_med23) ->  | H33: 10 | K33: Promotion Months | M33: =IF($E$10="sMSgt",VLOOKUP($E$11,E8Cycle,10,FALSE),IF($E$10="cmsgt",VLOOKUP($E$11,E9Cycle,10,FALSE),"")) -> Apr 09 - Mar 10
F34: =IF(ISNA(_med24),"",_med24) ->  | H34: Oldest | I34: =IF(ISERROR(Q62/O62),"",Q62/O62) ->  | K34: EPR's Considered | M34: =IF($E$10="sMSgt",VLOOKUP($E$11,E8Cycle,12,FALSE),IF($E$10="cmsgt",VLOOKUP($E$11,E9Cycle,12,FALSE),"")) -> Oct 04 - Sep 09
D35: Total Points (not to exceed 25) | F35: =IF(SUM(F23:F34)>25,25,SUM(F23:F34)) -> 0 | K35: Selections Announced | M35: =IF($E$10="sMSgt",VLOOKUP($E$11,E8Cycle,11,FALSE),IF($E$10="cmsgt",VLOOKUP($E$11,E9Cycle,11,FALSE),"")) -> 2009-03-01
I51: 1 | M51: Medals Data | O51: EPR Data
I52: 2 | J52: 6 | K52: 270 | M52: =IF(E23="",VLOOKUP(D23,medals,2,FALSE),VLOOKUP(D23,medals,2,FALSE)*E23) ->  | O52: =IF(I24="","",50) ->  | P52: =IF(I24="","",I24*O52) ->  | Q52: =IF(I24="","",P52*27) -> 
I53: 3 | J53: 6.5 | K53: 277.5 | O53: =IF(I25="","",45) ->  | P53: =IF(I25="","",I25*O53) ->  | Q53: =IF(I25="","",P53*27) -> 
I54: 4 | J54: 7 | K54: 285 | O54: =IF(I26="","",40) -> 
I55: 5 | J55: 7.5 | K55: 292.5 | O55: =IF(I27="","",35) -> 
I56: 6 | J56: 8 | K56: 300 | O56: =IF(I28="","",30) -> 
I57: 7 | J57: 8.5 | K57: 307.5 | O57: =IF(I29="","",25) -> 
I58: 8 | J58: 9 | K58: 315 | O58: =IF(I30="","",20) -> 
I59: 9 | J59: 9.5 | K59: 322.5 | O59: =IF(I31="","",15) -> 
I60: 10 | J60: 10 | K60: 330 | O60: =IF(I32="","",10) -> 
K61: 337.5 | O61: =IF(I33="","",5) -> 
K62: 345 | O62: =SUM(O52:O61) -> 0 | Q62: =SUM(Q52:Q61) -> 0.00
D63: TAFMS | E63: =IF(E10=senior,VLOOKUP(E11,smsgt6,3,FALSE),IF(E10=chief,VLOOKUP(E11,cmsgt6,3,FALSE))) -> 2010-03-31 | G63: =DATEDIF(E12,E63,"m") -> 1322 | H63: =G63*0.0833333 -> 110.17 | K63: 352.5
D64: TIG | E64: =IF(E10=senior,VLOOKUP(E11,smsgt6,2,FALSE),IF(E10=chief,VLOOKUP(E11,cmsgt6,2,FALSE))) -> 2010-03-01 | G64: =DATEDIF(E13,E64,"m") -> 1322 | H64: =G64*0.5 -> 661.00 | K64: 360
K65: 367.5
K66: 375
K67: 382.5
K68: 390
K69: 397.5
K70: 405
K71: 412.5
K72: 420
K73: 427.5
K74: 435
K75: 442.5
K76: 450
U100: E8 | X100: E9
U101: Eligibles | V101: NonSelects | W101: Selects | X101: Eligibles | Y101: NonSelects | Z101: Selects
T102: Nbr | U102: 14,404 | V102: 13120 | W102: 1284 | X102: 2415 | Y102: 1895 | Z102: 520
T103: Pct | V103: 91.09 | W103: 8.91 | Y103: 78.47 | Z103: 21.53
T104: YRS TIG | U104: 3.52 | V104: 3.42 | W104: 4.54 | X104: 3.14 | Y104: 3.05 | Z104: 3.47
T105: YRS TIS | U105: 20.57 | V105: 20.57 | W105: 20.47 | X105: 23.56 | Y105: 23.7 | Z105: 23.06
T106: AGE | U106: 40.82 | V106: 40.85 | W106: 40.45 | X106: 43.73 | Y106: 43.9 | Z106: 43.07
T107: TIG POINT | U107: 27.08 | V107: 26.49 | W107: 33.17 | X107: 25.34 | Y107: 24.8 | Z107: 27.31
T108: TIS POINT | U108: 21.53 | V108: 21.54 | W108: 21.43 | X108: 23.88 | Y108: 23.96 | Z108: 23.57
T109: EPR | U109: 134.67 | V109: 134.64 | W109: 134.99 | X109: 134.96 | Y109: 134.95 | Z109: 135
T110: DEC | U110: 17.38 | V110: 17.00 | W110: 21.23 | X110: 23.79 | Y110: 23.64 | Z110: 24.34
T111: SKT
T112: PFE | U112: 50.65 | V112: 48.85 | W112: 68.99 | X112: 52.8 | Y112: 48.61 | Z112: 68.09
T113: Total | U113: 583.06 | V113: 574.29 | W113: 672.67 | X113: 609.96 | Y113: 595.7 | Z113: 661.9
T114: Board | U114: 331.76 | V114: 325.78 | W114: 392.86 | X114: 349.19 | Y114: 339.74 | Z114: 383.6
H5006: days | I5006: points
D5007: TAFMS | E5007: =IF(E10=staff,VLOOKUP(E11,ssgt5,3,FALSE),IF(E10=tech,VLOOKUP(E11,tsgt6,3,FALSE),IF(E10=master,VLOOKUP(E11,tsgt6,3,FALSE)))) -> FALSE | H5007: =DATEDIF(E12,E5007,"d") -> 0 | I5007: =H5007*0.00547945205479452 -> 0
D5008: TIG | E5008: =IF(E10=staff,VLOOKUP(E11,ssgt5,2,FALSE),IF(E10=tech,VLOOKUP(E11,tsgt6,2,FALSE),IF(E10=master,VLOOKUP(E11,tsgt6,2,FALSE)))) -> FALSE | H5008: =DATEDIF(E13,E5008,"d") -> 0 | I5008: =H5008*0.0164383561643835 -> 0
E5009: =TODAY() -> 2008-11-21
E5010: =IF(E10=staff,"SrA",IF(E10=tech,"SSgt",IF(E10=master,"TSgt",IF(E10=senior,"MSgt",IF(E10=chief,"SMSgt"))))) -> MSgt | I5010: =E14-M21 -> 0.00
E5014: 1985 | F5014: Jan | G5014: 1
E5015: 1986 | F5015: Feb | G5015: 2
E5016: 1987 | F5016: Mar | G5016: 3
E5017: 1988 | F5017: Apr | G5017: 4
E5018: 1989 | F5018: May | G5018: 5
E5019: 1990 | F5019: Jun | G5019: 6
E5020: 1991 | F5020: Jul | G5020: 7
E5021: 1992 | F5021: Aug | G5021: 8
E5022: 1993 | F5022: Sep | G5022: 9
E5023: 1994 | F5023: Oct | G5023: 10
E5024: 1995 | F5024: Nov | G5024: 11
E5025: 1996 | F5025: Dec | G5025: 12
E5026: 1997 | G5026: 13
E5027: 1998 | G5027: 14
E5028: 1999 | G5028: 15
E5029: 2000 | G5029: 16
E5030: 2001 | G5030: 17
E5031: 2002 | G5031: 18
E5032: 2003 | G5032: 19
E5033: 2004 | G5033: 20
E5034: 2005 | G5034: 21
E5035: 2006 | G5035: 22
E5036: 2007 | G5036: 23
E5037: 2008 | G5037: 24
E5038: 2009 | G5038: 25
E5039: 2010 | G5039: 26
E5040: 2011 | G5040: 27
E5041: 2012 | G5041: 28
E5042: 2013 | G5042: 29
E5043: 2014 | G5043: 30
E5044: 2015 | G5044: 31
E5045: 2016
E5046: 2017
E5047: 2018
E5048: 2019
E5049: 2020

Sheet Medals
B2: Check mark each medal you have and your total points will display below. For additional devices, select how many you have from the drop down boxes. Click each ribbon/medal to view more information about eligibility and descriptions.
E5: ="You have "&SUM(G9:G28) &" medal points" -> You have 0 medal points
D6: =IF(H100>25,"You have maxed out your WAPS medal points","") -> 
D7: Devices | E7: Name of Medal/Ribbon
E9: =IF(F9=TRUE,"You Wish!","Air Force Medal of Honor") -> Air Force Medal of Honor | F9: FALSE | G9: =IF(ISERROR(IF(F9=TRUE,15,"")*H9),"",IF(F9=TRUE,15,"")*H9) ->  | H9: 1
E10: Air Force Cross | F10: FALSE | G10: =IF(ISERROR(IF(F10=TRUE,11,"")*H10),"",IF(F10=TRUE,11,"")*H10) ->  | H10: 1
E11: Defense Distinguished Service Medal | F11: FALSE | G11: =IF(ISERROR(IF(F11=TRUE,9,"")*H11),"",IF(F11=TRUE,9,"")*H11) ->  | H11: 1
E12: Air Force Distinguished Service Medal | F12: FALSE | G12: =IF(ISERROR(IF(F12=TRUE,9,"")*H12),"",IF(F12=TRUE,9,"")*H12) ->  | H12: 1
E13: Silver Star | F13: FALSE | G13: =IF(ISERROR(IF(F13=TRUE,9,"")*H13),"",IF(F13=TRUE,9,"")*H13) ->  | H13: 1
E14: Defense Superior Service Medal | F14: FALSE | G14: =IF(ISERROR(IF(F14=TRUE,7,"")*H14),"",IF(F14=TRUE,7,"")*H14) ->  | H14: 1
E15: Legion of Merit | F15: FALSE | G15: =IF(ISERROR(IF(F15=TRUE,7,"")*H15),"",IF(F15=TRUE,7,"")*H15) ->  | H15: 1
E16: Distinguished Flying Cross | F16: FALSE | G16: =IF(ISERROR(IF(F16=TRUE,7,"")*H16),"",IF(F16=TRUE,7,"")*H16) ->  | H16: 1
E17: Airman's Medal | F17: FALSE | G17: =IF(ISERROR(IF(F17=TRUE,5,"")*H17),"",IF(F17=TRUE,5,"")*H17) ->  | H17: 1
E18: Bronze Star | F18: FALSE | G18: =IF(ISERROR(IF(F18=TRUE,5,"")*H18),"",IF(F18=TRUE,5,"")*H18) ->  | H18: 1
E19: Purple Heart | F19: FALSE | G19: =IF(ISERROR(IF(F19=TRUE,5,"")*H19),"",IF(F19=TRUE,5,"")*H19) ->  | H19: 1
E20: Defense Meritorious Service Medal | F20: FALSE | G20: =IF(ISERROR(IF(F20=TRUE,5,"")*H20),"",IF(F20=TRUE,5,"")*H20) ->  | H20: 1
E21: Meritiorious Service Medal | F21: FALSE | G21: =IF(ISERROR(IF(F21=TRUE,5,"")*H21),"",IF(F21=TRUE,5,"")*H21) ->  | H21: 1
E22: Air Medal | F22: FALSE | G22: =IF(ISERROR(IF(F22=TRUE,3,"")*H22),"",IF(F22=TRUE,3,"")*H22) ->  | H22: 1
E23: Aerial Achievement Medal | F23: FALSE | G23: =IF(ISERROR(IF(F23=TRUE,3,"")*H23),"",IF(F23=TRUE,3,"")*H23) ->  | H23: 1
E24: Joint Service Commendation Medal | F24: FALSE | G24: =IF(ISERROR(IF(F24=TRUE,3,"")*H24),"",IF(F24=TRUE,3,"")*H24) ->  | H24: 1
E25: Air Force Commendation Medal | F25: FALSE | G25: =IF(ISERROR(IF(F25=TRUE,3,"")*H25),"",IF(F25=TRUE,3,"")*H25) ->  | H25: 1
E26: Army Commendation Medal | F26: FALSE | G26: =IF(ISERROR(IF(F26=TRUE,3,"")*H26),"",IF(F26=TRUE,3,"")*H26) ->  | H26: 1
E27: Joint Service Achievement Medal | F27: FALSE | G27: =IF(ISERROR(IF(F27=TRUE,1,"")*H27),"",IF(F27=TRUE,1,"")*H27) ->  | H27: 1
E28: Air Force Achievement Medal | F28: FALSE | G28: =IF(ISERROR(IF(F28=TRUE,1,"")*H28),"",IF(F28=TRUE,1,"")*H28) ->  | H28: 1
E29: Air Force Combat Action Medal | H29: 1
E30: Air Force Presidential Unit Citation | H30: 1
E31: Gallant Unit Citation | H31: 1
E32: Joint Meritorious Unit Award | H32: 1
E33: Air Force Meritorious Unit Award | H33: 1
E34: Outstanding Unit Award | H34: 1
E35: Organizational Excellence Award | H35: 1
E36: Prisoner of War Medal | H36: 1
E37: Combat Readiness Medal | H37: 1
E38: Air Force Good Conduct Medal | F38: FALSE | H38: 1
E39: Army Good Conduct Medal | F39: FALSE | H39: 1
E40: Air Reserve Meritorious Service Medal | H40: 1
E41: Outstanding Airman of The Year | H41: 1
E42: Air Force Recognition Ribbon | H42: 1
E43: American Defense Medal | H43: 1
E44: Women's Army CORPS Service Medal | H44: 1
E45: American Campaign Medal | H45: 1
E46: European/African/Middle Eastern Campaign Medal | H46: 1
E47: Asiatic/Pacific Campaign Medal | F47: FALSE | H47: 1
E48: WWII Victory Medal | H48: 1
E49: Army and Air Force World War II Occupation Medal | H49: 1
E50: Medal for Humane Action | H50: 1
E51: National Defense Service Medal | H51: 1
E52: Korea Service Medal | H52: 1
E53: Antarctica Service Medal | H53: 1
E54: Armed Forces Expeditionary Medal | H54: 1
E55: Vietnam Service Medal | H55: 1
E56: Southwest Asia Service Medal | H56: 1
E57: Kosovo Campaign | H57: 1
E58: Afghanistan Campaign Medal | F58: FALSE | H58: 1
E59: Iraq Campaign Medal | H59: 1
E60: Global War on Terrorism (Expeditionary) | H60: 1
E61: Global War on Terrorism (Service) | H61: 1
E62: Korea Defense Service Medal | H62: 1
E63: Armed Forces Service Medal | H63: 1
E64: Humanitarian Service Medal | H64: 1
E65: Outstanding Volunteer Service Medal | F65: FALSE | H65: 1
E66: Air and Space Campaign | H66: 1
E67: Air Force Overseas Short Tour | F67: FALSE | H67: 1
E68: Air Force Overseas Long Tour | F68: FALSE | H68: 1
E69: Air Force Expeditionary Service Ribbon | F69: FALSE | H69: 1
E70: Air Force Expeditionary Service Ribbon | H70: 1
E71: Longevity Service Award | H71: 1
E72: Military Training Instructor Ribbon | H72: 1
E73: Air Force Recruiting Ribbon | H73: 1
E74: Armed Forces Reserve Medal | H74: 1
E75: NCO Professional Military Education Graduate | H75: 1
E76: Basic Military Training Honor Graduate Ribbon | H76: 1
E77: Small Arms Expert Marksmanship Ribbon | H77: 1
E78: Air Force Training Ribbon | H78: 1
E79: Philippine Defense Medal | H79: 1
E80: Philippine Liberation Medal | H80: 1
E81: Philippine Independence Medal | H81: 1
E82: Philippine Presidential Unit Citation | H82: 1
E83: Korean Presidential Unit Citation | F83: FALSE | H83: 1
E84: Vietnam Gallantry Cross | H84: 1
E85: Vietnam Presidential Unit Citation | H85: 1
E86: Vietnam Wound Medal | F86: FALSE | H86: 1
E87: RVN Armed Forces Honor Medal | H87: 1
E88: Vietnam Gallantry Cross Unit Citation | H88: 1
E89: Vietnam Civil Actions Unit Citation | H89: 1
E90: United Nations Service Medal | H90: 1
E91: United Nations Medal | H91: 1
E92: NATO Medal | H92: 1
E93: NATO Kosovo Medal | F93: FALSE | H93: 1
E94: Republic of Vietnam Campaign Medal | H94: 1
E95: Multinational Force & Observers Medal | H95: 1
E96: Inter-American Defense Board Medal | H96: 1
E97: Kuwait Liberation Medal (Saudi Arabia) | H97: 1
E98: Kuwait Liberation Medal (Emirate of Kuwait) | F98: FALSE | H98: 1
E99: Republic of Korea War Service Medal | F99: FALSE | H99: 1
G100: 0 | H100: =SUM(G9:G28) -> 0
G101: 1
G102: 2
G103: 3
G104: 4
G105: 5
G106: 6
G107: 7
G108: 8
G109: 9
G110: 10

Sheet SSgt Cutoff
A2: PROM | B2: NBR | C2: NBR2 | D2: PROM3 | E2: PROM4
A3: AFSC | B3: ELIG | C3: SEL | D3: OPP | E3: CUTOFF
A4: 00XXX | B4: 318 | C4: 138 | D4: 43.40 | E4: 268.74
A5: 00XXXX | B5: 56 | C5: 29 | D5: 51.79 | E5: 271.79
A6: 1A0X1 | B6: 93 | C6: 40 | D6: 43.01 | E6: 284.01
A7: 1A1X1 | B7: 22 | C7: 10 | D7: 45.45 | E7: 274.69
A8: 1A2X1 | B8: 228 | C8: 116 | D8: 50.88 | E8: 268.47
A9: 1A3X1 | B9: 192 | C9: 83 | D9: 43.23 | E9: 263.14
A10: 1A4X1 | B10: 103 | C10: 53 | D10: 51.46 | E10: 259.19
A11: 1A6X1 | B11: 1 | C11: 1 | D11: 100.00 | E11: 286.86
A12: 1A7X1 | B12: 27 | C12: 14 | D12: 51.85 | E12: 272.75
A13: 1A8X1 | B13: 220 | C13: 113 | D13: 51.36 | E13: 251.06
A14: 1C0X2 | B14: 140 | C14: 61 | D14: 43.57 | E14: 269.20
A15: 1C1X1 | B15: 399 | C15: 200 | D15: 50.13 | E15: 258.73
A16: 1C2X1 | B16: 37 | C16: 19 | D16: 51.35 | E16: 263.56
A17: 1C3X1 | B17: 153 | C17: 78 | D17: 50.98 | E17: 265.63
A18: 1C4X1 | B18: 116 | C18: 59 | D18: 50.86 | E18: 262.33
A19: 1C5X1 | B19: 188 | C19: 82 | D19: 43.62 | E19: 264.50
A20: 1C6X1 | B20: 73 | C20: 32 | D20: 43.84 | E20: 257.37
A21: 1C7X1 | B21: 61 | C21: 26 | D21: 42.62 | E21: 249.17
A22: 1N0X1 | B22: 368 | C22: 183 | D22: 49.73 | E22: 258.81
A23: 1N1X1 | B23: 243 | C23: 123 | D23: 50.62 | E23: 261.56
A24: 1N2X1 | B24: 164 | C24: 72 | D24: 43.90 | E24: 263.99
A25: 1N3X0 | B25: 399 | C25: 201 | D25: 50.38 | E25: 270.77
A26: 1N4X1 | B26: 297 | C26: 150 | D26: 50.51 | E26: 258.69
A27: 1N5X1 | B27: 166 | C27: 84 | D27: 50.60 | E27: 256.15
A28: 1N6X1 | B28: 75 | C28: 33 | D28: 44.00 | E28: 266.86
A29: 1P0X1 | B29: 266 | C29: 101 | D29: 37.97 | E29: 260.66
A30: 1S0X1 | B30: 3 | C30: 1 | D30: 33.33 | E30: 280.71
A31: 1T0X1 | B31: 62 | C31: 27 | D31: 43.55 | E31: 261.46
A32: 1T2X1 | B32: 28 | C32: 14 | D32: 50.00 | E32: 265.67
A33: 1W0X1 | B33: 295 | C33: 128 | D33: 43.39 | E33: 263.91
A34: 2A0X1A | B34: 86 | C34: 37 | D34: 43.02 | E34: 262.71
A35: 2A0X1B | B35: 63 | C35: 27 | D35: 42.86 | E35: 261.40
A36: 2A0X1C | B36: 59 | C36: 26 | D36: 44.07 | E36: 267.26
A37: 2A0X1D | B37: 49 | C37: 21 | D37: 42.86 | E37: 263.65
A38: 2A3X1 | B38: 217 | C38: 96 | D38: 44.24 | E38: 260.56
A39: 2A3X2 | B39: 327 | C39: 142 | D39: 43.43 | E39: 248.68
A40: 2A3X3 | B40: 1126 | C40: 489 | D40: 43.43 | E40: 235.70
A41: 2A5X1J | B41: 587 | C41: 255 | D41: 43.44 | E41: 256.80
A42: 2A5X1K | B42: 152 | C42: 66 | D42: 43.42 | E42: 253.36
A43: 2A5X1L | B43: 268 | C43: 116 | D43: 43.28 | E43: 256.60
A44: 2A5X2 | B44: 59 | C44: 26 | D44: 44.07 | E44: 267.30
A45: 2A5X3A | B45: 300 | C45: 130 | D45: 43.33 | E45: 260.30
A46: 2A5X3B | B46: 187 | C46: 81 | D46: 43.32 | E46: 261.54
A47: 2A5X3C | B47: 119 | C47: 52 | D47: 43.70 | E47: 270.03
A48: 2A5X3D | B48: 20 | C48: 9 | D48: 45.00 | E48: 269.53
A49: 2A6X1A | B49: 538 | C49: 234 | D49: 43.49 | E49: 247.32
A50: 2A6X1B | B50: 126 | C50: 55 | D50: 43.65 | E50: 253.10
A51: 2A6X2 | B51: 386 | C51: 168 | D51: 43.52 | E51: 252.96
A52: 2A6X3 | B52: 115 | C52: 50 | D52: 43.48 | E52: 255.64
A53: 2A6X4 | B53: 234 | C53: 102 | D53: 43.59 | E53: 263.71
A54: 2A6X5 | B54: 245 | C54: 106 | D54: 43.27 | E54: 246.01
A55: 2A6X6 | B55: 470 | C55: 204 | D55: 43.40 | E55: 256.48
A56: 2A7X1 | B56: 102 | C56: 44 | D56: 43.14 | E56: 242.85
A57: 2A7X2 | B57: 138 | C57: 60 | D57: 43.48 | E57: 253.37
A58: 2A7X3 | B58: 522 | C58: 227 | D58: 43.49 | E58: 248.90
A59: 2E0X1 | B59: 78 | C59: 34 | D59: 43.59 | E59: 258.69
A60: 2E1X1 | B60: 288 | C60: 125 | D60: 43.40 | E60: 257.30
A61: 2E1X2 | B61: 171 | C61: 74 | D61: 43.27 | E61: 253.56
A62: 2E1X3 | B62: 278 | C62: 121 | D62: 43.53 | E62: 255.18
A63: 2E1X4 | B63: 58 | C63: 25 | D63: 43.10 | E63: 257.70
A64: 2E2X1 | B64: 387 | C64: 192 | D64: 49.61 | E64: 251.79
A65: 2E6X2 | B65: 35 | C65: 15 | D65: 42.86 | E65: 257.02
A66: 2E6X3 | B66: 163 | C66: 71 | D66: 43.56 | E66: 242.22
A67: 2F0X1 | B67: 440 | C67: 166 | D67: 37.73 | E67: 260.61
A68: 2G0X1 | B68: 66 | C68: 29 | D68: 43.94 | E68: 261.07
A69: 2M0X1 | B69: 153 | C69: 66 | D69: 43.14 | E69: 253.42
A70: 2M0X2 | B70: 76 | C70: 33 | D70: 43.42 | E70: 255.49
A71: 2M0X3 | B71: 56 | C71: 24 | D71: 42.86 | E71: 247.30
A72: 2P0X1 | B72: 92 | C72: 40 | D72: 43.48 | E72: 261.95
A73: 2R0X1 | B73: 56 | C73: 21 | D73: 37.50 | E73: 262.83
A74: 2R1X1 | B74: 93 | C74: 40 | D74: 43.01 | E74: 261.05
A75: 2S0X1 | B75: 620 | C75: 234 | D75: 37.74 | E75: 250.28
A76: 2T0X1 | B76: 153 | C76: 56 | D76: 36.60 | E76: 251.49
A77: 2T1X1 | B77: 273 | C77: 119 | D77: 43.59 | E77: 262.75
A78: 2T2X1 | B78: 603 | C78: 298 | D78: 49.42 | E78: 253.38
A79: 2T3X1 | B79: 184 | C79: 68 | D79: 36.96 | E79: 257.12
A80: 2T3X2A | B80: 38 | C80: 14 | D80: 36.84 | E80: 247.60
A81: 2T3X2C | B81: 59 | C81: 26 | D81: 44.07 | E81: 251.91
A82: 2T3X5 | B82: 28 | C82: 11 | D82: 39.29 | E82: 256.43
A83: 2T3X7 | B83: 25 | C83: 13 | D83: 52.00 | E83: 250.15
A84: 2W0X1 | B84: 909 | C84: 395 | D84: 43.45 | E84: 257.37
A85: 2W1X1 | B85: 902 | C85: 342 | D85: 37.92 | E85: 258.19
A86: 2W2X1 | B86: 93 | C86: 34 | D86: 36.56 | E86: 253.35
A87: 3A0X1 | B87: 498 | C87: 216 | D87: 43.37 | E87: 254.30
A88: 3C0X1 | B88: 513 | C88: 193 | D88: 37.62 | E88: 270.88
A89: 3C0X2 | B89: 123 | C89: 45 | D89: 36.59 | E89: 269.53
A90: 3C1X1 | B90: 37 | C90: 14 | D90: 37.84 | E90: 254.55
A91: 3C1X2 | B91: 3 | C91: 1 | D91: 33.33 | E91: 267.44
A92: 3C2X1 | B92: 209 | C92: 91 | D92: 43.54 | E92: 255.41
A93: 3C3X1 | B93: 42 | C93: 18 | D93: 42.86 | E93: 263.18
A94: 3E0X1 | B94: 162 | C94: 59 | D94: 36.42 | E94: 253.89
A95: 3E0X2 | B95: 170 | C95: 74 | D95: 43.53 | E95: 258.50
A96: 3E1X1 | B96: 169 | C96: 62 | D96: 36.69 | E96: 252.47
A97: 3E2X1 | B97: 106 | C97: 46 | D97: 43.40 | E97: 255.70
A98: 3E3X1 | B98: 120 | C98: 52 | D98: 43.33 | E98: 255.55
A99: 3E4X1 | B99: 136 | C99: 49 | D99: 36.03 | E99: 264.33
A100: 3E4X2 | B100: 42 | C100: 18 | D100: 42.86 | E100: 256.13
A101: 3E4X3 | B101: 18 | C101: 8 | D101: 44.44 | E101: 246.36
A102: 3E5X1 | B102: 114 | C102: 50 | D102: 43.86 | E102: 262.64
A103: 3E6X1 | B103: 30 | C103: 13 | D103: 43.33 | E103: 271.76
A104: 3E7X1 | B104: 437 | C104: 165 | D104: 37.76 | E104: 254.38
A105: 3E8X1 | B105: 133 | C105: 58 | D105: 43.61 | E105: 270.28
A106: 3E9X1 | B106: 152 | C106: 78 | D106: 51.32 | E106: 258.74
A107: 3M0X1 | B107: 361 | C107: 157 | D107: 43.49 | E107: 252.84
A108: 3N0X1 | B108: 25 | C108: 11 | D108: 44.00 | E108: 273.26
A109: 3N0X2 | B109: 63 | C109: 27 | D109: 42.86 | E109: 273.42
A110: 3N0X3 | B110: 20 | C110: 9 | D110: 45.00 | E110: 257.36
A111: 3N0X4 | B111: 66 | C111: 29 | D111: 43.94 | E111: 266.34
A112: 3N1X1 | B112: 54 | C112: 20 | D112: 37.04 | E112: 298.10
A113: 3P0X1 | B113: 3138 | C113: 1363 | D113: 43.44 | E113: 246.64
A114: 3S0X1 | B114: 384 | C114: 167 | D114: 43.49 | E114: 270.50
A115: 3S2X1 | B115: 3 | C115: 1 | D115: 33.33 | E115: 280.45
A116: 4A0X1 | B116: 389 | C116: 169 | D116: 43.44 | E116: 255.58
A117: 4A1X1 | B117: 170 | C117: 86 | D117: 50.59 | E117: 242.84
A118: 4A2X1 | B118: 70 | C118: 26 | D118: 37.14 | E118: 256.82
A119: 4B0X1 | B119: 103 | C119: 38 | D119: 36.89 | E119: 259.54
A120: 4C0X1 | B120: 59 | C120: 30 | D120: 50.85 | E120: 265.06
A121: 4D0X1 | B121: 40 | C121: 20 | D121: 50.00 | E121: 244.27
A122: 4E0X1 | B122: 92 | C122: 40 | D122: 43.48 | E122: 264.47
A123: 4H0X1 | B123: 54 | C123: 28 | D123: 51.85 | E123: 249.06
A124: 4J0X2 | B124: 26 | C124: 11 | D124: 42.31 | E124: 262.32
A125: 4M0X1 | B125: 41 | C125: 15 | D125: 36.59 | E125: 266.53
A126: 4N0X1 | B126: 576 | C126: 250 | D126: 43.40 | E126: 266.68
A127: 4N1X1 | B127: 53 | C127: 23 | D127: 43.40 | E127: 261.35
A128: 4P0X1 | B128: 88 | C128: 32 | D128: 36.36 | E128: 252.26
A129: 4R0X1 | B129: 77 | C129: 28 | D129: 36.36 | E129: 271.23
A130: 4R0X1B | B130: 4 | C130: 2 | D130: 50.00 | E130: 272.54
A131: 4R0X1C | B131: 2 | C131: 1 | D131: 50.00 | E131: 280.62
A132: 4T0X1 | B132: 140 | C132: 61 | D132: 43.57 | E132: 266.24
A133: 4T0X2 | B133: 11 | C133: 5 | D133: 45.45 | E133: 261.10
A134: 4V0X1 | B134: 28 | C134: 12 | D134: 42.86 | E134: 265.86
A135: 4Y0X1 | B135: 250 | C135: 94 | D135: 37.60 | E135: 267.38
A136: 4Y0X2 | B136: 45 | C136: 20 | D136: 44.44 | E136: 272.91
A137: 5J0X1 | B137: 34 | C137: 15 | D137: 44.12 | E137: 262.06
A138: 5R0X1 | B138: 45 | C138: 17 | D138: 37.78 | E138: 268.81
A139: 6C0X1 | B139: 94 | C139: 48 | D139: 51.06 | E139: 256.15
A140: 6F0X1 | B140: 295 | C140: 128 | D140: 43.39 | E140: 268.77
A141: 7S0X1 | B141: 6 | C141: 3 | D141: 50.00 | E141: 287.95
A142: 8A200 | B142: 1 | C142: 1 | D142: 100.00 | E142: 262.08
A143: 8B000 | B143: 2 | C143: 1 | D143: 50.00 | E143: 299.48
A144: 8G000 | B144: 58 | C144: 25 | D144: 43.10 | E144: 259.20
A145: 8M000 | B145: 128 | C145: 48 | D145: 37.50 | E145: 268.10
A146: 8R000 | B146: 63 | C146: 27 | D146: 42.86 | E146: 286.22
A147: 9D000 | B147: 5 | C147: 2 | D147: 40.00 | E147: 278.44
A148: 9L000 | B148: 2 | C148: 1 | D148: 50.00 | E148: 320.04
A149: 9S100 | B149: 54 | C149: 28 | D149: 51.85 | E149: 271.70

Sheet TSgt Cutoff
A2: PROM | B2: NBR | C2: NBR2 | D2: PROM3 | E2: PROM4
A3: AFSC | B3: ELIG | C3: SEL | D3: OPP | E3: CUTOFF
A4: 00XXX | B4: 1910 | C4: 355 | D4: 18.59 | E4: 316.36
A5: 00XXXX | B5: 379 | C5: 83 | D5: 21.90 | E5: 315.81
A6: 1A0X1 | B6: 90 | C6: 20 | D6: 22.22 | E6: 320.32
A7: 1A1X1 | B7: 189 | C7: 35 | D7: 18.52 | E7: 333.59
A8: 1A2X1 | B8: 260 | C8: 49 | D8: 18.85 | E8: 337.56
A9: 1A3X1 | B9: 187 | C9: 41 | D9: 21.93 | E9: 319.74
A10: 1A4X1 | B10: 91 | C10: 20 | D10: 21.98 | E10: 311.55
A11: 1A6X1 | B11: 40 | C11: 7 | D11: 17.50 | E11: 319.89
A12: 1A7X1 | B12: 48 | C12: 9 | D12: 18.75 | E12: 339.32
A13: 1A8X1 | B13: 98 | C13: 22 | D13: 22.45 | E13: 315.17
A14: 1C0X2 | B14: 254 | C14: 45 | D14: 17.72 | E14: 305.15
A15: 1C1X1 | B15: 377 | C15: 70 | D15: 18.57 | E15: 302.75
A16: 1C2X1 | B16: 43 | C16: 9 | D16: 20.93 | E16: 317.86
A17: 1C3X1 | B17: 265 | C17: 49 | D17: 18.49 | E17: 311.34
A18: 1C4X1 | B18: 131 | C18: 29 | D18: 22.14 | E18: 303.45
A19: 1C5X1 | B19: 159 | C19: 35 | D19: 22.01 | E19: 304.28
A20: 1C6X1 | B20: 129 | C20: 24 | D20: 18.60 | E20: 314.53
A21: 1C7X1 | B21: 113 | C21: 21 | D21: 18.58 | E21: 306.29
A22: 1N0X1 | B22: 290 | C22: 64 | D22: 22.07 | E22: 300.97
A23: 1N1X1 | B23: 125 | C23: 27 | D23: 21.60 | E23: 306.09
A24: 1N2X1 | B24: 188 | C24: 35 | D24: 18.62 | E24: 311.29
A25: 1N3X0 | B25: 242 | C25: 53 | D25: 21.90 | E25: 306.04
A26: 1N4X1 | B26: 175 | C26: 38 | D26: 21.71 | E26: 307.35
A27: 1N5X1 | B27: 78 | C27: 17 | D27: 21.79 | E27: 300.30
A28: 1N6X1 | B28: 35 | C28: 8 | D28: 22.86 | E28: 309.06
A29: 1S0X1 | B29: 28 | C29: 5 | D29: 17.86 | E29: 326.03
A30: 1T0X1 | B30: 63 | C30: 14 | D30: 22.22 | E30: 313.35
A31: 1T1X1 | B31: 280 | C31: 51 | D31: 18.21 | E31: 294.81
A32: 1T2X1 | B32: 27 | C32: 6 | D32: 22.22 | E32: 317.40
A33: 1W0X1 | B33: 297 | C33: 53 | D33: 17.85 | E33: 309.39
A34: 2A0X1A | B34: 85 | C34: 15 | D34: 17.65 | E34: 304.24
A35: 2A0X1B | B35: 39 | C35: 7 | D35: 17.95 | E35: 296.08
A36: 2A0X1C | B36: 74 | C36: 14 | D36: 18.92 | E36: 296.93
A37: 2A0X1D | B37: 53 | C37: 10 | D37: 18.87 | E37: 308.86
A38: 2A3X1 | B38: 171 | C38: 32 | D38: 18.71 | E38: 306.52
A39: 2A3X2 | B39: 215 | C39: 40 | D39: 18.60 | E39: 297.91
A40: 2A3X3 | B40: 1360 | C40: 252 | D40: 18.53 | E40: 293.32
A41: 2A5X1 | B41: 1375 | C41: 255 | D41: 18.55 | E41: 298.37
A42: 2A5X2 | B42: 138 | C42: 26 | D42: 18.84 | E42: 309.55
A43: 2A5X3A | B43: 339 | C43: 63 | D43: 18.58 | E43: 305.78
A44: 2A5X3B | B44: 269 | C44: 50 | D44: 18.59 | E44: 309.18
A45: 2A5X3C | B45: 171 | C45: 32 | D45: 18.71 | E45: 301.95
A46: 2A5X3D | B46: 41 | C46: 8 | D46: 19.51 | E46: 298.34
A47: 2A6X1A | B47: 834 | C47: 155 | D47: 18.59 | E47: 294.08
A48: 2A6X1B | B48: 179 | C48: 33 | D48: 18.44 | E48: 299.66
A49: 2A6X2 | B49: 620 | C49: 115 | D49: 18.55 | E49: 308.17
A50: 2A6X3 | B50: 133 | C50: 25 | D50: 18.80 | E50: 302.39
A51: 2A6X4 | B51: 279 | C51: 52 | D51: 18.64 | E51: 310.69
A52: 2A6X5 | B52: 318 | C52: 59 | D52: 18.55 | E52: 300.05
A53: 2A6X6 | B53: 563 | C53: 104 | D53: 18.47 | E53: 304.95
A54: 2A7X1 | B54: 110 | C54: 20 | D54: 18.18 | E54: 297.93
A55: 2A7X2 | B55: 90 | C55: 17 | D55: 18.89 | E55: 306.92
A56: 2A7X3 | B56: 437 | C56: 81 | D56: 18.54 | E56: 299.84
A57: 2A7X4 | B57: 117 | C57: 22 | D57: 18.80 | E57: 303.12
A58: 2E0X1 | B58: 101 | C58: 19 | D58: 18.81 | E58: 309.38
A59: 2E1X1 | B59: 364 | C59: 68 | D59: 18.68 | E59: 304.39
A60: 2E1X2 | B60: 166 | C60: 31 | D60: 18.67 | E60: 301.06
A61: 2E1X3 | B61: 216 | C61: 40 | D61: 18.52 | E61: 312.91
A62: 2E1X4 | B62: 61 | C62: 11 | D62: 18.03 | E62: 316.03
A63: 2E2X1 | B63: 363 | C63: 68 | D63: 18.73 | E63: 308.35
A64: 2E6X2 | B64: 82 | C64: 15 | D64: 18.29 | E64: 298.86
A65: 2E6X3 | B65: 222 | C65: 41 | D65: 18.47 | E65: 289.68
A66: 2F0X1 | B66: 565 | C66: 102 | D66: 18.05 | E66: 301.72
A67: 2G0X1 | B67: 59 | C67: 11 | D67: 18.64 | E67: 327.27
A68: 2M0X1 | B68: 129 | C68: 23 | D68: 17.83 | E68: 302.91
A69: 2M0X2 | B69: 88 | C69: 16 | D69: 18.18 | E69: 320.28
A70: 2M0X3 | B70: 43 | C70: 8 | D70: 18.60 | E70: 312.08
A71: 2P0X1 | B71: 116 | C71: 21 | D71: 18.10 | E71: 305.17
A72: 2R0X1 | B72: 96 | C72: 18 | D72: 18.75 | E72: 300.64
A73: 2R1X1 | B73: 125 | C73: 23 | D73: 18.40 | E73: 309.92
A74: 2S0X1 | B74: 1277 | C74: 230 | D74: 18.01 | E74: 296.77
A75: 2T0X1 | B75: 309 | C75: 55 | D75: 17.80 | E75: 301.24
A76: 2T1X1 | B76: 298 | C76: 55 | D76: 18.46 | E76: 316.03
A77: 2T2X1 | B77: 627 | C77: 113 | D77: 18.02 | E77: 309.71
A78: 2T3X0 | B78: 477 | C78: 87 | D78: 18.24 | E78: 302.61
A79: 2T3X7 | B79: 60 | C79: 11 | D79: 18.33 | E79: 315.75
A80: 2W0X1 | B80: 990 | C80: 178 | D80: 17.98 | E80: 305.22
A81: 2W1X1 | B81: 1085 | C81: 196 | D81: 18.06 | E81: 303.77
A82: 2W2X1 | B82: 114 | C82: 20 | D82: 17.54 | E82: 304.17
A83: 3A0X1 | B83: 1431 | C83: 258 | D83: 18.03 | E83: 300.55
A84: 3C0X1 | B84: 1328 | C84: 239 | D84: 18.00 | E84: 313.01
A85: 3C0X2 | B85: 156 | C85: 28 | D85: 17.95 | E85: 310.78
A86: 3C1X1 | B86: 119 | C86: 21 | D86: 17.65 | E86: 299.03
A87: 3C1X2 | B87: 12 | C87: 2 | D87: 16.67 | E87: 321.81
A88: 3C2X1 | B88: 209 | C88: 37 | D88: 17.70 | E88: 305.91
A89: 3C3X1 | B89: 76 | C89: 14 | D89: 18.42 | E89: 311.93
A90: 3E0X1 | B90: 239 | C90: 44 | D90: 18.41 | E90: 295.80
A91: 3E0X2 | B91: 208 | C91: 39 | D91: 18.75 | E91: 315.20
A92: 3E1X1 | B92: 238 | C92: 42 | D92: 17.65 | E92: 300.91
A93: 3E2X1 | B93: 203 | C93: 38 | D93: 18.72 | E93: 302.78
A94: 3E3X1 | B94: 193 | C94: 36 | D94: 18.65 | E94: 306.38
A95: 3E4X1 | B95: 166 | C95: 30 | D95: 18.07 | E95: 310.30
A96: 3E4X2 | B96: 45 | C96: 8 | D96: 17.78 | E96: 311.02
A97: 3E4X3 | B97: 39 | C97: 7 | D97: 17.95 | E97: 315.53
A98: 3E5X1 | B98: 109 | C98: 20 | D98: 18.35 | E98: 317.48
A99: 3E6X1 | B99: 67 | C99: 12 | D99: 17.91 | E99: 306.29
A100: 3E7X1 | B100: 414 | C100: 77 | D100: 18.60 | E100: 304.49
A101: 3E8X1 | B101: 146 | C101: 27 | D101: 18.49 | E101: 317.72
A102: 3E9X1 | B102: 78 | C102: 17 | D102: 21.79 | E102: 304.05
A103: 3M0X1 | B103: 578 | C103: 104 | D103: 17.99 | E103: 309.25
A104: 3N0X1 | B104: 50 | C104: 9 | D104: 18.00 | E104: 326.75
A105: 3N0X2 | B105: 81 | C105: 15 | D105: 18.52 | E105: 321.97
A106: 3N0X3 | B106: 56 | C106: 10 | D106: 17.86 | E106: 309.83
A107: 3N0X4 | B107: 63 | C107: 12 | D107: 19.05 | E107: 323.05
A108: 3N1X0 | B108: 114 | C108: 20 | D108: 17.54 | E108: 342.60
A109: 3P0X1 | B109: 2499 | C109: 463 | D109: 18.53 | E109: 304.12
A110: 3S0X1 | B110: 1205 | C110: 217 | D110: 18.01 | E110: 322.85
A111: 3S1X1 | B111: 20 | C111: 4 | D111: 20.00 | E111: 334.45
A112: 3S2X1 | B112: 195 | C112: 36 | D112: 18.46 | E112: 334.21
A113: 3S3X1 | B113: 30 | C113: 6 | D113: 20.00 | E113: 320.65
A114: 4A0X1 | B114: 455 | C114: 83 | D114: 18.24 | E114: 311.75
A115: 4A1X1 | B115: 140 | C115: 26 | D115: 18.57 | E115: 307.16
A116: 4A2X1 | B116: 93 | C116: 17 | D116: 18.28 | E116: 302.55
A117: 4B0X1 | B117: 152 | C117: 28 | D117: 18.42 | E117: 297.78
A118: 4C0X1 | B118: 68 | C118: 13 | D118: 19.12 | E118: 319.44
A119: 4D0X1 | B119: 43 | C119: 8 | D119: 18.60 | E119: 310.01
A120: 4E0X1 | B120: 176 | C120: 33 | D120: 18.75 | E120: 307.97
A121: 4H0X1 | B121: 28 | C121: 5 | D121: 17.86 | E121: 313.01
A122: 4J0X2 | B122: 41 | C122: 8 | D122: 19.51 | E122: 307.15
A123: 4J0X2A | B123: 6 | C123: 1 | D123: 16.67 | E123: 341.08
A124: 4M0X1 | B124: 58 | C124: 11 | D124: 18.97 | E124: 301.64
A125: 4N0X1 | B125: 892 | C125: 161 | D125: 18.05 | E125: 305.41
A126: 4N0X1C | B126: 40 | C126: 7 | D126: 17.50 | E126: 316.67
A127: 4N1X1 | B127: 61 | C127: 11 | D127: 18.03 | E127: 304.95
A128: 4N1X1B | B128: 7 | C128: 1 | D128: 14.29 | E128: 330.08
A129: 4N1X1C | B129: 19 | C129: 4 | D129: 21.05 | E129: 323.76
A130: 4N1X1D | B130: 13 | C130: 2 | D130: 15.38 | E130: 312.22
A131: 4P0X1 | B131: 181 | C131: 32 | D131: 17.68 | E131: 304.19
A132: 4R0X1 | B132: 92 | C132: 17 | D132: 18.48 | E132: 312.20
A133: 4R0X1A | B133: 8 | C133: 1 | D133: 12.50 | E133: 320.68
A134: 4R0X1B | B134: 16 | C134: 3 | D134: 18.75 | E134: 318.94
A135: 4R0X1C | B135: 6 | C135: 1 | D135: 16.67 | E135: 333.71
A136: 4T0X1 | B136: 180 | C136: 32 | D136: 17.78 | E136: 305.96
A137: 4T0X2 | B137: 7 | C137: 1 | D137: 14.29 | E137: 366.14
A138: 4V0X1 | B138: 41 | C138: 8 | D138: 19.51 | E138: 311.97
A139: 4V0X1A | B139: 0 | C139: 0 | D139: 0.00 | E139: 0.00
A140: 4Y0X1 | B140: 326 | C140: 58 | D140: 17.79 | E140: 302.51
A141: 4Y0X1H | B141: 0 | C141: 0 | D141: 0.00 | E141: 0.00
A142: 4Y0X2 | B142: 66 | C142: 12 | D142: 18.18 | E142: 333.98
A143: 5J0X1 | B143: 128 | C143: 23 | D143: 17.97 | E143: 309.00
A144: 5R0X1 | B144: 73 | C144: 14 | D144: 19.18 | E144: 314.24
A145: 6C0X1 | B145: 123 | C145: 27 | D145: 21.95 | E145: 312.62
A146: 6F0X1 | B146: 310 | C146: 55 | D146: 17.74 | E146: 313.12
A147: 7S0X1 | B147: 134 | C147: 24 | D147: 17.91 | E147: 313.92
A148: 8A200 | B148: 17 | C148: 3 | D148: 17.65 | E148: 331.72
A149: 8B000 | B149: 147 | C149: 27 | D149: 18.37 | E149: 326.10
A150: 8B100 | B150: 146 | C150: 27 | D150: 18.49 | E150: 326.23
A151: 8B200 | B151: 0 | C151: 0 | D151: 0.00 | E151: 0.00
A152: 8C000 | B152: 1 | C152: 1 | D152: 100.00 | E152: 266.29
A153: 8D000 | B153: 2 | C153: 1 | D153: 50.00 | E153: 304.74
A154: 8G000 | B154: 27 | C154: 5 | D154: 18.52 | E154: 303.82
A155: 8M000 | B155: 76 | C155: 14 | D155: 18.42 | E155: 315.90
A156: 8P000 | B156: 34 | C156: 6 | D156: 17.65 | E156: 328.08
A157: 8P100 | B157: 7 | C157: 1 | D157: 14.29 | E157: 328.80
A158: 8R000 | B158: 545 | C158: 101 | D158: 18.53 | E158: 327.22
A159: 8S000 | B159: 56 | C159: 10 | D159: 17.86 | E159: 328.55
A160: 8T000 | B160: 102 | C160: 19 | D160: 18.63 | E160: 335.42
A161: 9D000 | B161: 93 | C161: 17 | D161: 18.28 | E161: 320.38
A162: 9F000 | B162: 9 | C162: 2 | D162: 22.22 | E162: 321.36
A163: 9L000 | B163: 20 | C163: 5 | D163: 25.00 | E163: 334.59
A164: 9S100 | B164: 58 | C164: 11 | D164: 18.97 | E164: 324.42

Sheet MSgt Cutoff
A2: PROM | B2: NBR | C2: NBR2 | D2: PROM3 | E2: PROM4
A3: AFSC | B3: ELIG | C3: SEL | D3: OPP | E3: CUTOFF
A4: 00XXX | B4: 454 | C4: 102 | D4: 22.47 | E4: 334.16
A5: 00XXXX | B5: 162 | C5: 43 | D5: 26.54 | E5: 339.44
A6: 1A0X1 | B6: 62 | C6: 14 | D6: 22.58 | E6: 346.89
A7: 1A1X1 | B7: 298 | C7: 65 | D7: 21.81 | E7: 344.04
A8: 1A2X1 | B8: 234 | C8: 52 | D8: 22.22 | E8: 353.71
A9: 1A3X1 | B9: 132 | C9: 29 | D9: 21.97 | E9: 334.42
A10: 1A4X1 | B10: 66 | C10: 15 | D10: 22.73 | E10: 342.40
A11: 1A6X1 | B11: 38 | C11: 8 | D11: 21.05 | E11: 342.50
A12: 1A7X1 | B12: 35 | C12: 8 | D12: 22.86 | E12: 345.68
A13: 1A8X1 | B13: 71 | C13: 19 | D13: 26.76 | E13: 331.35
A14: 1C0X2 | B14: 162 | C14: 36 | D14: 22.22 | E14: 327.75
A15: 1C1X1 | B15: 198 | C15: 44 | D15: 22.22 | E15: 328.68
A16: 1C2X1 | B16: 35 | C16: 9 | D16: 25.71 | E16: 331.95
A17: 1C3X1 | B17: 219 | C17: 49 | D17: 22.37 | E17: 330.15
A18: 1C4X1 | B18: 71 | C18: 19 | D18: 26.76 | E18: 328.12
A19: 1C5X1 | B19: 77 | C19: 17 | D19: 22.08 | E19: 334.89
A20: 1C6X1 | B20: 118 | C20: 25 | D20: 21.19 | E20: 336.92
A21: 1C7X1 | B21: 53 | C21: 12 | D21: 22.64 | E21: 313.95
A22: 1N0X1 | B22: 208 | C22: 55 | D22: 26.44 | E22: 315.95
A23: 1N1X1 | B23: 101 | C23: 27 | D23: 26.73 | E23: 312.85
A24: 1N2X1 | B24: 134 | C24: 29 | D24: 21.64 | E24: 322.29
A25: 1N3X0 | B25: 148 | C25: 39 | D25: 26.35 | E25: 316.95
A26: 1N4X1 | B26: 129 | C26: 34 | D26: 26.36 | E26: 321.68
A27: 1N5X1 | B27: 80 | C27: 21 | D27: 26.25 | E27: 313.76
A28: 1N6X1 | B28: 23 | C28: 6 | D28: 26.09 | E28: 334.43
A29: 1S0X1 | B29: 66 | C29: 15 | D29: 22.73 | E29: 323.47
A30: 1T0X1 | B30: 38 | C30: 8 | D30: 21.05 | E30: 346.25
A31: 1T1X1 | B31: 148 | C31: 32 | D31: 21.62 | E31: 316.26
A32: 1T2X1 | B32: 25 | C32: 7 | D32: 28.00 | E32: 317.00
A33: 1W0X1 | B33: 259 | C33: 58 | D33: 22.39 | E33: 321.91
A34: 2A0X1A | B34: 32 | C34: 7 | D34: 21.88 | E34: 328.25
A35: 2A0X1B | B35: 43 | C35: 10 | D35: 23.26 | E35: 318.16
A36: 2A0X1C | B36: 42 | C36: 9 | D36: 21.43 | E36: 316.07
A37: 2A0X1D | B37: 41 | C37: 9 | D37: 21.95 | E37: 345.02
A38: 2A3X1 | B38: 121 | C38: 27 | D38: 22.31 | E38: 321.00
A39: 2A3X2 | B39: 175 | C39: 39 | D39: 22.29 | E39: 311.42
A40: 2A3X3 | B40: 798 | C40: 178 | D40: 22.31 | E40: 306.89
A41: 2A5X1 | B41: 884 | C41: 197 | D41: 22.29 | E41: 316.75
A42: 2A5X2 | B42: 96 | C42: 21 | D42: 21.88 | E42: 325.52
A43: 2A5X3A | B43: 196 | C43: 42 | D43: 21.43 | E43: 324.53
A44: 2A5X3B | B44: 170 | C44: 36 | D44: 21.18 | E44: 327.28
A45: 2A5X3C | B45: 89 | C45: 20 | D45: 22.47 | E45: 330.04
A46: 2A5X3D | B46: 23 | C46: 5 | D46: 21.74 | E46: 315.82
A47: 2A6X1A | B47: 423 | C47: 92 | D47: 21.75 | E47: 322.10
A48: 2A6X1B | B48: 108 | C48: 23 | D48: 21.30 | E48: 320.48
A49: 2A6X2 | B49: 385 | C49: 84 | D49: 21.82 | E49: 324.89
A50: 2A6X3 | B50: 72 | C50: 16 | D50: 22.22 | E50: 318.26
A51: 2A6X4 | B51: 156 | C51: 33 | D51: 21.15 | E51: 333.55
A52: 2A6X5 | B52: 239 | C52: 51 | D52: 21.34 | E52: 317.37
A53: 2A6X6 | B53: 328 | C53: 72 | D53: 21.95 | E53: 323.11
A54: 2A7X1 | B54: 66 | C54: 15 | D54: 22.73 | E54: 319.51
A55: 2A7X2 | B55: 59 | C55: 13 | D55: 22.03 | E55: 319.51
A56: 2A7X3 | B56: 244 | C56: 52 | D56: 21.31 | E56: 324.93
A57: 2A7X4 | B57: 66 | C57: 15 | D57: 22.73 | E57: 326.64
A58: 2E0X1 | B58: 62 | C58: 14 | D58: 22.58 | E58: 328.63
A59: 2E1X1 | B59: 210 | C59: 47 | D59: 22.38 | E59: 322.70
A60: 2E1X2 | B60: 90 | C60: 20 | D60: 22.22 | E60: 315.33
A61: 2E1X3 | B61: 161 | C61: 36 | D61: 22.36 | E61: 331.06
A62: 2E1X4 | B62: 42 | C62: 9 | D62: 21.43 | E62: 326.41
A63: 2E2X1 | B63: 257 | C63: 55 | D63: 21.40 | E63: 325.13
A64: 2E6X2 | B64: 41 | C64: 9 | D64: 21.95 | E64: 312.11
A65: 2E6X3 | B65: 112 | C65: 24 | D65: 21.43 | E65: 313.54
A66: 2F0X1 | B66: 364 | C66: 79 | D66: 21.70 | E66: 327.09
A67: 2G0X1 | B67: 77 | C67: 17 | D67: 22.08 | E67: 342.12
A68: 2M0X1 | B68: 87 | C68: 19 | D68: 21.84 | E68: 327.74
A69: 2M0X2 | B69: 64 | C69: 14 | D69: 21.88 | E69: 338.23
A70: 2M0X3 | B70: 43 | C70: 10 | D70: 23.26 | E70: 341.86
A71: 2P0X1 | B71: 72 | C71: 16 | D71: 22.22 | E71: 330.79
A72: 2R0X1 | B72: 58 | C72: 15 | D72: 25.86 | E72: 318.22
A73: 2R1X1 | B73: 88 | C73: 19 | D73: 21.59 | E73: 334.36
A74: 2S0X1 | B74: 768 | C74: 167 | D74: 21.74 | E74: 315.51
A75: 2T0X1 | B75: 163 | C75: 35 | D75: 21.47 | E75: 323.13
A76: 2T1X1 | B76: 187 | C76: 42 | D76: 22.46 | E76: 342.41
A77: 2T2X1 | B77: 382 | C77: 84 | D77: 21.99 | E77: 325.15
A78: 2T3X0 | B78: 284 | C78: 61 | D78: 21.48 | E78: 320.24
A79: 2T3X7 | B79: 71 | C79: 16 | D79: 22.54 | E79: 324.33
A80: 2W0X1 | B80: 590 | C80: 129 | D80: 21.86 | E80: 327.74
A81: 2W1X1 | B81: 642 | C81: 141 | D81: 21.96 | E81: 327.01
A82: 2W2X1 | B82: 60 | C82: 13 | D82: 21.67 | E82: 324.54
A83: 3A0X1 | B83: 1019 | C83: 223 | D83: 21.88 | E83: 321.57
A84: 3C0X1 | B84: 802 | C84: 175 | D84: 21.82 | E84: 331.61
A85: 3C0X2 | B85: 114 | C85: 25 | D85: 21.93 | E85: 330.16
A86: 3C1X1 | B86: 41 | C86: 9 | D86: 21.95 | E86: 335.20
A87: 3C1X2 | B87: 14 | C87: 3 | D87: 21.43 | E87: 336.17
A88: 3C2X1 | B88: 205 | C88: 44 | D88: 21.46 | E88: 323.81
A89: 3C3X1 | B89: 70 | C89: 18 | D89: 25.71 | E89: 332.76
A90: 3E0X1 | B90: 135 | C90: 29 | D90: 21.48 | E90: 318.90
A91: 3E0X2 | B91: 108 | C91: 24 | D91: 22.22 | E91: 336.87
A92: 3E1X1 | B92: 145 | C92: 31 | D92: 21.38 | E92: 327.20
A93: 3E2X1 | B93: 115 | C93: 26 | D93: 22.61 | E93: 335.79
A94: 3E3X1 | B94: 128 | C94: 29 | D94: 22.66 | E94: 326.43
A95: 3E4X1 | B95: 119 | C95: 25 | D95: 21.01 | E95: 328.20
A96: 3E4X2 | B96: 30 | C96: 7 | D96: 23.33 | E96: 333.39
A97: 3E4X3 | B97: 20 | C97: 4 | D97: 20.00 | E97: 329.10
A98: 3E5X1 | B98: 80 | C98: 18 | D98: 22.50 | E98: 334.60
A99: 3E6X1 | B99: 26 | C99: 6 | D99: 23.08 | E99: 340.19
A100: 3E7X1 | B100: 222 | C100: 50 | D100: 22.52 | E100: 323.24
A101: 3E8X1 | B101: 71 | C101: 19 | D101: 26.76 | E101: 341.18
A102: 3E9X1 | B102: 45 | C102: 12 | D102: 26.67 | E102: 329.95
A103: 3H0X1 | B103: 0 | C103: 0 | D103: 0.00 | E103: 0.00
A104: 3M0X1 | B104: 356 | C104: 78 | D104: 21.91 | E104: 327.41
A105: 3N0X1 | B105: 35 | C105: 8 | D105: 22.86 | E105: 339.17
A106: 3N0X2 | B106: 49 | C106: 11 | D106: 22.45 | E106: 343.33
A107: 3N0X3 | B107: 31 | C107: 7 | D107: 22.58 | E107: 330.32
A108: 3N0X4 | B108: 39 | C108: 9 | D108: 23.08 | E108: 333.20
A109: 3N1X0 | B109: 78 | C109: 17 | D109: 21.79 | E109: 353.74
A110: 3P0X1 | B110: 1279 | C110: 285 | D110: 22.28 | E110: 326.47
A111: 3S0X1 | B111: 750 | C111: 164 | D111: 21.87 | E111: 341.91
A112: 3S1X1 | B112: 31 | C112: 7 | D112: 22.58 | E112: 341.01
A113: 3S2X1 | B113: 213 | C113: 46 | D113: 21.60 | E113: 345.42
A114: 3S3X1 | B114: 86 | C114: 19 | D114: 22.09 | E114: 336.57
A115: 4A0X1 | B115: 290 | C115: 65 | D115: 22.41 | E115: 326.67
A116: 4A1X1 | B116: 95 | C116: 21 | D116: 22.11 | E116: 324.21
A117: 4A2X1 | B117: 52 | C117: 14 | D117: 26.92 | E117: 323.17
A118: 4B0X1 | B118: 101 | C118: 22 | D118: 21.78 | E118: 322.37
A119: 4C0X1 | B119: 65 | C119: 15 | D119: 23.08 | E119: 330.21
A120: 4D0X1 | B120: 32 | C120: 7 | D120: 21.88 | E120: 317.42
A121: 4E0X1 | B121: 125 | C121: 27 | D121: 21.60 | E121: 325.85
A122: 4H0X1 | B122: 24 | C122: 5 | D122: 20.83 | E122: 330.84
A123: 4J0X2 | B123: 41 | C123: 9 | D123: 21.95 | E123: 322.41
A124: 4J0X2A | B124: 5 | C124: 1 | D124: 20.00 | E124: 314.58
A125: 4M0X1 | B125: 28 | C125: 6 | D125: 21.43 | E125: 333.41
A126: 4N0X1 | B126: 476 | C126: 104 | D126: 21.85 | E126: 320.81
A127: 4N0X1C | B127: 104 | C127: 23 | D127: 22.12 | E127: 321.03
A128: 4N1X1 | B128: 44 | C128: 10 | D128: 22.73 | E128: 314.32
A129: 4N1X1B | B129: 2 | C129: 1 | D129: 50.00 | E129: 322.79
A130: 4N1X1C | B130: 20 | C130: 4 | D130: 20.00 | E130: 328.41
A131: 4N1X1D | B131: 14 | C131: 3 | D131: 21.43 | E131: 315.75
A132: 4P0X1 | B132: 94 | C132: 21 | D132: 22.34 | E132: 326.72
A133: 4R0X1 | B133: 48 | C133: 11 | D133: 22.92 | E133: 331.09
A134: 4R0X1A | B134: 10 | C134: 2 | D134: 20.00 | E134: 333.17
A135: 4R0X1B | B135: 15 | C135: 3 | D135: 20.00 | E135: 326.93
A136: 4R0X1C | B136: 9 | C136: 2 | D136: 22.22 | E136: 334.91
A137: 4T0X1 | B137: 103 | C137: 22 | D137: 21.36 | E137: 320.06
A138: 4T0X2 | B138: 6 | C138: 1 | D138: 16.67 | E138: 339.16
A139: 4V0X1 | B139: 36 | C139: 8 | D139: 22.22 | E139: 321.79
A140: 4Y0X1 | B140: 178 | C140: 40 | D140: 22.47 | E140: 325.56
A141: 4Y0X2 | B141: 70 | C141: 15 | D141: 21.43 | E141: 333.62
A142: 5J0X1 | B142: 179 | C142: 39 | D142: 21.79 | E142: 321.08
A143: 5R0X1 | B143: 47 | C143: 12 | D143: 25.53 | E143: 325.29
A144: 6C0X1 | B144: 133 | C144: 35 | D144: 26.32 | E144: 339.61
A145: 6F0X1 | B145: 272 | C145: 59 | D145: 21.69 | E145: 333.96
A146: 7S0X1 | B146: 211 | C146: 56 | D146: 26.54 | E146: 326.61
A147: 8A200 | B147: 25 | C147: 7 | D147: 28.00 | E147: 336.73
A148: 8B000 | B148: 102 | C148: 23 | D148: 22.55 | E148: 346.33
A149: 8B100 | B149: 69 | C149: 15 | D149: 21.74 | E149: 329.16
A150: 8B200 | B150: 22 | C150: 5 | D150: 22.73 | E150: 356.57
A151: 8C000 | B151: 37 | C151: 8 | D151: 21.62 | E151: 346.32
A152: 8D000 | B152: 6 | C152: 1 | D152: 16.67 | E152: 336.07
A153: 8G000 | B153: 13 | C153: 3 | D153: 23.08 | E153: 340.41
A154: 8M000 | B154: 43 | C154: 10 | D154: 23.26 | E154: 338.02
A155: 8P000 | B155: 13 | C155: 3 | D155: 23.08 | E155: 330.90
A156: 8P100 | B156: 18 | C156: 4 | D156: 22.22 | E156: 335.16
A157: 8R000 | B157: 470 | C157: 105 | D157: 22.34 | E157: 342.23
A158: 8S000 | B158: 60 | C158: 13 | D158: 21.67 | E158: 344.96
A159: 8T000 | B159: 145 | C159: 31 | D159: 21.38 | E159: 361.41
A160: 9D000 | B160: 42 | C160: 9 | D160: 21.43 | E160: 332.40
A161: 9F000 | B161: 40 | C161: 9 | D161: 22.50 | E161: 344.49
A162: 9L000 | B162: 10 | C162: 2 | D162: 20.00 | E162: 341.90
A163: 9S100 | B163: 47 | C163: 10 | D163: 21.28 | E163: 337.47

Sheet SMSgt Cutoff
A2: PROM | B2: NBR | C2: NBR2 | D2: PROM3 | E2: PROM4
A3: AFSC | B3: ELIG | C3: SEL | D3: OPP | E3: CUTOFF
A4: 1A0X1 | B4: 61 | C4: 6 | D4: 9.84 | E4: 665.95
A5: 1A1X1 | B5: 235 | C5: 17 | D5: 7.23 | E5: 662.66
A6: 1A2X1 | B6: 175 | C6: 19 | D6: 10.86 | E6: 663.43
A7: 1A3X1 | B7: 92 | C7: 9 | D7: 9.78 | E7: 657.44
A8: 1A4X1 | B8: 59 | C8: 5 | D8: 8.33 | E8: 656.24
A9: 1A6X1 | B9: 27 | C9: 2 | D9: 7.41 | E9: 672.06
A10: 1A7X1 | B10: 36 | C10: 4 | D10: 11.11 | E10: 685.47
A11: 1A8X1 | B11: 50 | C11: 5 | D11: 10.00 | E11: 648.48
A12: 1C0X2 | B12: 96 | C12: 9 | D12: 9.27 | E12: 658.84
A13: 1C1X1 | B13: 111 | C13: 12 | D13: 10.81 | E13: 643.36
A14: 1C2X1 | B14: 21 | C14: 3 | D14: 14.29 | E14: 666.37
A15: 1C3X1 | B15: 150 | C15: 15 | D15: 10.00 | E15: 649.50
A16: 1C4X1 | B16: 32 | C16: 4 | D16: 12.50 | E16: 637.87
A17: 1C5X1 | B17: 67 | C17: 5 | D17: 7.46 | E17: 657.16
A18: 1C6X1 | B18: 86 | C18: 8 | D18: 9.30 | E18: 670.99
A19: 1C7X1 | B19: 28 | C19: 3 | D19: 10.71 | E19: 620.27
A20: 1N0X1 | B20: 107 | C20: 12 | D20: 11.11 | E20: 657.97
A21: 1N1X1 | B21: 42 | C21: 5 | D21: 11.90 | E21: 633.97
A22: 1N2X1 | B22: 86 | C22: 9 | D22: 10.47 | E22: 652.52
A23: 1N3X0 | B23: 61 | C23: 6 | D23: 9.84 | E23: 649.72
A24: 1N4X1 | B24: 86 | C24: 9 | D24: 10.47 | E24: 644.31
A25: 1N5X1 | B25: 35 | C25: 4 | D25: 11.11 | E25: 640.03
A26: 1N6X1 | B26: 11 | C26: 1 | D26: 9.09 | E26: 687.67
A27: 1S0X1 | B27: 49 | C27: 5 | D27: 10.20 | E27: 636.71
A28: 1T0X1 | B28: 17 | C28: 3 | D28: 17.65 | E28: 661.16
A29: 1T1X1 | B29: 74 | C29: 9 | D29: 12.16 | E29: 672.33
A30: 1T2X1 | B30: 12 | C30: 1 | D30: 8.33 | E30: 652.38
A31: 1W0X1 | B31: 141 | C31: 15 | D31: 10.64 | E31: 641.43
A32: 2A0X0 | B32: 114 | C32: 12 | D32: 10.53 | E32: 648.48
A33: 2A3X0 | B33: 637 | C33: 67 | D33: 10.52 | E33: 656.28
A34: 2A5X0 | B34: 849 | C34: 75 | D34: 8.82 | E34: 659.60
A35: 2A6X0 | B35: 417 | C35: 31 | D35: 7.43 | E35: 645.95
A36: 2A6X1 | B36: 317 | C36: 23 | D36: 7.26 | E36: 633.05
A37: 2A6X2 | B37: 247 | C37: 18 | D37: 7.29 | E37: 644.60
A38: 2A7X0 | B38: 250 | C38: 18 | D38: 7.20 | E38: 656.55
A39: 2E1X0 | B39: 333 | C39: 35 | D39: 10.51 | E39: 653.57
A40: 2E2X0 | B40: 241 | C40: 17 | D40: 7.05 | E40: 675.25
A41: 2F0X1 | B41: 195 | C41: 17 | D41: 8.72 | E41: 651.37
A42: 2G0X1 | B42: 66 | C42: 7 | D42: 10.61 | E42: 664.56
A43: 2M0X0 | B43: 150 | C43: 13 | D43: 8.67 | E43: 662.98
A44: 2P0X1 | B44: 52 | C44: 4 | D44: 7.69 | E44: 685.67
A45: 2R0X0 | B45: 93 | C45: 9 | D45: 9.68 | E45: 648.11
A46: 2S0X1 | B46: 431 | C46: 38 | D46: 8.82 | E46: 643.69
A47: 2T0X1 | B47: 74 | C47: 7 | D47: 9.33 | E47: 646.02
A48: 2T1X1 | B48: 80 | C48: 8 | D48: 10.00 | E48: 649.66
A49: 2T2X1 | B49: 214 | C49: 19 | D49: 8.88 | E49: 649.23
A50: 2T3X0 | B50: 160 | C50: 11 | D50: 6.88 | E50: 657.02
A51: 2W0X1 | B51: 355 | C51: 32 | D51: 9.01 | E51: 658.79
A52: 2W1X1 | B52: 411 | C52: 30 | D52: 7.30 | E52: 648.24
A53: 2W2X1 | B53: 41 | C53: 4 | D53: 9.76 | E53: 676.80
A54: 3A0X1 | B54: 579 | C54: 45 | D54: 7.75 | E54: 646.91
A55: 3C0X0 | B55: 521 | C55: 40 | D55: 7.66 | E55: 660.45
A56: 3C1X1 | B56: 35 | C56: 3 | D56: 8.57 | E56: 635.21
A57: 3C1X2 | B57: 11 | C57: 1 | D57: 9.09 | E57: 660.27
A58: 3C2X1 | B58: 84 | C58: 7 | D58: 8.33 | E58: 673.58
A59: 3C3X1 | B59: 42 | C59: 4 | D59: 9.52 | E59: 679.57
A60: 3E0X0 | B60: 120 | C60: 11 | D60: 9.09 | E60: 677.79
A61: 3E1X1 | B61: 82 | C61: 6 | D61: 7.32 | E61: 658.01
A62: 3E2X1 | B62: 59 | C62: 5 | D62: 8.47 | E62: 667.60
A63: 3E3X1 | B63: 77 | C63: 6 | D63: 7.79 | E63: 663.92
A64: 3E4X0 | B64: 88 | C64: 7 | D64: 7.95 | E64: 651.93
A65: 3E5X1 | B65: 44 | C65: 4 | D65: 9.09 | E65: 676.95
A66: 3E6X1 | B66: 31 | C66: 2 | D66: 6.25 | E66: 673.22
A67: 3E7X1 | B67: 106 | C67: 11 | D67: 10.38 | E67: 626.78
A68: 3E8X1 | B68: 18 | C68: 3 | D68: 16.67 | E68: 644.87
A69: 3E9X1 | B69: 34 | C69: 4 | D69: 11.76 | E69: 623.65
A70: 3M0X1 | B70: 206 | C70: 21 | D70: 10.19 | E70: 653.82
A71: 3N0X0 | B71: 44 | C71: 3 | D71: 6.82 | E71: 633.34
A72: 3N1X1 | B72: 55 | C72: 4 | D72: 7.27 | E72: 651.59
A73: 3P0X1 | B73: 608 | C73: 64 | D73: 10.50 | E73: 644.82
A74: 3S0X1 | B74: 437 | C74: 39 | D74: 8.90 | E74: 658.37
A75: 3S1X1 | B75: 37 | C75: 3 | D75: 8.11 | E75: 649.40
A76: 3S2X1 | B76: 168 | C76: 15 | D76: 8.93 | E76: 663.97
A77: 3S3X1 | B77: 89 | C77: 8 | D77: 8.99 | E77: 666.24
A78: 3V0X0 | B78: 56 | C78: 5 | D78: 8.93 | E78: 670.34
A79: 4A0X1 | B79: 151 | C79: 13 | D79: 8.61 | E79: 650.97
A80: 4A1X1 | B80: 52 | C80: 4 | D80: 7.69 | E80: 643.24
A81: 4A2X1 | B81: 25 | C81: 2 | D81: 8.00 | E81: 689.56
A82: 4B0X1 | B82: 52 | C82: 6 | D82: 11.54 | E82: 643.29
A83: 4C0X1 | B83: 38 | C83: 2 | D83: 5.26 | E83: 701.51
A84: 4D0X1 | B84: 20 | C84: 2 | D84: 10.00 | E84: 699.29
A85: 4E0X1 | B85: 70 | C85: 6 | D85: 8.57 | E85: 665.05
A86: 4H0X1 | B86: 14 | C86: 2 | D86: 14.29 | E86: 654.67
A87: 4J0X0 | B87: 22 | C87: 2 | D87: 9.09 | E87: 639.72
A88: 4M0X1 | B88: 20 | C88: 2 | D88: 10.00 | E88: 695.77
A89: 4N0X1 | B89: 315 | C89: 23 | D89: 7.30 | E89: 643.95
A90: 4N1X1 | B90: 41 | C90: 5 | D90: 12.20 | E90: 645.17
A91: 4P0X1 | B91: 37 | C91: 4 | D91: 10.81 | E91: 641.93
A92: 4R0X0 | B92: 41 | C92: 3 | D92: 7.32 | E92: 668.07
A93: 4T0X0 | B93: 77 | C93: 6 | D93: 7.79 | E93: 651.55
A94: 4V0X0 | B94: 22 | C94: 2 | D94: 9.09 | E94: 688.38
A95: 4Y0X0 | B95: 141 | C95: 11 | D95: 7.80 | E95: 642.23
A96: 5J0X1 | B96: 104 | C96: 11 | D96: 10.58 | E96: 654.44
A97: 5R0X1 | B97: 27 | C97: 3 | D97: 11.11 | E97: 622.46
A98: 6C0X1 | B98: 104 | C98: 11 | D98: 10.58 | E98: 661.84
A99: 6F0X1 | B99: 176 | C99: 16 | D99: 9.09 | E99: 654.52
A100: 7S0X1 | B100: 80 | C100: 8 | D100: 10.00 | E100: 635.47
A101: 8A100 | B101: 56 | C101: 5 | D101: 8.93 | E101: 703.25
A102: 8A200 | B102: 18 | C102: 2 | D102: 11.11 | E102: 691.26
A103: 8B000 | B103: 31 | C103: 2 | D103: 6.45 | E103: 643.44
A104: 8B100 | B104: 21 | C104: 2 | D104: 9.52 | E104: 626.58
A105: 8B200 | B105: 41 | C105: 4 | D105: 9.76 | E105: 643.36
A106: 8C000 | B106: 48 | C106: 4 | D106: 8.33 | E106: 643.99
A107: 8D000 | B107: 3 | C107: 1 | D107: 33.33 | E107: 559.22
A108: 8F000 | B108: 659 | C108: 59 | D108: 8.95 | E108: 674.23
A109: 8G000 | B109: 10 | C109: 1 | D109: 10.00 | E109: 638.49
A110: 8J000 | B110: 2 | C110: 1 | D110: 50.00 | E110: 652.19
A111: 8M000 | B111: 22 | C111: 2 | D111: 9.09 | E111: 690.17
A112: 8P000 | B112: 9 | C112: 1 | D112: 11.11 | E112: 643.73
A113: 8P100 | B113: 21 | C113: 2 | D113: 9.52 | E113: 651.47
A114: 8R000 | B114: 259 | C114: 19 | D114: 7.34 | E114: 653.98
A115: 8S000 | B115: 12 | C115: 1 | D115: 8.33 | E115: 679.18
A116: 8T000 | B116: 93 | C116: 6 | D116: 6.45 | E116: 670.61
A117: 9D000 | B117: 26 | C117: 2 | D117: 7.69 | E117: 626.89
A118: 9L000 | B118: 8 | C118: 1 | D118: 12.50 | E118: 638.25
A119: 9S100 | B119: 31 | C119: 4 | D119: 12.90 | E119: 646.78

Sheet CMSgt Cutoff
A2: PROM | B2: NBR | C2: NBR | D2: PROM | E2: PROM
A3: AFSC | B3: ELIG | C3: SEL | D3: OPP | E3: CUTOFF
A4: 1A0X0 | B4: 16 | C4: 3 | D4: 18.75 | E4: 646.83
A5: 1A1X0 | B5: 38 | C5: 8 | D5: 21.05 | E5: 645.66
A6: 1A2X0 | B6: 31 | C6: 7 | D6: 22.58 | E6: 646.83
A7: 1A3X0 | B7: 11 | C7: 2 | D7: 18.18 | E7: 688.66
A8: 1A4X0 | B8: 7 | C8: 1 | D8: 14.29 | E8: 672.16
A9: 1A6X0 | B9: 3 | C9: 1 | D9: 33.33 | E9: 594.00
A10: 1A7X0 | B10: 4 | C10: 1 | D10: 25.00 | E10: 636.50
A11: 1A8X0 | B11: 10 | C11: 2 | D11: 20.00 | E11: 641.25
A12: 1C0X0 | B12: 20 | C12: 4 | D12: 20.00 | E12: 646.58
A13: 1C1X0 | B13: 20 | C13: 4 | D13: 20.00 | E13: 624.58
A14: 1C2X0 | B14: 3 | C14: 2 | D14: 66.67 | E14: 649.16
A15: 1C3X0 | B15: 23 | C15: 5 | D15: 21.74 | E15: 647.08
A16: 1C4X0 | B16: 2 | C16: 2 | D16: 100.00 | E16: 578.75
A17: 1C5X0 | B17: 11 | C17: 3 | D17: 27.27 | E17: 658.25
A18: 1C6X0 | B18: 9 | C18: 2 | D18: 22.22 | E18: 652.25
A19: 1C7X0 | B19: 9 | C19: 3 | D19: 33.33 | E19: 643.50
A20: 1N0X0 | B20: 75 | C20: 16 | D20: 21.33 | E20: 646.33
A21: 1P0X0 | B21: 21 | C21: 4 | D21: 19.05 | E21: 675.50
A22: 1S0X0 | B22: 5 | C22: 1 | D22: 20.00 | E22: 661.00
A23: 1T0X0 | B23: 5 | C23: 1 | D23: 20.00 | E23: 631.25
A24: 1T2X0 | B24: 6 | C24: 2 | D24: 33.33 | E24: 666.58
A25: 1W0X0 | B25: 25 | C25: 5 | D25: 20.00 | E25: 658.91
A26: 2A3X0 | B26: 253 | C26: 54 | D26: 21.34 | E26: 637.08
A27: 2A6X0 | B27: 204 | C27: 39 | D27: 19.12 | E27: 661.41
A28: 2E0X0 | B28: 92 | C28: 18 | D28: 19.57 | E28: 648.41
A29: 2F0X0 | B29: 23 | C29: 6 | D29: 26.09 | E29: 642.00
A30: 2G0X0 | B30: 14 | C30: 3 | D30: 21.43 | E30: 651.00
A31: 2M0X0 | B31: 27 | C31: 7 | D31: 25.93 | E31: 639.16
A32: 2P0X0 | B32: 16 | C32: 3 | D32: 18.75 | E32: 667.50
A33: 2R0X0 | B33: 19 | C33: 4 | D33: 21.05 | E33: 644.50
A34: 2S0X0 | B34: 69 | C34: 15 | D34: 21.74 | E34: 632.83
A35: 2T0X0 | B35: 17 | C35: 5 | D35: 29.41 | E35: 627.08
A36: 2T1X0 | B36: 11 | C36: 2 | D36: 18.18 | E36: 666.00
A37: 2T2X0 | B37: 29 | C37: 6 | D37: 20.69 | E37: 654.00
A38: 2T3X0 | B38: 18 | C38: 4 | D38: 22.22 | E38: 638.00
A39: 2W0X0 | B39: 58 | C39: 15 | D39: 25.86 | E39: 644.00
A40: 2W1X0 | B40: 72 | C40: 13 | D40: 18.06 | E40: 653.50
A41: 2W2X0 | B41: 6 | C41: 1 | D41: 16.67 | E41: 693.75
A42: 3A0X0 | B42: 112 | C42: 22 | D42: 19.64 | E42: 634.33
A43: 3C0X0 | B43: 141 | C43: 27 | D43: 19.15 | E43: 650.50
A44: 3E0X0 | B44: 81 | C44: 17 | D44: 20.99 | E44: 656.50
A45: 3E7X0 | B45: 21 | C45: 4 | D45: 19.05 | E45: 660.08
A46: 3E8X0 | B46: 4 | C46: 1 | D46: 25.00 | E46: 630.50
A47: 3E9X0 | B47: 7 | C47: 1 | D47: 14.29 | E47: 623.00
A48: 3M0X0 | B48: 32 | C48: 7 | D48: 21.88 | E48: 636.00
A49: 3N0X0 | B49: 27 | C49: 7 | D49: 25.93 | E49: 614.00
A50: 3N1X0 | B50: 10 | C50: 3 | D50: 30.00 | E50: 640.50
A51: 3P0X0 | B51: 83 | C51: 22 | D51: 26.51 | E51: 633.50
A52: 3S0X0 | B52: 93 | C52: 18 | D52: 19.35 | E52: 626.00
A53: 3S1X0 | B53: 7 | C53: 1 | D53: 14.29 | E53: 618.50
A54: 3S2X0 | B54: 29 | C54: 5 | D54: 17.24 | E54: 636.00
A55: 4A0X0 | B55: 34 | C55: 7 | D55: 20.59 | E55: 661.50
A56: 4A1X0 | B56: 8 | C56: 2 | D56: 25.00 | E56: 649.00
A57: 4A2X0 | B57: 6 | C57: 1 | D57: 16.67 | E57: 662.00
A58: 4B0X0 | B58: 8 | C58: 2 | D58: 25.00 | E58: 671.00
A59: 4C0X0 | B59: 2 | C59: 1 | D59: 50.00 | E59: 665.50
A60: 4D0X0 | B60: 6 | C60: 1 | D60: 16.67 | E60: 640.50
A61: 4E0X0 | B61: 11 | C61: 2 | D61: 18.18 | E61: 650.00
A62: 4H0X0 | B62: 1 | C62: 1 | D62: 100.00 | E62: 632.50
A63: 4J0X0 | B63: 4 | C63: 1 | D63: 25.00 | E63: 654.00
A64: 4M0X0 | B64: 3 | C64: 1 | D64: 33.33 | E64: 667.50
A65: 4N0X0 | B65: 49 | C65: 11 | D65: 22.45 | E65: 648.00
A66: 4P0X0 | B66: 5 | C66: 1 | D66: 20.00 | E66: 668.00
A67: 4R0X0 | B67: 7 | C67: 1 | D67: 14.29 | E67: 640.66
A68: 4T0X0 | B68: 15 | C68: 3 | D68: 20.00 | E68: 644.75
A69: 4V0X0 | B69: 1 | C69: 1 | D69: 100.00 | E69: 589.00
A70: 4Y0X0 | B70: 23 | C70: 5 | D70: 21.74 | E70: 653.66
A71: 5J0X0 | B71: 17 | C71: 4 | D71: 23.53 | E71: 631.00
A72: 5R0X0 | B72: 1 | C72: 1 | D72: 100.00 | E72: 609.00
A73: 6C0X0 | B73: 15 | C73: 3 | D73: 20.00 | E73: 652.16
A74: 6F0X0 | B74: 35 | C74: 7 | D74: 20.00 | E74: 642.00
A75: 7S0X0 | B75: 6 | C75: 1 | D75: 16.67 | E75: 678.08
A76: 8A100 | B76: 8 | C76: 2 | D76: 25.00 | E76: 636.50
A77: 8A200 | B77: 1 | C77: 1 | D77: 100.00 | E77: 614.00
A78: 8B000 | B78: 7 | C78: 1 | D78: 14.29 | E78: 691.58
A79: 8B100 | B79: 2 | C79: 1 | D79: 50.00 | E79: 686.00
A80: 8B200 | B80: 1 | C80: 1 | D80: 100.00 | E80: 652.08
A81: 8C000 | B81: 4 | C81: 1 | D81: 25.00 | E81: 622.00
A82: 8F000 | B82: 102 | C82: 22 | D82: 21.57 | E82: 644.00
A83: 8G000 | B83: 2 | C83: 1 | D83: 50.00 | E83: 633.58
A84: 8M000 | B84: 8 | C84: 2 | D84: 25.00 | E84: 650.00
A85: 8P000 | B85: 5 | C85: 1 | D85: 20.00 | E85: 705.50
A86: 8P100 | B86: 13 | C86: 3 | D86: 23.08 | E86: 639.41
A87: 8R000 | B87: 36 | C87: 8 | D87: 22.22 | E87: 643.25
A88: 8T000 | B88: 32 | C88: 7 | D88: 21.88 | E88: 633.33
A89: 9L000 | B89: 1 | C89: 1 | D89: 100.00 | E89: 551.41
A90: 9S100 | B90: 7 | C90: 2 | D90: 28.57 | E90: 635.50

Sheet Reference Sheet (hidden)
A1: TAFMS | B1: TIG | H1: SSgt | K1: TSgt/MSgt | N1: E8 | Q1: E9
A2: =TODAY() -> 2008-11-21 | B2: =TODAY() -> 2008-11-21 | I2: 2009-08-01 | J2: 2009-08-31 | L2: 2009-07-01 | M2: 2009-07-31 | N2: 2008 | O2: 2009-03-01 | P2: 2009-03-31 | Q2: 2008 | R2: 2009-12-01 | S2: 2009-12-31 | Y2: Cycle | Z2: DOR | AA2: TIG Required | AB2: TAFMSD | AC2: TIS Required | AD2: PAFSC | AE2: PECD | AF2: Testing Cycle | AG2: Promotion Months | AH2: Announcements | AI2: EPRs Consdrd | AJ2: 1st Test date
A3: =(YEAR('Reference Sheet'!A2)-YEAR(#REF!))*12+MONTH('Reference Sheet'!A2)-MONTH(#REF!) ->  | B3: =(YEAR(B2)-YEAR(#REF!))*12+MONTH(B2)-MONTH(#REF!) ->  | H3: 2009 | I3: 2010-08-01 | J3: 2010-08-31 | K3: 2009 | L3: 2010-07-01 | M3: 2010-07-31 | N3: 2009 | O3: 2010-03-01 | P3: 2010-03-31 | Q3: 2009 | R3: 2010-12-01 | S3: 2010-12-31 | T3: 1 | W3: E7Cycle | X3: 2008 | Y3: 08E7 | Z3: 2006-07-01 | AA3: 24 Months | AB3: 2001-07-01 | AC3: 8 Years | AD3: 7 Skill Level | AE3: 2007-12-31 | AF3: 1 Feb - 31 Mar 08 | AG3: Aug 08 - Jul 09 | AH3: 2008-06-08 | AI3: Jan 03 - Dec 07 | AJ3: 2008-02-01
A4: =(A3)*(1/6) ->  | B4: =(B3)*(1/2) ->  | H4: 2010 | I4: 2011-08-01 | J4: 2011-08-31 | K4: 2010 | L4: 2011-07-01 | M4: 2011-07-31 | N4: 2010 | O4: 2011-03-01 | P4: 2011-03-31 | Q4: 2010 | R4: 2011-12-01 | S4: 2011-12-31 | T4: 2 | U4: 2008 | X4: 2009 | Y4: 09E7 | Z4: 2007-07-01 | AA4: 24 Months | AB4: 2002-07-01 | AC4: 8 Years | AD4: 7 Skill Level | AE4: 2008-12-31 | AF4: 1 Feb - 31 Mar 09 | AG4: Aug 09 - Jul 10 | AH4: 2009-06-09 | AI4: Jan 04 - Dec 08 | AJ4: 2009-02-01
H5: 2011 | I5: 2012-08-01 | J5: 2012-08-31 | K5: 2011 | L5: 2012-07-01 | M5: 2012-07-31 | N5: 2011 | O5: 2012-03-01 | P5: 2012-03-31 | Q5: 2011 | R5: 2012-12-01 | S5: 2012-12-31 | T5: 3 | U5: 2009 | X5: 2010 | Y5: 10E7 | Z5: 2008-07-01 | AA5: 24 Months | AB5: 2003-07-01 | AC5: 8 Years | AD5: 7 Skill Level | AE5: 2009-12-31 | AF5: 1 Feb - 31 Mar 10 | AG5: Aug 10 - Jul 11 | AH5: 2010-06-10 | AI5: Jan 05 - Dec 09 | AJ5: 2010-02-01
H6: 2012 | I6: 2013-08-01 | J6: 2013-08-31 | K6: 2012 | L6: 2013-07-01 | M6: 2013-07-31 | N6: 2012 | O6: 2013-03-01 | P6: 2013-03-31 | Q6: 2012 | R6: 2013-12-01 | S6: 2013-12-31 | T6: 4 | U6: 2010 | X6: 2011 | Y6: 11E7 | Z6: 2009-07-01 | AA6: 24 Months | AB6: 2004-07-01 | AC6: 8 Years | AD6: 7 Skill Level | AE6: 2010-12-31 | AF6: 1 Feb - 31 Mar 11 | AG6: Aug 11 - Jul 12 | AH6: 2011-06-11 | AI6: Jan 06 - Dec 10 | AJ6: 2011-02-01
H7: 2013 | I7: 2014-08-01 | J7: 2014-08-31 | K7: 2013 | L7: 2014-07-01 | M7: 2014-07-31 | N7: 2013 | O7: 2014-03-01 | P7: 2014-03-31 | Q7: 2013 | R7: 2014-12-01 | S7: 2014-12-31 | T7: 5 | U7: 2011 | X7: 2012 | Y7: 12E7 | Z7: 2010-07-01 | AA7: 24 Months | AB7: 2005-07-01 | AC7: 8 Years | AD7: 7 Skill Level | AE7: 2011-12-31 | AF7: 1 Feb - 31 Mar 12 | AG7: Aug 12 - Jul 13 | AH7: 2012-06-11 | AI7: Jan 07 - Dec 11 | AJ7: 2012-02-01
H8: 2014 | I8: 2015-08-01 | J8: 2015-08-31 | K8: 2014 | L8: 2015-07-01 | M8: 2015-07-31 | N8: 2014 | O8: 2015-03-01 | P8: 2015-03-31 | Q8: 2014 | R8: 2015-12-01 | S8: 2015-12-31 | T8: 6 | U8: 2012 | X8: 2013 | Y8: 13E7 | Z8: 2011-07-01 | AA8: 24 Months | AB8: 2006-07-01 | AC8: 8 Years | AD8: 7 Skill Level | AE8: 2012-12-31 | AF8: 1 Feb - 31 Mar 13 | AG8: Aug 13 - Jul 14 | AH8: 2013-06-12 | AI8: Jan 08 - Dec 12 | AJ8: 2013-02-01
H9: 2015 | I9: 2016-08-01 | J9: 2016-08-31 | K9: 2015 | L9: 2016-07-01 | M9: 2016-07-31 | N9: 2015 | O9: 2016-03-01 | P9: 2016-03-31 | Q9: 2015 | R9: 2016-12-01 | S9: 2016-12-31 | T9: 7 | U9: 2013 | X9: 2014 | Y9: 14E7 | Z9: 2012-07-01 | AA9: 24 Months | AB9: 2007-07-01 | AC9: 8 Years | AD9: 7 Skill Level | AE9: 2013-12-31 | AF9: 1 Feb - 31 Mar 14 | AG9: Aug 14 - Jul 15 | AH9: 2014-06-13 | AI9: Jan 09 - Dec 13 | AJ9: 2014-02-01
H10: 2016 | I10: 2017-08-01 | J10: 2017-08-31 | K10: 2016 | L10: 2017-07-01 | M10: 2017-07-31 | N10: 2016 | O10: 2017-03-01 | P10: 2017-03-31 | Q10: 2016 | R10: 2017-12-01 | S10: 2017-12-31 | T10: 8 | U10: 2014 | X10: 2015 | Y10: 15E7 | Z10: 2013-07-01 | AA10: 24 Months | AB10: 2008-07-01 | AC10: 8 Years | AD10: 7 Skill Level | AE10: 2014-12-31 | AF10: 1 Feb - 31 Mar 15 | AG10: Aug 15 - Jul 16 | AH10: 2015-06-14 | AI10: Jan 10 - Dec 14 | AJ10: 2015-02-01
H11: 2017 | I11: 2018-08-01 | J11: 2018-08-31 | K11: 2017 | L11: 2018-07-01 | M11: 2018-07-31 | N11: 2017 | O11: 2018-03-01 | P11: 2018-03-31 | Q11: 2017 | R11: 2018-12-01 | S11: 2018-12-31 | T11: 9 | U11: 2015 | X11: 2016 | Y11: 16E7 | Z11: 2014-07-01 | AA11: 24 Months | AB11: 2009-07-01 | AC11: 8 Years | AD11: 7 Skill Level | AE11: 2015-12-31 | AF11: 1 Feb - 31 Mar 16 | AG11: Aug 16 - Jul 17 | AH11: 2016-06-14 | AI11: Jan 11 - Dec 15 | AJ11: 2016-02-01
A12: Decorations | H12: 2018 | I12: 2019-08-01 | J12: 2019-08-31 | K12: 2018 | L12: 2019-07-01 | M12: 2019-07-31 | N12: 2018 | O12: 2019-03-01 | P12: 2019-03-31 | Q12: 2018 | R12: 2019-12-01 | S12: 2019-12-31 | T12: 10 | U12: 2016 | X12: 2017 | Y12: 17E7 | Z12: 2015-07-01 | AA12: 24 Months | AB12: 2010-07-01 | AC12: 8 Years | AD12: 7 Skill Level | AE12: 2016-12-31 | AF12: 1 Feb - 31 Mar 17 | AG12: Aug 17 - Jul 18 | AH12: 2017-06-15 | AI12: Jan 12 - Dec 16 | AJ12: 2017-02-01
A13: 1 | B13: AF Achievement | C13: 1 | E13: Ranks | H13: 2019 | I13: 2020-08-01 | J13: 2020-08-31 | K13: 2019 | L13: 2020-07-01 | M13: 2020-07-31 | N13: 2019 | O13: 2020-03-01 | P13: 2020-03-31 | Q13: 2019 | R13: 2020-12-01 | S13: 2020-12-31 | T13: 11 | U13: 2017 | X13: 2018 | Y13: 18E7 | Z13: 2016-07-01 | AA13: 24 Months | AB13: 2011-07-01 | AC13: 8 Years | AD13: 7 Skill Level | AE13: 2017-12-31 | AF13: 1 Feb - 31 Mar 18 | AG13: Aug 18 - Jul 19 | AH13: 2018-06-16 | AI13: Jan 13 - Dec 17 | AJ13: 2018-02-01
A14: 2 | B14: Army Achievement | C14: 1 | D14: 1 | H14: 2020 | I14: 2021-08-01 | J14: 2021-08-31 | K14: 2020 | L14: 2021-07-01 | M14: 2021-07-31 | N14: 2020 | O14: 2021-03-01 | P14: 2021-03-31 | Q14: 2020 | R14: 2021-12-01 | S14: 2021-12-31 | T14: 12 | U14: 2018 | X14: 2019 | Y14: 19E7 | Z14: 2017-07-01 | AA14: 24 Months | AB14: 2012-07-01 | AC14: 8 Years | AD14: 7 Skill Level | AE14: 2018-12-31 | AF14: 1 Feb - 31 Mar 19 | AG14: Aug 19 - Jul 20 | AH14: 2019-06-17 | AI14: Jan 14 - Dec 18 | AJ14: 2019-02-01
A15: 3 | B15: Coast Guard Achievement | C15: 1 | D15: 2 | E15: SSgt | H15: 1st and last day of the promotion cycles | T15: 13 | U15: 2019 | X15: 2020 | Y15: 20E7 | Z15: 2018-07-01 | AA15: 24 Months | AB15: 2013-07-01 | AC15: 8 Years | AD15: 7 Skill Level | AE15: 2019-12-31 | AF15: 1 Feb - 31 Mar 20 | AG15: Aug 20 - Jul 21 | AH15: 2020-06-17 | AI15: Jan 15 - Dec 19 | AJ15: 2020-02-01
A16: 4 | B16: Joint Svc Achievement | C16: 1 | D16: 3 | E16: TSgt | T16: 14 | U16: 2020 | W16: E6Cycle | X16: 2008 | Y16: 08E6 | Z16: 2006-08-01 | AA16: 23 Months | AB16: 2004-07-01 | AC16: 5 Years | AD16: 5 Skill Level | AE16: 2007-12-31 | AF16: 1 Feb - 31 Mar 08 | AG16: Aug 08 - Jul 09 | AH16: 2008-06-08 | AI16: Jan 03 - Dec 07 | AJ16: 2008-02-01
A17: 5 | B17: Navy Achievement | C17: 1 | D17: 4 | E17: MSgt | X17: 2009 | Y17: 09E6 | Z17: 2007-08-01 | AA17: 23 Months | AB17: 2005-07-01 | AC17: 5 Years | AD17: 5 Skill Level | AE17: 2008-12-31 | AF17: 1 Feb - 31 Mar 09 | AG17: Aug 09 - Jul 10 | AH17: 2009-06-09 | AI17: Jan 04 - Dec 08 | AJ17: 2009-02-01
A18: 6 | B18: Aerial Achievement | C18: 3 | D18: 5 | E18: SMSgt | F18: DO NOT DELETE THIS PAGE. IT CONTAINS THE FORMULAS FOR THE WAPS CALCULATOR | X18: 2010 | Y18: 10E6 | Z18: 2008-08-01 | AA18: 23 Months | AB18: 2006-07-01 | AC18: 5 Years | AD18: 5 Skill Level | AE18: 2009-12-31 | AF18: 1 Feb - 31 Mar 10 | AG18: Aug 10 - Jul 11 | AH18: 2010-06-10 | AI18: Jan 05 - Dec 09 | AJ18: 2010-02-01
A19: 7 | B19: AF Commendation | C19: 3 | D19: 6 | E19: CMSgt | X19: 2011 | Y19: 11E6 | Z19: 2009-08-01 | AA19: 23 Months | AB19: 2007-07-01 | AC19: 5 Years | AD19: 5 Skill Level | AE19: 2010-12-31 | AF19: 1 Feb - 31 Mar 11 | AG19: Aug 11 - Jul 12 | AH19: 2011-06-11 | AI19: Jan 06 - Dec 10 | AJ19: 2011-02-01
A20: 8 | B20: Air Medal | C20: 3 | X20: 2012 | Y20: 12E6 | Z20: 2010-08-01 | AA20: 23 Months | AB20: 2008-07-01 | AC20: 5 Years | AD20: 5 Skill Level | AE20: 2011-12-31 | AF20: 1 Feb - 31 Mar 12 | AG20: Aug 12 - Jul 13 | AH20: 2012-06-11 | AI20: Jan 07 - Dec 11 | AJ20: 2012-02-01
A21: 9 | B21: Army Commendation | C21: 3 | X21: 2013 | Y21: 13E6 | Z21: 2011-08-01 | AA21: 23 Months | AB21: 2009-07-01 | AC21: 5 Years | AD21: 5 Skill Level | AE21: 2012-12-31 | AF21: 1 Feb - 31 Mar 13 | AG21: Aug 13 - Jul 14 | AH21: 2013-06-12 | AI21: Jan 08 - Dec 12 | AJ21: 2013-02-01
A22: 10 | B22: Coast Guard Commendation | C22: 3 | X22: 2014 | Y22: 14E6 | Z22: 2012-08-01 | AA22: 23 Months | AB22: 2010-07-01 | AC22: 5 Years | AD22: 5 Skill Level | AE22: 2013-12-31 | AF22: 1 Feb - 31 Mar 14 | AG22: Aug 14 - Jul 15 | AH22: 2014-06-13 | AI22: Jan 09 - Dec 13 | AJ22: 2014-02-01
A23: 11 | B23: Joint Svc Commendation | C23: 3 | X23: 2015 | Y23: 15E6 | Z23: 2013-08-01 | AA23: 23 Months | AB23: 2011-07-01 | AC23: 5 Years | AD23: 5 Skill Level | AE23: 2014-12-31 | AF23: 1 Feb - 31 Mar 15 | AG23: Aug 15 - Jul 16 | AH23: 2015-06-14 | AI23: Jan 10 - Dec 14 | AJ23: 2015-02-01
A24: 12 | B24: Navy Commendation | C24: 3 | X24: 2016 | Y24: 16E6 | Z24: 2014-08-01 | AA24: 23 Months | AB24: 2012-07-01 | AC24: 5 Years | AD24: 5 Skill Level | AE24: 2015-12-31 | AF24: 1 Feb - 31 Mar 16 | AG24: Aug 16 - Jul 17 | AH24: 2016-06-14 | AI24: Jan 11 - Dec 15 | AJ24: 2016-02-01
A25: 13 | B25: Airman's Medal | C25: 5 | X25: 2017 | Y25: 17E6 | Z25: 2015-08-01 | AA25: 23 Months | AB25: 2013-07-01 | AC25: 5 Years | AD25: 5 Skill Level | AE25: 2016-12-31 | AF25: 1 Feb - 31 Mar 17 | AG25: Aug 17 - Jul 18 | AH25: 2017-06-15 | AI25: Jan 12 - Dec 16 | AJ25: 2017-02-01
A26: 14 | B26: Bronze Star | C26: 5 | F26: SSgt | G26: SrA | X26: 2018 | Y26: 18E6 | Z26: 2016-08-01 | AA26: 23 Months | AB26: 2014-07-01 | AC26: 5 Years | AD26: 5 Skill Level | AE26: 2017-12-31 | AF26: 1 Feb - 31 Mar 18 | AG26: Aug 18 - Jul 19 | AH26: 2018-06-16 | AI26: Jan 13 - Dec 17 | AJ26: 2018-02-01
A27: 15 | B27: Coast Guard Medal | C27: 5 | F27: TSgt | G27: SSgt | X27: 2019 | Y27: 19E6 | Z27: 2017-08-01 | AA27: 23 Months | AB27: 2015-07-01 | AC27: 5 Years | AD27: 5 Skill Level | AE27: 2018-12-31 | AF27: 1 Feb - 31 Mar 19 | AG27: Aug 19 - Jul 20 | AH27: 2019-06-17 | AI27: Jan 14 - Dec 18 | AJ27: 2019-02-01
A28: 16 | B28: Def. Meritorious Svc Medal | C28: 5 | F28: MSgt | G28: TSgt | X28: 2020 | Y28: 20E6 | Z28: 2018-08-01 | AA28: 23 Months | AB28: 2016-07-01 | AC28: 5 Years | AD28: 5 Skill Level | AE28: 2019-12-31 | AF28: 1 Feb - 31 Mar 20 | AG28: Aug 20 - Jul 21 | AH28: 2020-06-17 | AI28: Jan 15 - Dec 19 | AJ28: 2020-02-01
A29: 17 | B29: Navy-Marine Corps Medal | C29: 5 | F29: SMSgt | G29: MSgt | W29: E5Cycle | X29: 2008 | Y29: 08E5 | Z29: 2008-02-01 | AA29: 6 Months | AB29: 2006-08-01 | AC29: 3 Years | AD29: 5 Skill Level | AE29: 2008-03-31 | AF29: 1 May - 15 Jun 08 | AG29: Sep 08 - Aug 09 | AH29: 2008-08-09 | AI29: Apr 03 - Mar 08 | AJ29: 2008-05-01
A30: 18 | B30: Purple Heart | C30: 5 | F30: CMSgt | G30: SMSgt | X30: 2009 | Y30: 09E5 | Z30: 2009-02-01 | AA30: 6 Months | AB30: 2007-08-01 | AC30: 3 Years | AD30: 5 Skill Level | AE30: 2009-03-31 | AF30: 1 May - 15 Jun 09 | AG30: Sep 09 - Aug 10 | AH30: 2009-08-09 | AI30: Apr 04 - Mar 09 | AJ30: 2009-05-01
A31: 19 | B31: Soldier's Medal | C31: 5 | X31: 2010 | Y31: 10E5 | Z31: 2010-02-01 | AA31: 6 Months | AB31: 2008-08-01 | AC31: 3 Years | AD31: 5 Skill Level | AE31: 2010-03-31 | AF31: 1 May - 15 Jun 10 | AG31: Sep 10 - Aug 11 | AH31: 2010-08-09 | AI31: Apr 05 - Mar 10 | AJ31: 2010-05-01
A32: 20 | B32: Meritorious Svc Medal | C32: 5 | X32: 2011 | Y32: 11E5 | Z32: 2011-02-01 | AA32: 6 Months | AB32: 2009-08-01 | AC32: 3 Years | AD32: 5 Skill Level | AE32: 2011-03-31 | AF32: 1 May - 15 Jun 11 | AG32: Sep 11 - Aug 12 | AH32: 2011-08-09 | AI32: Apr 06 - Mar 11 | AJ32: 2011-05-01
A33: 21 | B33: Def. Superior Svc Medal | C33: 7 | X33: 2012 | Y33: 12E5 | Z33: 2012-02-01 | AA33: 6 Months | AB33: 2010-08-01 | AC33: 3 Years | AD33: 5 Skill Level | AE33: 2012-03-31 | AF33: 1 May - 15 Jun 12 | AG33: Sep 12 - Aug 13 | AH33: 2012-08-09 | AI33: Apr 07 - Mar 12 | AJ33: 2012-05-01
A34: 22 | B34: Distinguished Flying Cross | C34: 7 | X34: 2013 | Y34: 13E5 | Z34: 2013-02-01 | AA34: 6 Months | AB34: 2011-08-01 | AC34: 3 Years | AD34: 5 Skill Level | AE34: 2013-03-31 | AF34: 1 May - 15 Jun 13 | AG34: Sep 13 - Aug 14 | AH34: 2013-08-09 | AI34: Apr 08 - Mar 13 | AJ34: 2013-05-01
A35: 23 | B35: Legion of Merit | C35: 7 | X35: 2014 | Y35: 14E5 | Z35: 2014-02-01 | AA35: 6 Months | AB35: 2012-08-01 | AC35: 3 Years | AD35: 5 Skill Level | AE35: 2014-03-31 | AF35: 1 May - 15 Jun 14 | AG35: Sep 14 - Aug 15 | AH35: 2014-08-09 | AI35: Apr 09 - Mar 14 | AJ35: 2014-05-01
A36: 24 | B36: Def. Distinguished Svc Medal | C36: 9 | X36: 2015 | Y36: 15E5 | Z36: 2015-02-01 | AA36: 6 Months | AB36: 2013-08-01 | AC36: 3 Years | AD36: 5 Skill Level | AE36: 2015-03-31 | AF36: 1 May - 15 Jun 15 | AG36: Sep 15 - Aug 16 | AH36: 2015-08-09 | AI36: Apr 10 - Mar 15 | AJ36: 2015-05-01
A37: 25 | B37: Distinguished Svc Medal | C37: 9 | X37: 2016 | Y37: 16E5 | Z37: 2016-02-01 | AA37: 6 Months | AB37: 2014-08-01 | AC37: 3 Years | AD37: 5 Skill Level | AE37: 2016-03-31 | AF37: 1 May - 15 Jun 16 | AG37: Sep 16 - Aug 17 | AH37: 2016-08-09 | AI37: Apr 11 - Mar 16 | AJ37: 2016-05-01
A38: 26 | B38: Silver Star | C38: 9 | X38: 2017 | Y38: 17E5 | Z38: 2017-02-01 | AA38: 6 Months | AB38: 2015-08-01 | AC38: 3 Years | AD38: 5 Skill Level | AE38: 2017-03-31 | AF38: 1 May - 15 Jun 17 | AG38: Sep 17 - Aug 18 | AH38: 2017-08-09 | AI38: Apr 12 - Mar 17 | AJ38: 2017-05-01
A39: 27 | B39: AF Cross | C39: 11 | X39: 2018 | Y39: 18E5 | Z39: 2018-02-01 | AA39: 6 Months | AB39: 2016-08-01 | AC39: 3 Years | AD39: 5 Skill Level | AE39: 2018-03-31 | AF39: 1 May - 15 Jun 18 | AG39: Sep 18 - Aug 19 | AH39: 2018-08-09 | AI39: Apr 13 - Mar 18 | AJ39: 2018-05-01
A40: 28 | B40: Distinguished Svc Cross | C40: 11 | X40: 2019 | Y40: 19E5 | Z40: 2019-02-01 | AA40: 6 Months | AB40: 2017-08-01 | AC40: 3 Years | AD40: 5 Skill Level | AE40: 2019-03-31 | AF40: 1 May - 15 Jun 19 | AG40: Sep 19 - Aug 20 | AH40: 2019-08-09 | AI40: Apr 14 - Mar 19 | AJ40: 2019-05-01
A41: 29 | B41: Navy Cross | C41: 11 | X41: 2020 | Y41: 20E5 | Z41: 2020-02-01 | AA41: 6 Months | AB41: 2018-08-01 | AC41: 3 Years | AD41: 5 Skill Level | AE41: 2020-03-31 | AF41: 1 May - 15 Jun 20 | AG41: Sep 20 - Aug 21 | AH41: 2020-08-09 | AI41: Apr 15 - Mar 20 | AJ41: 2020-05-01
A42: 30 | B42: Medal of Honor | C42: 15 | W42: E8Cycle | X42: 2008 | Y42: 08E8 | Z42: 2006-07-01 | AA42: 20 Months | AB42: 1998-03-01 | AC42: 11 Years | AD42: 7 Skill Level | AE42: 2007-09-30 | AF42: 1 Dec - 31 Dec 08 | AG42: Apr 08 - Mar 09 | AH42: 2008-03-01 | AI42: Oct 03 - Sep 08 | AJ42: 2008-11-01
X43: 2009 | Y43: 09E8 | Z43: 2007-07-01 | AA43: 20 Months | AB43: 1999-03-01 | AC43: 11 Years | AD43: 7 Skill Level | AE43: 2008-09-30 | AF43: 1 Dec - 31 Dec 08 | AG43: Apr 09 - Mar 10 | AH43: 2009-03-01 | AI43: Oct 04 - Sep 09 | AJ43: 2009-11-01
X44: 2010 | Y44: 10E8 | Z44: 2008-07-01 | AA44: 20 Months | AB44: 2000-03-01 | AC44: 11 Years | AD44: 7 Skill Level | AE44: 2009-09-30 | AF44: 1 Dec - 31 Dec 09 | AG44: Apr 10 - Mar 11 | AH44: 2010-03-01 | AI44: Oct 05 - Sep 10 | AJ44: 2010-11-01
X45: 2011 | Y45: 11E8 | Z45: 2009-07-01 | AA45: 20 Months | AB45: 2001-03-01 | AC45: 11 Years | AD45: 7 Skill Level | AE45: 2010-09-30 | AF45: 1 Dec - 31 Dec 10 | AG45: Apr 11 - Mar 12 | AH45: 2011-03-01 | AI45: Oct 06 - Sep 11 | AJ45: 2011-11-01
X46: 2012 | Y46: 12E8 | Z46: 2010-07-01 | AA46: 20 Months | AB46: 2002-03-01 | AC46: 11 Years | AD46: 7 Skill Level | AE46: 2011-09-30 | AF46: 1 Dec - 31 Dec 11 | AG46: Apr 12 - Mar 13 | AH46: 2012-03-01 | AI46: Oct 07 - Sep 12 | AJ46: 2012-11-01
A47: AF Achievement | X47: 2013 | Y47: 13E8 | Z47: 2011-07-01 | AA47: 20 Months | AB47: 2003-03-01 | AC47: 11 Years | AD47: 7 Skill Level | AE47: 2012-09-30 | AF47: 1 Dec - 31 Dec 12 | AG47: Apr 13 - Mar 14 | AH47: 2013-03-01 | AI47: Oct 08 - Sep 13 | AJ47: 2013-11-01
A48: Army Achievement | X48: 2014 | Y48: 14E8 | Z48: 2012-07-01 | AA48: 20 Months | AB48: 2004-03-01 | AC48: 11 Years | AD48: 7 Skill Level | AE48: 2013-09-30 | AF48: 1 Dec - 31 Dec 13 | AG48: Apr 14 - Mar 15 | AH48: 2014-03-01 | AI48: Oct 09 - Sep 14 | AJ48: 2014-11-01
A49: Coast Guard Achievement | X49: 2015 | Y49: 15E8 | Z49: 2013-07-01 | AA49: 20 Months | AB49: 2005-03-01 | AC49: 11 Years | AD49: 7 Skill Level | AE49: 2014-09-30 | AF49: 1 Dec - 31 Dec 14 | AG49: Apr 15 - Mar 16 | AH49: 2015-03-01 | AI49: Oct 10 - Sep 15 | AJ49: 2015-11-01
A50: Joint Svc Achievement | X50: 2016 | Y50: 16E8 | Z50: 2014-07-01 | AA50: 20 Months | AB50: 2006-03-01 | AC50: 11 Years | AD50: 7 Skill Level | AE50: 2015-09-30 | AF50: 1 Dec - 31 Dec 15 | AG50: Apr 16 - Mar 17 | AH50: 2016-03-01 | AI50: Oct 11 - Sep 16 | AJ50: 2016-11-01
A51: Navy Achievement | X51: 2017 | Y51: 17E8 | Z51: 2015-07-01 | AA51: 20 Months | AB51: 2007-03-01 | AC51: 11 Years | AD51: 7 Skill Level | AE51: 2016-09-30 | AF51: 1 Dec - 31 Dec 16 | AG51: Apr 17 - Mar 18 | AH51: 2017-03-01 | AI51: Oct 12 - Sep 17 | AJ51: 2017-11-01
A52: Aerial Achievement | X52: 2018 | Y52: 18E8 | Z52: 2016-07-01 | AA52: 20 Months | AB52: 2008-03-01 | AC52: 11 Years | AD52: 7 Skill Level | AE52: 2017-09-30 | AF52: 1 Dec - 31 Dec 17 | AG52: Apr 18 - Mar 19 | AH52: 2018-03-01 | AI52: Oct 13- Sep 18 | AJ52: 2018-11-01
A53: AF Commendation | X53: 2019 | Y53: 19E8 | Z53: 2017-07-01 | AA53: 20 Months | AB53: 2009-03-01 | AC53: 11 Years | AD53: 7 Skill Level | AE53: 2018-09-30 | AF53: 1 Dec - 31 Dec 18 | AG53: Apr 19 - Mar 20 | AH53: 2019-03-01 | AI53: Oct 14 - Sep 19 | AJ53: 2019-11-01
A54: Air Medal | X54: 2020 | Y54: 20E8 | Z54: 2018-07-01 | AA54: 20 Months | AB54: 2010-03-01 | AC54: 11 Years | AD54: 7 Skill Level | AE54: 2019-09-30 | AF54: 1 Dec - 31 Dec 19 | AG54: Apr 20 - Mar 21 | AH54: 2020-03-01 | AI54: Oct 15 - Sep 20 | AJ54: 2020-11-01
A55: Army Commendation | W55: E9Cycle | X55: 2008 | Y55: 08E9 | Z55: 2007-03-01 | AA55: 21 Months | AB55: 1995-12-01 | AC55: 14 Years | AD55: 9 Skill Level | AE55: 2008-07-31 | AF55: 1 Sep - 30 Sep 08 | AG55: Jan 09 - Dec 09 | AH55: 2008-11-01 | AI55: Aug 03 - Jul 08 | AJ55: 2008-09-01
A56: Coast Guard Commendation | X56: 2009 | Y56: 09E9 | Z56: 2008-03-01 | AA56: 21 Months | AB56: 1996-12-01 | AC56: 14 Years | AD56: 9 Skill Level | AE56: 2009-07-31 | AF56: 1 Sep - 30 Sep 09 | AG56: Jan 10 - Dec 10 | AH56: 2009-11-01 | AI56: Aug 04 - Jul 09 | AJ56: 2009-09-01
A57: Joint Svc Commendation | X57: 2010 | Y57: 10E9 | Z57: 2009-03-01 | AA57: 21 Months | AB57: 1997-12-01 | AC57: 14 Years | AD57: 9 Skill Level | AE57: 2010-07-31 | AF57: 1 Sep - 30 Sep 10 | AG57: Jan 11 - Dec 11 | AH57: 2010-11-01 | AI57: Aug 05 - Jul 10 | AJ57: 2010-09-01
A58: Navy Commendation | X58: 2011 | Y58: 11E9 | Z58: 2010-03-01 | AA58: 21 Months | AB58: 1998-12-01 | AC58: 14 Years | AD58: 9 Skill Level | AE58: 2011-07-31 | AF58: 1 Sep - 30 Sep 11 | AG58: Jan 12 - Dec 12 | AH58: 2011-11-01 | AI58: Aug 06 - Jul 11 | AJ58: 2011-09-01
A59: Airman's Medal | X59: 2012 | Y59: 12E9 | Z59: 2011-03-01 | AA59: 21 Months | AB59: 1999-12-01 | AC59: 14 Years | AD59: 9 Skill Level | AE59: 2012-07-31 | AF59: 1 Sep - 30 Sep 12 | AG59: Jan 13 - Dec 13 | AH59: 2012-11-01 | AI59: Aug 07 - Jul 12 | AJ59: 2012-09-01
A60: Bronze Star | X60: 2013 | Y60: 13E9 | Z60: 2012-03-01 | AA60: 21 Months | AB60: 2000-12-01 | AC60: 14 Years | AD60: 9 Skill Level | AE60: 2013-07-31 | AF60: 1 Sep - 30 Sep 13 | AG60: Jan 14 - Dec 14 | AH60: 2013-11-01 | AI60: Aug 08 - Jul 13 | AJ60: 2013-09-01
A61: Coast Guard Medal | X61: 2014 | Y61: 14E9 | Z61: 2013-03-01 | AA61: 21 Months | AB61: 2001-12-01 | AC61: 14 Years | AD61: 9 Skill Level | AE61: 2014-07-31 | AF61: 1 Sep - 30 Sep 14 | AG61: Jan 15 - Dec 15 | AH61: 2014-11-01 | AI61: Aug 09 - Jul 14 | AJ61: 2014-09-01
A62: Def. Meritorious Svc Medal | X62: 2015 | Y62: 15E9 | Z62: 2014-03-01 | AA62: 21 Months | AB62: 2002-12-01 | AC62: 14 Years | AD62: 9 Skill Level | AE62: 2015-07-31 | AF62: 1 Sep - 30 Sep 15 | AG62: Jan 16 - Dec 16 | AH62: 2015-11-01 | AI62: Aug 10 - Jul 15 | AJ62: 2015-09-01
A63: Navy-Marine Corps Medal | X63: 2016 | Y63: 16E9 | Z63: 2015-03-01 | AA63: 21 Months | AB63: 2003-12-01 | AC63: 14 Years | AD63: 9 Skill Level | AE63: 2016-07-31 | AF63: 1 Sep - 30 Sep 16 | AG63: Jan 17 - Dec 17 | AH63: 2016-11-01 | AI63: Aug 11 - Jul 16 | AJ63: 2016-09-01
A64: Purple Heart | X64: 2017 | Y64: 17E9 | Z64: 2016-03-01 | AA64: 21 Months | AB64: 2004-12-01 | AC64: 14 Years | AD64: 9 Skill Level | AE64: 2017-07-31 | AF64: 1 Sep - 30 Sep 17 | AG64: Jan 18 - Dec 18 | AH64: 2017-11-01 | AI64: Aug 12 - Jul 17 | AJ64: 2017-09-01
A65: Soldier's Medal | X65: 2018 | Y65: 18E9 | Z65: 2017-03-01 | AA65: 21 Months | AB65: 2005-12-01 | AC65: 14 Years | AD65: 9 Skill Level | AE65: 2018-07-31 | AF65: 1 Sep - 30 Sep 18 | AG65: Jan 19 - Dec 19 | AH65: 2018-11-01 | AI65: Aug 13 - Jul 18 | AJ65: 2018-09-01
A66: Def. Superior Svc Medal | X66: 2019 | Y66: 19E9 | Z66: 2018-03-01 | AA66: 21 Months | AB66: 2006-12-01 | AC66: 14 Years | AD66: 9 Skill Level | AE66: 2019-07-31 | AF66: 1 Sep - 30 Sep 19 | AG66: Jan 20 - Dec 20 | AH66: 2019-11-01 | AI66: Aug 14 - Jul 19 | AJ66: 2019-09-01
A67: Distinguished Flying Cross | X67: 2020 | Y67: 20E9 | Z67: 2019-03-01 | AA67: 21 Months | AB67: 2007-12-01 | AC67: 14 Years | AD67: 9 Skill Level | AE67: 2020-07-31 | AF67: 1 Sep - 30 Sep 20 | AG67: Jan 21 - Dec 21 | AH67: 2020-11-01 | AI67: Aug 15 - Jul 20 | AJ67: 2020-09-01
A68: Legion of Merit
A69: Def. Distinguished Svc Medal
A70: Distinguished Svc Medal
A71: Silver Star
A72: AF Cross
A73: Distinguished Svc Cross
A74: Navy Cross
A75: Medal of Honor

Sheet Promo Rates
F2: =""&AA56&" Yearly Promotion Rates" -> MSgt Yearly Promotion Rates
D41: =IF(AA55=1,"WAPS testing was completed twice a year up to 1992 & again in 1995, the bar graph shows the average between the two.","") -> 
A49: SSgt/E-5 | F49: TSgt/E-6 | K49: MSgt/E-7 | P49: SMSgt/E-8 | U49: CMSgt/E-9 | Z49: 1 | AA49: E-5 Promotion Averages | AB49: SSgt | AD49: E-5 | AE49: E-6 | AF49: E-7 | AG49: E-8 | AH49: E-9 | AI49: =OFFSET(AC49,0,$AA$55) -> E-7
A50: CYCLE | B50: CONSIDERED | C50: SELECTED | D50: % | F50: CYCLE | G50: CONSIDERED | H50: SELECTED | I50: % | K50: CYCLE | L50: CONSIDERED | M50: SELECTED | N50: % | P50: CYCLE | Q50: CONSIDERED | R50: SELECTED | S50: % | U50: CYCLE | V50: CONSIDERED | W50: SELECTED | X50: % | Z50: 2 | AA50: E-6 Promotion Averages | AB50: TSgt | AC50: 1980 | AD50: 17.49 | AE50: 21.28 | AF50: 35.92 | AG50: 23.08 | AH50: 31.72 | AI50: =OFFSET(AC50,0,$AA$55)/100 -> 35.9%
A51: 71A5 | B51: 94882 | C51: 17084 | D51: 18.01 | F51: 71A6 | G51: 89185 | H51: 9391 | I51: 10.53 | K51: 71A7 | L51: 58114 | M51: 6151 | N51: 10.58 | P51: 71S8 | Q51: 27294 | R51: 1339 | S51: 4.91 | U51: 71S9 | V51: 10695 | W51: 687 | X51: 6.42 | Z51: 3 | AA51: E-7 Promotion Averages | AB51: MSgt | AC51: 1981 | AD51: 21.04 | AE51: 21.43 | AF51: 38.18 | AG51: 24.19 | AH51: 33.85 | AI51: =OFFSET(AC51,0,$AA$55)/100 -> 38.2%
A52: 71B5 | B52: 113001 | C52: 33804 | D52: 29.91 | F52: 71B6 | G52: 96220 | H52: 5079 | I52: 5.28 | K52: 71B7 | L52: 61197 | M52: 3763 | N52: 6.15 | P52: 72S8 | Q52: 30559 | R52: 3401 | S52: 11.13 | U52: 72S9 | V52: 11824 | W52: 1524 | X52: 12.89 | Z52: 4 | AA52: E-8 Promotion Averages | AB52: SMSgt | AC52: 1982 | AD52: 15.41 | AE52: 21.11 | AF52: 33.94 | AG52: 24.43 | AH52: 43.56 | AI52: 33.9%
A53: 72A5 | B53: 92430 | C53: 21334 | D53: 23.08 | F53: 72A6 | G53: 94012 | H53: 15057 | I53: 16.02 | K53: 72A7 | L53: 58712 | M53: 8946 | N53: 15.24 | P53: 73S8 | Q53: 30133 | R53: 4818 | S53: 15.99 | U53: 73S9 | V53: 8975 | W53: 1735 | X53: 19.33 | Z53: 5 | AA53: E-9 Promotion Averages | AB53: CMSgt | AC53: 1983 | AD53: 15 | AE53: 20.58 | AF53: 32.51 | AG53: 16.89 | AH53: 30.94 | AI53: 32.5%
A54: 72B5 | B54: 93975 | C54: 20765 | D54: 22.1 | F54: 72B6 | G54: 84671 | H54: 5262 | I54: 6.21 | K54: 72B7 | L54: 51516 | M54: 1610 | N54: 3.13 | P54: 74S8 | Q54: 30891 | R54: 1793 | S54: 5.8 | U54: 74S9 | V54: 8238 | W54: 664 | X54: 8.06 | AC54: 1984 | AD54: 14.85 | AE54: 15.49 | AF54: 28.25 | AG54: 15.35 | AH54: 17.79 | AI54: 28.3%
A55: 73A5 | B55: 94212 | C55: 16210 | D55: 17.21 | F55: 73A6 | G55: 86991 | H55: 8079 | I55: 9.29 | K55: 73A7 | L55: 52515 | M55: 4862 | N55: 9,26 | P55: 75S8 | Q55: 28703 | R55: 4350 | S55: 15.16 | U55: 75S9 | V55: 8338 | W55: 1487 | X55: 17.83 | AA55: 3 | AC55: 1985 | AD55: 15.3 | AE55: 18.12 | AF55: 29.28 | AG55: 12.8 | AH55: 22.64 | AI55: 29.3%
A56: 73B5 | B56: 82226 | C56: 12982 | D56: 15.79 | F56: 73B6 | G56: 85152 | H56: 3757 | I56: 4.41 | K56: 74A7 | L56: 56442 | M56: 4276 | N56: 7.58 | P56: 76S8 | Q56: 25909 | R56: 3747 | S56: 14.46 | U56: 76S9 | V56: 6356 | W56: 1218 | X56: 19.16 | AA56: =VLOOKUP(AA55,Z49:AB53,3) -> MSgt | AC56: 1986 | AD56: 16.04 | AE56: 19.06 | AF56: 30.92 | AG56: 17.48 | AH56: 23.82 | AI56: 30.9%
A57: 74A5 | B57: 77986 | C57: 7199 | D57: 9.23 | F57: 74A6 | G57: 88659 | H57: 7064 | I57: 7.97 | K57: 74B7 | L57: 51729 | M57: 4313 | N57: 8.34 | P57: 77S8 | Q57: 24183 | R57: 1899 | S57: 7.85 | U57: 77S9 | V57: 7027 | W57: 833 | X57: 11.85 | AC57: 1987 | AD57: 14.6 | AE57: 19.19 | AF57: 32.2 | AG57: 15.2 | AH57: 19.3 | AI57: 32.2%
A58: 74B5 | B58: 89020 | C58: 15181 | D58: 17.05 | F58: 74B6 | G58: 87807 | H58: 6883 | I58: 7.84 | K58: 75A7 | L58: 50516 | M58: 4338 | N58: 8.59 | P58: 78S8 | Q58: 20612 | R58: 2808 | S58: 13.62 | U58: 78S9 | V58: 5733 | W58: 1238 | X58: 21.59 | AC58: 1988 | AD58: 8.68 | AE58: 11.12 | AF58: 22.15 | AG58: 9.1 | AH58: 12.58 | AI58: 22.2%
A59: 75A5 | B59: 84706 | C59: 6770 | D59: 7.99 | F59: 75A6 | G59: 85847 | H59: 5227 | I59: 6.09 | K59: 75B7 | L59: 43085 | M59: 4609 | N59: 10.7 | P59: 79S8 | Q59: 14999 | R59: 1869 | S59: 12.46 | U59: 79S9 | V59: 4578 | W59: 819 | X59: 17.89 | AC59: 1989 | AD59: 10.36 | AE59: 11.24 | AF59: 18.87 | AG59: 5.62 | AH59: 13.14 | AI59: 18.9%
A60: 75B5 | B60: 78184 | C60: 5976 | D60: 7.64 | F60: 75B6 | G60: 80503 | H60: 6246 | I60: 7.76 | K60: 76A7 | L60: 42612 | M60: 3065 | N60: 7.19 | P60: 80S8 | Q60: 15216 | R60: 3512 | S60: 23.08 | U60: 80S9 | V60: 3692 | W60: 1171 | X60: 31.72 | AC60: 1990 | AD60: 8.8 | AE60: 11.86 | AF60: 20.31 | AG60: 8.76 | AH60: 13.55 | AI60: 20.3%
A61: 76A5 | B61: 84538 | C61: 5821 | D61: 6.89 | F61: 76A6 | G61: 81986 | H61: 5238 | I61: 6.39 | K61: 76B7 | L61: 41859 | M61: 2621 | N61: 6.26 | P61: 81S8 | Q61: 13995 | R61: 3385 | S61: 24.19 | U61: 81S9 | V61: 3439 | W61: 1164 | X61: 33.85 | AC61: 1991 | AD61: 8.08 | AE61: 12.16 | AF61: 19.53 | AG61: 8.69 | AH61: 13.77 | AI61: 19.5%
A62: 76B5 | B62: 77975 | C62: 5020 | D62: 6.44 | F62: 76B6 | G62: 78383 | H62: 4984 | I62: 6.39 | K62: 77A7 | L62: 41054 | M62: 4324 | N62: 10.53 | P62: 82S8 | Q62: 13136 | R62: 3209 | S62: 24.43 | U62: 82S9 | V62: 2741 | W62: 1194 | X62: 43.56 | AC62: 1992 | AD62: 5.67 | AE62: 14.33 | AF62: 19.56 | AG62: 7.23 | AH62: 11.85 | AI62: 19.6%
A63: 77A5 | B63: 83051 | C63: 9799 | D63: 11.8 | F63: 77A6 | G63: 74881 | H63: 4529 | I63: 6.05 | K63: 77B7 | L63: 39863 | M63: 3648 | N63: 9.15 | P63: 83S8 | Q63: 14501 | R63: 2449 | S63: 16.89 | U63: 83S9 | V63: 3449 | W63: 1067 | X63: 30.94 | AC63: 1993 | AD63: 16.35 | AE63: 11.32 | AF63: 19.23 | AG63: 6.17 | AH63: 9.38 | AI63: 19.2%
A64: 77B5 | B64: 85665 | C64: 11658 | D64: 13.61 | F64: 77B6 | G64: 72779 | H64: 4211 | I64: 5.79 | K64: 78A7 | L64: 38794 | M64: 8385 | N64: 21.61 | P64: 84S8 | Q64: 17135 | R64: 2631 | S64: 15.35 | U64: 84S9 | V64: 4104 | W64: 730 | X64: 17.79 | AC64: 1994 | AD64: 16.05 | AE64: 11.1 | AF64: 30.3 | AG64: 5.7 | AH64: 9.19 | AI64: 30.3%
A65: 78A5 | B65: 85855 | C65: 12163 | D65: 14.17 | F65: 78A6 | G65: 69822 | H65: 11807 | I65: 16.91 | K65: 79A7 | L65: 30555 | M65: 7433 | N65: 24.33 | P65: 85S8 | Q65: 17963 | R65: 2299 | S65: 12.8 | U65: 84C9 | V65: 5484 | W65: 891 | X65: 16.25 | AC65: 1995 | AD65: 16.59 | AE65: 11.2 | AF65: 19.3 | AG65: 4.62 | AH65: 16.42 | AI65: 19.3%
A66: 78B5 | B66: 79457 | C66: 9828 | D66: 12.37 | F66: 79A6 | G66: 64691 | H66: 11574 | I66: 17.89 | K66: 80A7 | L66: 27506 | M66: 9881 | N66: 35.92 | P66: 86S8 | Q66: 19202 | R66: 3356 | S66: 17.48 | U66: 85S9 | V66: 5279 | W66: 1195 | X66: 22.64 | AC66: 1996 | AD66: 16.59 | AE66: 11.2 | AF66: 19.47 | AG66: 7.31 | AH66: 19.42 | AI66: 19.5%
A67: 79A5 | B67: 78928 | C67: 11420 | D67: 14.47 | F67: 80A6 | G67: 66002 | H67: 14043 | I67: 21.28 | K67: 81A7 | L67: 25278 | M67: 9651 | N67: 38.18 | P67: 87S8 | Q67: 19077 | R67: 2900 | S67: 15.2 | U67: 86S9 | V67: 5290 | W67: 1260 | X67: 23.82 | AC67: 1997 | AD67: 18.66 | AE67: 15.13 | AF67: 21.62 | AG67: 7.56 | AH67: 18.1 | AI67: 21.6%
A68: 79B5 | B68: 73259 | C68: 11330 | D68: 15.47 | F68: 81A6 | G68: 62399 | H68: 13359 | I68: 21.43 | K68: 82A7 | L68: 23506 | M68: 7978 | N68: 33.94 | P68: 88S8 | Q68: 20693 | R68: 1884 | S68: 9.1 | U68: 87S9 | V68: 4948 | W68: 955 | X68: 19.3 | AC68: 1998 | AD68: 22.65 | AE68: 18.51 | AF68: 22.52 | AG68: 7.96 | AH68: 21.37 | AI68: 22.5%
A69: 80A5 | B69: 69161 | C69: 12092 | D69: 17.48 | F69: 82A6 | G69: 62335 | H69: 13159 | I69: 21.11 | K69: 83A7 | L69: 25940 | M69: 8432 | N69: 32.51 | P69: 89S8 | Q69: 22934 | R69: 1290 | S69: 5.62 | U69: 88S9 | V69: 5793 | W69: 729 | X69: 12.58 | AC69: 1999 | AD69: 36.39 | AE69: 24.4 | AF69: 29.7 | AG69: 7.98 | AH69: 17.58 | AI69: 29.7%
A70: 80B5 | B70: 65637 | C70: 11494 | D70: 17.51 | F70: 83A6 | G70: 65206 | H70: 13418 | I70: 20.58 | K70: 84A7 | L70: 27565 | M70: 7788 | N70: 28.25 | P70: 90S8 | Q70: 25733 | R70: 2255 | S70: 8.76 | U70: 89S9 | V70: 6201 | W70: 815 | X70: 13.14 | AC70: 2000 | AD70: 50.72 | AE70: 27.65 | AF70: 39.11 | AG70: 7.89 | AH70: 14.21 | AI70: 39.1%
A71: 81A5 | B71: 67073 | C71: 13276 | D71: 19.79 | F71: 84A6 | G71: 68870 | H71: 10699 | I71: 15.49 | K71: 85A7 | L71: 29570 | M71: 8658 | N71: 29.28 | P71: 91S8 | Q71: 25399 | R71: 2208 | S71: 8.69 | U71: 90S9 | V71: 5514 | W71: 747 | X71: 13.55 | AC71: 2001 | AD71: 64.63 | AE71: 33.39 | AF71: 38.98 | AG71: 8.36 | AH71: 22.06 | AI71: 39.0%
A72: 81B5 | B72: 69617 | C72: 15518 | D72: 22.29 | F72: 85A6 | G72: 74617 | H72: 13519 | I72: 18.12 | K72: 86A7 | L72: 31120 | M72: 9622 | N72: 30.92 | P72: 92S8 | Q72: 23599 | R72: 1706 | S72: 7.23 | U72: 91S9 | V72: 4590 | W72: 632 | X72: 13.77 | AC72: 2002 | AD72: 62.98 | AE72: 33.51 | AF72: 33.23 | AG72: 10.09 | AH72: 19.93 | AI72: 33.2%
A73: 82A5 | B73: 67859 | C73: 10856 | D73: 15.6 | F73: 86A6 | G73: 75646 | H73: 14420 | I73: 19.06 | K73: 87A7 | L73: 29474 | M73: 9520 | N73: 32.2 | P73: 93S8 | Q73: 24343 | R73: 1501 | S73: 6.17 | U73: 92S9 | V73: 4488 | W73: 532 | X73: 11.85 | AC73: 2003 | AD73: 49.75 | AE73: 21.89 | AF73: 25.56 | AG73: 10.18 | AH73: 19.86 | AI73: 25.6%
A74: 82B5 | B74: 73143 | C74: 11134 | D74: 15.22 | F74: 87A6 | G74: 75589 | H74: 14506 | I74: 19.19 | K74: 88A7 | L74: 30372 | M74: 6726 | N74: 22.15 | P74: 94S8 | Q74: 24221 | R74: 1380 | S74: 5.7 | U74: 93S9 | V74: 4711 | W74: 442 | X74: 9.38 | AC74: 2004 | AD74: 40.91 | AE74: 21.57 | AF74: 25.95 | AG74: 9.48 | AH74: 21.06 | AI74: 26.0%
A75: 83A5 | B75: 74576 | C75: 12529 | D75: 16.8 | F75: 88A6 | G75: 72108 | H75: 8017 | I75: 11.12 | K75: 89A7 | L75: 34559 | M75: 6521 | N75: 18.87 | P75: 95S8 | Q75: 23827 | R75: 1101 | S75: 4.62 | U75: 94S9 | V75: 4569 | W75: 420 | X75: 9.19 | AC75: 2005 | AD75: 40.14 | AE75: 21.01 | AF75: 26.05 | AG75: 9.19 | AH75: 22.83 | AI75: 26.1%
A76: 83B5 | B76: 72982 | C76: 9637 | D76: 13.2 | F76: 89A6 | G76: 84753 | H76: 9524 | I76: 11.24 | K76: 90A7 | L76: 38827 | M76: 7887 | N76: 20.31 | P76: 95E8 | Q76: 22168 | R76: 1605 | S76: 7.24 | U76: 94E9 | V76: 4195 | W76: 503 | X76: 11.99 | AC76: 2006 | AD76: 35.87 | AE76: 16.76 | AF76: 19.86 | AG76: 8.63 | AH76: 16.85 | AI76: 19.9%
A77: 84A5 | B77: 77400 | C77: 13024 | D77: 16.83 | F77: 90A6 | G77: 83028 | H77: 9843 | I77: 11.86 | K77: 91A7 | L77: 35900 | M77: 7011 | N77: 19.53 | P77: 96E8 | Q77: 21139 | R77: 1546 | S77: 7.31 | U77: 95E9 | V77: 3850 | W77: 632 | X77: 16.42 | AC77: 2007 | AD77: 41.33 | AE77: 18.38 | AF77: 24.89 | AG77: 8.77 | AH77: 16.8 | AI77: 24.9%
A78: 84B5 | B78: 73991 | C78: 9526 | D78: 12.87 | F78: 91A6 | G78: 81686 | H78: 9932 | I78: 12.16 | K78: 92A7 | L78: 32338 | M78: 6325 | N78: 19.56 | P78: 97E8 | Q78: 21214 | R78: 1603 | S78: 7.56 | U78: 96E9 | V78: 3197 | W78: 621 | X78: 19.42 | AC78: 2008 | AD78: 43.45 | AE78: 18.55 | AF78: 22.31 | AG78: 8.91 | AH78: 21.53 | AI78: 22.3%
A79: 85A5 | B79: 74892 | C79: 14771 | D79: 19.72 | F79: 92A6 | G79: 77147 | H79: 11057 | I79: 14.33 | K79: 93A7 | L79: 32603 | M79: 6268 | N79: 19.23 | P79: 98E8 | Q79: 20439 | R79: 1626 | S79: 7.96 | U79: 97E9 | V79: 2984 | W79: 540 | X79: 18.1
A80: 85B5 | B80: 70425 | C80: 7647 | D80: 10.89 | F80: 93A6 | G80: 77310 | H80: 8748 | I80: 11.32 | K80: 94A7 | L80: 21125 | M80: 6319 | N80: 20.3 | P80: 99E8 | Q80: 18862 | R80: 1506 | S80: 7.98 | U80: 98E9 | V80: 2864 | W80: 612 | X80: 21.37
A81: 86A5 | B81: 83587 | C81: 10854 | D81: 12.99 | F81: 94A6 | G81: 63168 | H81: 7013 | I81: 11.1 | K81: 95A7 | L81: 30948 | M81: 5997 | N81: 19.3 | P81: 00E8 | Q81: 17812 | R81: 1405 | S81: 7.89 | U81: 99E9 | V81: 2855 | W81: 502 | X81: 17.58
A82: 86B5 | B82: 86530 | C82: 16515 | D82: 19.09 | F82: 95A6 | G82: 56422 | H82: 6320 | I82: 11.2 | K82: 95E7 | L82: 26833 | M82: 5608 | N82: 20.9 | P82: 01E8 | Q82: 16203 | R82: 1354 | S82: 8.36 | U82: 00E9 | V82: 2935 | W82: 417 | X82: 14.21
A83: 87A5 | B83: 83163 | C83: 17856 | D83: 21.47 | F83: 95E6 | G83: 53624 | H83: 6229 | I83: 11.62 | K83: 96E7 | L83: 24624 | M83: 4794 | N83: 19.47 | P83: 02E8 | Q83: 15307 | R83: 1544 | S83: 10.09 | U83: 01E9 | V83: 2879 | W83: 635 | X83: 22.06
A84: 87B5 | B84: 78694 | C84: 6088 | D84: 7.74 | F84: 96E6 | G84: 54163 | H84: 6068 | I84: 11.2 | K84: 97E7 | L84: 23233 | M84: 5024 | N84: 21.62 | P84: 03E8 | Q84: 15831 | R84: 1612 | S84: 10.18 | U84: 02E9 | V84: 2815 | W84: 561 | X84: 19.93
A85: 88A5 | B85: 82371 | C85: 6742 | D85: 8.18 | F85: 97E6 | G85: 55114 | H85: 8336 | I85: 15.13 | K85: 98E7 | L85: 21356 | M85: 4810 | N85: 22.52 | P85: 04E8 | Q85: 16,516 | R85: 1566 | S85: 9.48 | U85: 03E9 | V85: 2649 | W85: 526 | X85: 19.86
A86: 88B5 | B86: 88495 | C86: 8132 | D86: 9.19 | F86: 98E6 | G86: 53061 | H86: 9.824 | I86: 18.51 | K86: 99E7 | L86: 19599 | M86: 5827 | N86: 29.7 | P86: 05E8 | Q86: 16708 | R86: 1535 | S86: 9.19 | U86: 04E9 | V86: 2688 | W86: 566 | X86: 21.06
A87: 89A5 | B87: 84019 | C87: 9028 | D87: 10.75 | F87: 99E6 | G87: 48092 | H87: 11742 | I87: 24.4 | K87: 00E7 | L87: 19269 | M87: 7536 | N87: 39.11 | P87: 06E8 | Q87: 15107 | R87: 1303 | S87: 8.63 | U87: 05E9 | V87: 2580 | W87: 589 | X87: 22.83
A88: 89B5 | B88: 91648 | C88: 9133 | D88: 9.97 | F88: 00E6 | G88: 41414 | H88: 11449 | I88: 27.65 | K88: 01E7 | L88: 18038 | M88: 7031 | N88: 38.98 | P88: 07E8 | Q88: 14626 | R88: 1282 | S88: 8.77 | U88: 06E9 | V88: 2475 | W88: 417 | X88: 16.85
A89: 90A5 | B89: 94822 | C89: 8543 | D89: 9.01 | F89: 01E6 | G89: 36095 | H89: 12051 | I89: 33.39 | K89: 02E7 | L89: 19081 | M89: 6340 | N89: 33.23 | P89: 08E8 | Q89: 14404 | R89: 1284 | S89: 8.91 | U89: 07E9 | V89: 2,476 | W89: 416 | X89: 16.80
A90: 90B5 | B90: 98206 | C90: 8448 | D90: 8.6 | F90: 02E6 | G90: 34530 | H90: 11571 | I90: 33.51 | K90: 03E7 | L90: 18903 | M90: 4832 | N90: 25.56 | U90: 08E9 | V90: 2415 | W90: 520 | X90: =W90/V90*100 -> 21.53
A91: 91A5 | B91: 92028 | C91: 7732 | D91: 8.4 | F91: 03E6 | G91: 32501 | H91: 7116 | I91: 21.89 | K91: 04E7 | L91: 23956 | M91: 6217 | N91: 25.95
A92: 91B5 | B92: 88297 | C92: 6853 | D92: 7.76 | F92: 04E6 | G92: 42248 | H92: 9114 | I92: 21.57 | K92: 05E7 | L92: 25454 | M92: 6630 | N92: 26.05
A93: 92A5 | B93: 87657 | C93: 4802 | D93: 5.48 | F93: 05E6 | G93: 43379 | H93: 9116 | I93: 21.01 | K93: 06E7 | L93: 23230 | M93: 4613 | N93: 19.86
A94: 92B5 | B94: 85581 | C94: 5027 | D94: 5.87 | F94: 06E6 | G94: 41186 | H94: 6904 | I94: 16.76 | K94: 07E7 | L94: 24115 | M94: 6002 | N94: 24.89
A95: 93A5 | B95: 82758 | C95: 13535 | D95: 16.35 | F95: 07E6 | G95: 39797 | H95: 7314 | I95: 18.38 | K95: 08E7 | L95: 24223 | M95: 5404 | N95: 22.31
A96: 94A5 | B96: 78212 | C96: 12541 | D96: 16.05 | F96: 08E6 | G96: 38324 | H96: 7110 | I96: 18.55
A97: 95A5 | B97: 72028 | C97: 11953 | D97: 16.59
A98: 95E5 | B98: 63374 | C98: 11548 | D98: 18.22
A99: 96E5 | B99: 57523 | C99: 9541 | D99: 16.59
A100: 97E5 | B100: 52820 | C100: 9854 | D100: 18.66
A101: 98E5 | B101: 48719 | C101: 11033 | D101: 22.65
A102: 99E5 | B102: 44109 | C102: 16053 | D102: 36.39
A103: 00E5 | B103: 38654 | C103: 19605 | D103: 50.72
A104: 01E5 | B104: 32170 | C104: 20793 | D104: 64.63
A105: 02E5 | B105: 30880 | C105: 19448 | D105: 62.98
A106: 03E5 | B106: 27416 | C106: 13651 | D106: 49.79
A107: 04E5 | B107: 33306 | C107: 13625 | D107: 40.91
A108: 05E5 | B108: 36405 | C108: 14614 | D108: 40.14
A109: 06E5 | B109: 37071 | C109: 13298 | D109: 35.87
A110: 07E5 | B110: 36608 | C110: 15130 | D110: 41.33
A111: 08E5 | B111: 28098 | C111: 12209 | D111: 43.45

Sheet Finance
E2: Calculate your pay!
G7: Monthly | I7: Annual | L7: Difference you will get paid if promoted
B8: Basic Pay | D8: =VLOOKUP(C164,B136:C163,2) -> 0 | E8: =VLOOKUP(H164,G166:H188,2) -> 0
G9: =IF(ISNA(INDEX(RANGE,MATCH(D8,INDEX(RANGE,,1),0),MATCH(E8,INDEX(RANGE,1,),0))),"",INDEX(RANGE,MATCH(D8,INDEX(RANGE,,1),0),MATCH(E8,INDEX(RANGE,1,),0))) ->  | I9: =IF(ISERROR(G9*12),"",(G9*12)) -> 
L10: From: | O10: To:
L11: =VLOOKUP(K181,B136:C163,2) -> 0 | O11: =VLOOKUP(K183,B136:C163,2) -> 0
B12: Fly Pay | G12: =IF(E165=1,"",VLOOKUP(E165,C166:E190,3)) ->  | I12: =IF(ISERROR(G12*12),"",(G12*12)) ->  | L12: =VLOOKUP(K182,G166:H188,2) -> 0 | O12: =VLOOKUP(K184,G166:H188,2) -> 0
B15: BAS | G15: =IF(AND(K175=TRUE,L175=1),L176,IF(AND(K175=TRUE,L175=2),L177,"")) ->  | I15: =IF(ISERROR(G15*12),"",(G15*12)) ->  | L15: =IF(ISNA(INDEX(RANGE,MATCH(L11,INDEX(RANGE,,1),0),MATCH(L12,INDEX(RANGE,1,),0))),"",INDEX(RANGE,MATCH(L11,INDEX(RANGE,,1),0),MATCH(L12,INDEX(RANGE,1,),0))) ->  | O15: =IF(ISNA(INDEX(RANGE,MATCH(O11,INDEX(RANGE,,1),0),MATCH(O12,INDEX(RANGE,1,),0))),"",INDEX(RANGE,MATCH(O11,INDEX(RANGE,,1),0),MATCH(O12,INDEX(RANGE,1,),0))) -> 
L16: Diff | M16: =O15-L15 -> 
B17: HDIP | C17: 1 | D17: FALSE | F17: =VLOOKUP(C17,P166:Q178,2) -> 0 | G17: =IF(D17=TRUE,150,"") ->  | I17: =IF(ISERROR(IF(F17=0,G17,G17*F17)),"",(IF(F17=0,G17,G17*F17))) ->  | L17: =IF(M16>1,"You will receive a "&M16&" dollar pay raise!","You will lose "&M16&" dollars! Ouch!!!") -> 
L18: Military Pay Prior Rates
B19: HFP/IDP | C19: 1 | E19: FALSE | F19: =VLOOKUP(C19,P166:Q178,2) -> 0 | G19: =IF(E19=TRUE,225,"") ->  | I19: =IF(ISERROR(IF(F19=0,G19,G19*F19)),"",(IF(F19=0,G19,G19*F19))) -> 
L20: 1949-1969 | M20: 1970-1979 | N20: 1980-1989 | O20: 1990-1999 | P20: 2000-2007
B21: FSA | C21: 1 | E21: FALSE | F21: =VLOOKUP(C21,P166:Q178,2) -> 0 | G21: =IF(E21=TRUE,250,"") ->  | I21: =IF(ISERROR(IF(F21=0,G21,G21*F21)),"",IF(F21=0,G21,G21*F21)) -> 
L22: 1949-10-01 | M22: 1970-01-01 | N22: 1980-10-01 | O22: 1990-01-01 | P22: 2000-01-01
B23: Diving Pay | G23: =IF(AND(K167=TRUE,K168=1),240,IF(AND(K167=TRUE,K168=2),340,"")) ->  | I23: =IF(ISERROR(G23*12),"",(G23*12)) ->  | L23: 1952-05-01 | M23: 1971-01-01 | N23: 1981-10-01 | O23: 1991-01-01 | P23: 2000-07-01
L24: 1955-04-01 | M24: 1971-10-01 | N24: 1982-10-01 | O24: 1992-01-01 | P24: 2001-01-01
L25: 1958-06-01 | M25: 1972-01-01 | N25: 1984-01-01 | O25: 1993-01-01 | P25: 2001-07-01
B26: Clothing Allowance | L26: 1963-10-01 | M26: 1972-10-01 | N26: 1985-01-01 | O26: 1994-01-01 | P26: 2002-01-01
G27: =IF(AND(K172=TRUE,L172=1,M172=1),349.2,IF(AND(K172=TRUE,L172=1,M172=2),496.8,IF(AND(K172=TRUE,L172=2,M172=1),316.8,IF(AND(K172=TRUE,L172=2,M172=2),453.6,"")))) ->  | I27: =G27 ->  | L27: 1964-09-01 | M27: 1973-10-01 | N27: 1985-10-01 | O27: 1995-01-01 | P27: 2003-01-01
L28: 1965-09-01 | M28: 1974-10-01 | N28: 1987-01-01 | O28: 1996-01-01 | P28: 2004-01-01
L29: 1966-07-01 | M29: 1975-10-01 | N29: 1988-01-01 | O29: 1997-01-01 | P29: 2005-01-01
L30: 1967-10-01 | M30: 1976-10-01 | N30: 1989-01-01 | O30: 1998-01-01 | P30: 2006-01-01
L31: 1968-07-01 | M31: 1977-10-01 | O31: 1999-01-01 | P31: 2007-01-01
D32: Total | G32: =SUM(G9,G15,G12,G17,G19,G21,G23,G27) -> 0 | I32: =SUM(I23,I15,I12,I9,I21,I19,I17,I27) -> 0 | L32: 1969-07-01 | M32: 1978-10-01 | P32: 2007-04-01
D33: Does not compute taxes, BAH, per diem, etc. | M33: 1979-10-01
L34: Click here if the above links do not work
D35: Based on the 2009 Rates
B136: 1 | D136: < 2 | E136: Over 2 | F136: Over 3 | G136: Over 4 | H136: Over 6 | I136: Over 8 | J136: Over 10 | K136: Over 12 | L136: Over 14 | M136: Over 16 | N136: Over 18 | O136: Over 20 | P136: Over 22 | Q136: Over 24 | R136: Over 26 | S136: Over 30 | T136: Over 34 | U136: Over 38
B137: 2 | C137: O-10 | O137: $14,618 | P137: $14,689 | Q137: $14,995 | R137: $15,527 | S137: $16,303 | T137: $17,118 | U137: $17,974
B138: 3 | C138: O-9 | O138: $12,785 | P138: $12,969 | Q138: $13,235 | R138: $13,700 | S138: $14,385 | T138: $15,104 | U138: $15,859
B139: 4 | C139: O-8 | D139: $9,046 | E139: $9,342 | F139: $9,539 | G139: $9,594 | H139: $9,839 | I139: $10,249 | J139: $10,345 | K139: $10,734 | L139: $10,846 | M139: $11,181 | N139: $11,666 | O139: $12,114 | P139: $12,412 | Q139: $12,412 | R139: $12,412 | S139: $12,723 | T139: $13,041 | U139: $13,041
B140: 5 | C140: O-7 | D140: $7,517 | E140: $7,866 | F140: $8,028 | G140: $8,156 | H140: $8,389 | I140: $8,618 | J140: $8,884 | K140: $9,149 | L140: $9,415 | M140: $10,249 | N140: $10,954 | O140: $10,955 | P140: $10,954 | Q140: $10,954 | R140: $11,010 | S140: $11,230 | T140: $11,230 | U140: $11,230
B141: 6 | C141: O-6 | D141: $5,572 | E141: $6,121 | F141: $6,522 | G141: $6,522 | H141: $6,547 | I141: $6,828 | J141: $6,865 | K141: $6,865 | L141: $7,255 | M141: $7,945 | N141: $8,350 | O141: $8,754 | P141: $8,984 | Q141: $9,218 | R141: $9,670 | S141: $9,863 | T141: $9,863 | U141: $9,863
B142: 7 | C142: O-5 | D142: $4,644 | E142: $5,232 | F142: $5,594 | G142: $5,662 | H142: $5,888 | I142: $6,024 | J142: $6,321 | K142: $6,539 | L142: $6,821 | M142: $7,252 | N142: $7,457 | O142: $7,660 | P142: $7,891 | Q142: $7,891 | R142: $7,891 | S142: $7,891 | T142: $7,891 | U142: $7,891
B143: 8 | C143: O-4 | D143: $4,007 | E143: $4,639 | F143: $4,948 | G143: $5,017 | H143: $5,305 | I143: $5,613 | J143: $5,996 | K143: $6,295 | L143: $6,503 | M143: $6,622 | N143: $6,691 | O143: $6,691 | P143: $6,691 | Q143: $6,691 | R143: $6,691 | S143: $6,691 | T143: $6,691 | U143: $6,691
B144: 9 | C144: O-3 | D144: $3,523 | E144: $3,994 | F144: $4,311 | G144: $4,700 | H144: $4,925 | I144: $5,172 | J144: $5,332 | K144: $5,595 | L144: $5,732 | M144: $5,732 | N144: $5,732 | O144: $5,732 | P144: $5,732 | Q144: $5,732 | R144: $5,732 | S144: $5,732 | T144: $5,732 | U144: $5,732
B145: 10 | C145: O-2 | D145: $3,044 | E145: $3,467 | F145: $3,993 | G145: $4,128 | H145: $4,213 | I145: $4,213 | J145: $4,213 | K145: $4,213 | L145: $4,213 | M145: $4,213 | N145: $4,213 | O145: $4,213 | P145: $4,213 | Q145: $4,213 | R145: $4,213 | S145: $4,213 | T145: $4,213 | U145: $4,213
B146: 11 | C146: O-1 | D146: $2,643 | E146: $2,750 | F146: $3,325 | G146: $3,325 | H146: $3,325 | I146: $3,325 | J146: $3,325 | K146: $3,325 | L146: $3,325 | M146: $3,325 | N146: $3,325 | O146: $3,325 | P146: $3,325 | Q146: $3,325 | R146: $3,325 | S146: $3,325 | T146: $3,325 | U146: $3,325
B147: 12 | C147: O-3E | G147: $4,700 | H147: $4,925 | I147: $5,172 | J147: $5,332 | K147: $5,595 | L147: $5,817 | M147: $5,944 | N147: $6,117 | O147: $6,117 | P147: $6,117 | Q147: $6,117 | R147: $6,117 | S147: $6,117 | T147: $6,117 | U147: $6,117
B148: 13 | C148: O-2E | G148: $4,128 | H148: $4,213 | I148: $4,347 | J148: $4,573 | K148: $4,748 | L148: $4,879 | M148: $4,879 | N148: $4,879 | O148: $4,879 | P148: $4,879 | Q148: $4,879 | R148: $4,879 | S148: $4,879 | T148: $4,879 | U148: $4,879
B149: 14 | C149: O-1E | G149: $3,325 | H149: $3,551 | I149: $3,682 | J149: $3,816 | K149: $3,948 | L149: $4,128 | M149: $4,128 | N149: $4,128 | O149: $4,128 | P149: $4,128 | Q149: $4,128 | R149: $4,128 | S149: $4,128 | T149: $4,128 | U149: $4,128
B150: 15 | C150: W-5 | O150: $6,500 | P150: $6,803 | Q150: $7,047 | R150: $7,318 | S150: $7,684 | T150: $8,068 | U150: $8,472
B151: 16 | C151: W-4 | D151: $3,641 | E151: $3,917 | F151: $4,029 | G151: $4,140 | H151: $4,330 | I151: $4,519 | J151: $4,710 | K151: $4,997 | L151: $5,249 | M151: $5,488 | N151: $5,684 | O151: $5,875 | P151: $6,156 | Q151: $6,386 | R151: $6,650 | S151: $6,783 | T151: $6,783 | U151: $6,783
B152: 17 | C152: W-3 | D152: $3,325 | E152: $3,464 | F152: $3,605 | G152: $3,652 | H152: $3,801 | I152: $4,094 | J152: $4,399 | K152: $4,543 | L152: $4,709 | M152: $4,880 | N152: $5,188 | O152: $5,396 | P152: $5,521 | Q152: $5,653 | R152: $5,833 | S152: $5,833 | T152: $5,833 | U152: $5,833
B153: 18 | C153: W-2 | D153: $2,942 | E153: $3,221 | F153: $3,306 | G153: $3,365 | H153: $3,556 | I153: $3,853 | J153: $3,999 | K153: $4,144 | L153: $4,321 | M153: $4,459 | N153: $4,585 | O153: $4,734 | P153: $4,833 | Q153: $4,912 | R153: $4,912 | S153: $4,912 | T153: $4,912 | U153: $4,912
B154: 19 | C154: W-1 | D154: $2,583 | E154: $2,860 | F154: $2,935 | G154: $3,093 | H154: $3,280 | I154: $3,555 | J154: $3,684 | K154: $3,864 | L154: $4,040 | M154: $4,179 | N154: $4,307 | O154: $4,463 | P154: $4,463 | Q154: $4,463 | R154: $4,463 | S154: $4,463 | T154: $4,463 | U154: $4,463
B155: 20 | C155: E-9 | J155: $4,399 | K155: $4,499 | L155: $4,625 | M155: $4,773 | N155: $4,921 | O155: $5,160 | P155: $5,362 | Q155: $5,575 | R155: $5,900 | S155: $6,195 | T155: $6,505 | U155: $6,830
B156: 21 | C156: E-8 | I156: $3,601 | J156: $3,761 | K156: $3,859 | L156: $3,977 | M156: $4,105 | N156: $4,336 | O156: $4,453 | P156: $4,652 | Q156: $4,763 | R156: $5,035 | S156: $5,136 | T156: $5,136 | U156: $5,136
B157: 22 | C157: E-7 | D157: $2,503 | E157: $2,732 | F157: $2,837 | G157: $2,976 | H157: $3,084 | I157: $3,270 | J157: $3,374 | K157: $3,560 | L157: $3,715 | M157: $3,820 | N157: $3,932 | O157: $3,976 | P157: $4,122 | Q157: $4,201 | R157: $4,499 | S157: $4,499 | T157: $4,499 | U157: $4,499
B158: 23 | C158: E-6 | D158: $2,165 | E158: $2,382 | F158: $2,488 | G158: $2,590 | H158: $2,696 | I158: $2,937 | J158: $3,030 | K158: $3,211 | L158: $3,266 | M158: $3,307 | N158: $3,353 | O158: $3,353 | P158: $3,353 | Q158: $3,353 | R158: $3,353 | S158: $3,353 | T158: $3,353 | U158: $3,353
B159: 24 | C159: E-5 | D159: $1,984 | E159: $2,117 | F159: $2,219 | G159: $2,324 | H159: $2,487 | I159: $2,658 | J159: $2,797 | K159: $2,815 | L159: $2,815 | M159: $2,815 | N159: $2,815 | O159: $2,815 | P159: $2,815 | Q159: $2,815 | R159: $2,815 | S159: $2,815 | T159: $2,815 | U159: $2,815
B160: 25 | C160: E-4 | D160: $1,819 | E160: $1,912 | F160: $2,015 | G160: $2,117 | H160: $2,208 | I160: $2,208 | J160: $2,208 | K160: $2,208 | L160: $2,208 | M160: $2,208 | N160: $2,208 | O160: $2,208 | P160: $2,208 | Q160: $2,208 | R160: $2,208 | S160: $2,208 | T160: $2,208 | U160: $2,208
B161: 26 | C161: E-3 | D161: $1,642 | E161: $1,745 | F161: $1,851 | G161: $1,851 | H161: $1,851 | I161: $1,851 | J161: $1,851 | K161: $1,851 | L161: $1,851 | M161: $1,851 | N161: $1,851 | O161: $1,851 | P161: $1,851 | Q161: $1,851 | R161: $1,851 | S161: $1,851 | T161: $1,851 | U161: $1,851
B162: 27 | C162: E-2 | D162: $1,561 | E162: $1,561 | F162: $1,561 | G162: $1,561 | H162: $1,561 | I162: $1,561 | J162: $1,561 | K162: $1,561 | L162: $1,561 | M162: $1,561 | N162: $1,561 | O162: $1,561 | P162: $1,561 | Q162: $1,561 | R162: $1,561 | S162: $1,561 | T162: $1,561 | U162: $1,561
B163: 28 | C163: E-1 | D163: $1,393 | E163: $1,393 | F163: $1,393 | G163: $1,393 | H163: $1,393 | I163: $1,393 | J163: $1,393 | K163: $1,393 | L163: $1,393 | M163: $1,393 | N163: $1,393 | O163: $1,393 | P163: $1,393 | Q163: $1,393 | R163: $1,393
C164: 1 | D164: <Cell link for Basic Pay Form Control | H164: 1 | I164: <Cell Link for Years in Base pay
D165: Pay Grade | E165: 1 | P165: Special Pay lookup
C166: 1 | G166: 1 | K166: Dive Pay Info | P166: 1 | Q166: 0
C167: 2 | D167: O-10 | E167: 150 | G167: 2 | H167: < 2 | K167: FALSE | P167: 2 | Q167: 1
C168: 3 | D168: O-9 | E168: 150 | G168: 3 | H168: Over 2 | K168: 2 | P168: 3 | Q168: 2
C169: 4 | D169: O-8 | E169: 150 | G169: 4 | H169: Over 3 | P169: 4 | Q169: 3
C170: 5 | D170: O-7 | E170: 150 | G170: 5 | H170: Over 4 | P170: 5 | Q170: 4
C171: 6 | D171: O-6 | E171: 250 | G171: 6 | H171: Over 6 | K171: Clothing | L171: Gender | M171: Rate | N171: Form | P171: 6 | Q171: 5
C172: 7 | D172: O-5 | E172: 250 | G172: 7 | H172: Over 8 | K172: FALSE | L172: 2 | M172: 2 | P172: 7 | Q172: 6
C173: 8 | D173: O-4 | E173: 225 | G173: 8 | H173: Over 10 | P173: 8 | Q173: 7
C174: 9 | D174: O-3 | E174: 175 | G174: 9 | H174: Over 12 | K174: BAS | P174: 9 | Q174: 8
C175: 10 | D175: O-2 | E175: 150 | G175: 10 | H175: Over 14 | K175: FALSE | L175: 2 | P175: 10 | Q175: 9
C176: 11 | D176: O-1 | E176: 150 | G176: 11 | H176: Over 16 | K176: O's | L176: 202.76 | P176: 11 | Q176: 10
C177: 12 | D177: W-5 | E177: 250 | G177: 12 | H177: Over 18 | K177: E's | L177: 294.43 | P177: 12 | Q177: 11
C178: 13 | D178: W-4 | E178: 250 | G178: 13 | H178: Over 20 | P178: 13 | Q178: 12
C179: 14 | D179: W-3 | E179: 175 | G179: 14 | H179: Over 22
C180: 15 | D180: W-2 | E180: 150 | G180: 15 | H180: Over 24 | K180: Pay Diff Box
C181: 16 | D181: W-1 | E181: 150 | G181: 16 | H181: Over 26 | K181: 1 | L181: 1st Box Rank
C182: 17 | D182: E-9 | E182: 240 | G182: 17 | H182: Over 30 | K182: 1 | L182: 1st Box Years
C183: 18 | D183: E-8 | E183: 240 | G183: 18 | H183: Over 34 | K183: 1 | L183: 2nd Box Rank
C184: 19 | D184: E-7 | E184: 240 | G184: 19 | H184: Over 38 | K184: 1 | L184: 2nd Box Years
C185: 20 | D185: E-6 | E185: 215 | G185: 20
C186: 21 | D186: E-5 | E186: 190 | G186: 21
C187: 22 | D187: E-4 | E187: 165 | G187: 22
C188: 23 | D188: E-3 | E188: 150 | G188: 23
C189: 24 | D189: E-2 | E189: 150
C190: 25 | D190: E-1 | E190: 150

Sheet Macros
B4: What are Macros?
C5: Macros in a nutshell is Visual Basic code an author creates to trigger specific events that are not included in Excel's standard functions. For example, to utilize the clear and start over macro I had to write the code for this because Excel does not have a built in feature on the ribbon to clear specific cells that I specify. | L5: Example of a Compile Error
B11: What are the disadvantages to using Macros?
C13: The author could write bad code and a message compile error could display. This is a result of misspelling code, not knowing how to write code correctly, or writing code to trigger events not related to the specific event. If you ever are confronted with this error, the best course of action is to write down the error, close the worksheet and contact the author with the error so he/she can fix it. A few people will warn you not to use Macros from untrusted publishers because they think we will write code to crash your machine. If the author of a spreadsheet is leaving his/her contact info, chances are they have not written code to do so. Plus, it would be stupid of me to write bad code and pass it out to the entire Air Force to see!
B26: How to enable Macros
C28: Immediately upon opening your workbook you should see the security warning displayed below. This will show if macros are detected but Excel will not automatically enable them. Click the options button and in the next window, select the 'Enable this content' radio button and select ok. Macros are now enabled and you will have full use of this spreadsheet.
B53: How to enable Macros without seeing the Security Warning message
C55: Select the office button and select Excel Options to the bottom right. Select Trust Center and then Macro Settings. Select Enable all Macros and select ok.
B81: For more information regarding macros, please visit:
B83: You can use the WAPS calculator without enabling macros, the calculations will still work correctly. However, other functions will not work which might be helpful when interacting with WAPS calculator.
B90: Contact me to report any errors with this workbook.
B92: SSgt Chuck Lane
B93: DSN 576-4289
B94: Scott AFB
